Workbook

Sheet S
B2: Сведения об основных социальных аспектах производственной деятельности
B3: Название головной компании (холдинга)
B4: Название предприятия (подразделения без статуса юрлица)
B5: Код ОКПО
B6: Фамилия Имя Отчество, должность и E-mail специалиста, заполнившего анкету
B8: Анкету для оценки присылайте до 1 июля на адрес | C8: info@monitoring-esg.ru
B10: Название показателя | C10: Ед. изм | D10: 2019 | E10: 2020 | F10: 2021
B11: Доля льгот и социальных выплат от общего фонда оплаты труда | C11: %
B12: Средняя заработная плата всего | C12: тыс. рублей
B13: руководители | C13: тыс. рублей
B14: специалисты и служащие | C14: тыс. рублей
B15: рабочие | C15: тыс. рублей
B16: Доля женщин в занятом персонале всего | C16: %
B17: в том числе: руководители | C17: %
B18: Доля в персонале работающих инвалидов | C18: %
B19: Доля в персонале работающих пенсионеров | C19: %
B20: Доля в персонале молодежи до 25 лет | C20: %
B21: Инвестиции в обучение сотрудников | C21: тыс. рублей
B22: Число пострадавших при несчастных случаях на производстве всего | C22: чел.
B23: в том числе: со смертельным исходом | C23: чел.
B24: Расходы на участие в реализации региональных, социальных, благотворительных программ | C24: тыс. рублей
B25: Коэффициент текучести кадров | C25: %
B26: УСЖ – количество уволенных по собственному желанию сотрудников; | C26: чел.
B27: УИР – число уволенных работников по инициативе руководства (за прогулы, по судимости, нарушение дисциплины и пр.) | C27: чел.

Sheet ЮЛ (hidden)
A1: Страна | B1: ID_База | C1: ЭКО-код | D1: ОКПО | E1: Название полное | F1: Краткое название | G1: Регион | H1: Отрасль | I1: Вид | J1: Комментарии | K1: Поиск1 | L1: Строка | M1: Поиск3 | N1: Поиск_ОКПО | O1: ПоискОКПО | P1: ПоискГОЛ | Q1: ПоискГол2 | T1: =IFERROR(INDEX(YL[ОКПО],MATCH(S!C4,YL[Название полное],0)),"") -> 
A2: 1 | B2: 1070 | C2: 2251 | D2: 4622572 | E2: Филиал АО "Татэнерго" - "Нижнекамская Гидроэлектростанция" | F2: ФЛ АО "Татэнерго" - "Нижнекамская ГЭС" | G2: 14 | H2: 1 | I2: 102 | K2: =IF(ISNUMBER(SEARCH(S!$C$4,YL[[#This Row],[Название полное]])),MAX($K$1:K1)+1,0) -> 1 | L2: 1 | M2: =INDEX(YL[Название полное],MATCH(YL[[#This Row],[Строка]],YL[Поиск1],)) -> Филиал АО "Татэнерго" - "Нижнекамская Гидроэлектростанция" | N2: =IFERROR(YL[[#This Row],[Строка]]*(YL[[#This Row],[Поиск3]]=S!$C$4),"") -> 0 | O2: =INDEX(YL[ОКПО],MATCH(YL[[#This Row],[Строка]],YL[Поиск1],)) -> 4622572 | P2: =IF(ISNUMBER(SEARCH(S!$C$3,YL[[#This Row],[Название полное]])),MAX($P$1:P1)+1,0) -> 1 | Q2: =INDEX(YL[Название полное],MATCH(YL[[#This Row],[Строка]],YL[ПоискГОЛ],)) -> Филиал АО "Татэнерго" - "Нижнекамская Гидроэлектростанция"
A3: 1 | B3: 108 | C3: 2251 | D3: 103556 | E3: Филиал АО "Татэнерго" - "Набережно-Челнинская Теплоэлектроцентраль" | F3: ФЛ АО "Татэнерго" - "Нчилнинская ТЭЦ" | G3: 14 | H3: 1 | I3: 101 | K3: =IF(ISNUMBER(SEARCH(S!$C$4,YL[[#This Row],[Название полное]])),MAX($K$1:K2)+1,0) -> 2 | L3: 2 | M3: =INDEX(YL[Название полное],MATCH(YL[[#This Row],[Строка]],YL[Поиск1],)) -> Филиал АО "Татэнерго" - "Набережно-Челнинская Теплоэлектроцентраль" | N3: =IFERROR(YL[[#This Row],[Строка]]*(YL[[#This Row],[Поиск3]]=S!$C$4),"") -> 0 | O3: =INDEX(YL[ОКПО],MATCH(YL[[#This Row],[Строка]],YL[Поиск1],)) -> 103556 | P3: =IF(ISNUMBER(SEARCH(S!$C$3,YL[[#This Row],[Название полное]])),MAX($P$1:P2)+1,0) -> 2 | Q3: =INDEX(YL[Название полное],MATCH(YL[[#This Row],[Строка]],YL[ПоискГОЛ],)) -> Филиал АО "Татэнерго" - "Набережно-Челнинская Теплоэлектроцентраль"
A4: 1 | B4: 1082 | C4: 2248 | D4: 4623181 | E4: Филиал АО "Татэнерго" - "Заинская Государственная районная электростанция" | F4: ФЛ АО "Татэнерго" - "Заинская ГРЭС" | G4: 14 | H4: 1 | I4: 100 | K4: =IF(ISNUMBER(SEARCH(S!$C$4,YL[[#This Row],[Название полное]])),MAX($K$1:K3)+1,0) -> 3 | L4: 3 | M4: =INDEX(YL[Название полное],MATCH(YL[[#This Row],[Строка]],YL[Поиск1],)) -> Филиал АО "Татэнерго" - "Заинская Государственная районная электростанция" | N4: =IFERROR(YL[[#This Row],[Строка]]*(YL[[#This Row],[Поиск3]]=S!$C$4),"") -> 0 | O4: =INDEX(YL[ОКПО],MATCH(YL[[#This Row],[Строка]],YL[Поиск1],)) -> 4623181 | P4: =IF(ISNUMBER(SEARCH(S!$C$3,YL[[#This Row],[Название полное]])),MAX($P$1:P3)+1,0) -> 3 | Q4: =INDEX(YL[Название полное],MATCH(YL[[#This Row],[Строка]],YL[ПоискГОЛ],)) -> Филиал АО "Татэнерго" - "Заинская Государственная районная электростанция"
A5: 1 | B5: 111 | C5: 2242 | D5: 103585 | E5: Филиал АО "Татэнерго" - "Казанская Теплоэлектроцентраль N 2" | F5: ФЛ АО "Татэнерго" - "Казанская ТЭЦ-2" | G5: 14 | H5: 1 | I5: 101 | K5: =IF(ISNUMBER(SEARCH(S!$C$4,YL[[#This Row],[Название полное]])),MAX($K$1:K4)+1,0) -> 4 | L5: 4 | M5: =INDEX(YL[Название полное],MATCH(YL[[#This Row],[Строка]],YL[Поиск1],)) -> Филиал АО "Татэнерго" - "Казанская Теплоэлектроцентраль N 2" | N5: =IFERROR(YL[[#This Row],[Строка]]*(YL[[#This Row],[Поиск3]]=S!$C$4),"") -> 0 | O5: =INDEX(YL[ОКПО],MATCH(YL[[#This Row],[Строка]],YL[Поиск1],)) -> 103585 | P5: =IF(ISNUMBER(SEARCH(S!$C$3,YL[[#This Row],[Название полное]])),MAX($P$1:P4)+1,0) -> 4 | Q5: =INDEX(YL[Название полное],MATCH(YL[[#This Row],[Строка]],YL[ПоискГОЛ],)) -> Филиал АО "Татэнерго" - "Казанская Теплоэлектроцентраль N 2"
A6: 1 | B6: 110 | C6: 2242 | D6: 103579 | E6: Филиал АО "Татэнерго" - "Казанская Теплоэлектроцентраль N 1" | F6: ФЛ АО "Татэнерго" - "Казанская ТЭЦ-1" | G6: 14 | H6: 1 | I6: 101 | K6: =IF(ISNUMBER(SEARCH(S!$C$4,YL[[#This Row],[Название полное]])),MAX($K$1:K5)+1,0) -> 5 | L6: 5 | M6: =INDEX(YL[Название полное],MATCH(YL[[#This Row],[Строка]],YL[Поиск1],)) -> Филиал АО "Татэнерго" - "Казанская Теплоэлектроцентраль N 1" | N6: =IFERROR(YL[[#This Row],[Строка]]*(YL[[#This Row],[Поиск3]]=S!$C$4),"") -> 0 | O6: =INDEX(YL[ОКПО],MATCH(YL[[#This Row],[Строка]],YL[Поиск1],)) -> 103579 | P6: =IF(ISNUMBER(SEARCH(S!$C$3,YL[[#This Row],[Название полное]])),MAX($P$1:P5)+1,0) -> 5 | Q6: =INDEX(YL[Название полное],MATCH(YL[[#This Row],[Строка]],YL[ПоискГОЛ],)) -> Филиал АО "Татэнерго" - "Казанская Теплоэлектроцентраль N 1"
A7: 1 | B7: 546673 | C7: 2242 | D7: - | E7: Управление Татэнерго | G7: 14 | H7: 22 | I7: 2200 | K7: =IF(ISNUMBER(SEARCH(S!$C$4,YL[[#This Row],[Название полное]])),MAX($K$1:K6)+1,0) -> 6 | L7: 6 | M7: =INDEX(YL[Название полное],MATCH(YL[[#This Row],[Строка]],YL[Поиск1],)) -> Управление Татэнерго | N7: =IFERROR(YL[[#This Row],[Строка]]*(YL[[#This Row],[Поиск3]]=S!$C$4),"") -> 0 | O7: =INDEX(YL[ОКПО],MATCH(YL[[#This Row],[Строка]],YL[Поиск1],)) -> - | P7: =IF(ISNUMBER(SEARCH(S!$C$3,YL[[#This Row],[Название полное]])),MAX($P$1:P6)+1,0) -> 6 | Q7: =INDEX(YL[Название полное],MATCH(YL[[#This Row],[Строка]],YL[ПоискГОЛ],)) -> Управление Татэнерго
A8: 1 | B8: 1250 | C8: -1250 | D8: 5376170 | E8: АО "Татэнерго" | F8: АО "Татэнерго" | G8: 14 | H8: 1 | I8: 101 | K8: =IF(ISNUMBER(SEARCH(S!$C$4,YL[[#This Row],[Название полное]])),MAX($K$1:K7)+1,0) -> 7 | L8: 7 | M8: =INDEX(YL[Название полное],MATCH(YL[[#This Row],[Строка]],YL[Поиск1],)) -> АО "Татэнерго" | N8: =IFERROR(YL[[#This Row],[Строка]]*(YL[[#This Row],[Поиск3]]=S!$C$4),"") -> 0 | O8: =INDEX(YL[ОКПО],MATCH(YL[[#This Row],[Строка]],YL[Поиск1],)) -> 5376170 | P8: =IF(ISNUMBER(SEARCH(S!$C$3,YL[[#This Row],[Название полное]])),MAX($P$1:P7)+1,0) -> 7 | Q8: =INDEX(YL[Название полное],MATCH(YL[[#This Row],[Строка]],YL[ПоискГОЛ],)) -> АО "Татэнерго"
A9: 1 | B9: 546958 | C9: 2289 | D9: 7514015 | E9: АО "Сарапульский электрогенераторный завод" | F9: АО "СЭГЗ" | G9: 16 | H9: 9 | I9: 902 | K9: =IF(ISNUMBER(SEARCH(S!$C$4,YL[[#This Row],[Название полное]])),MAX($K$1:K8)+1,0) -> 8 | L9: 8 | M9: =INDEX(YL[Название полное],MATCH(YL[[#This Row],[Строка]],YL[Поиск1],)) -> АО "Сарапульский электрогенераторный завод" | N9: =IFERROR(YL[[#This Row],[Строка]]*(YL[[#This Row],[Поиск3]]=S!$C$4),"") -> 0 | O9: =INDEX(YL[ОКПО],MATCH(YL[[#This Row],[Строка]],YL[Поиск1],)) -> 7514015 | P9: =IF(ISNUMBER(SEARCH(S!$C$3,YL[[#This Row],[Название полное]])),MAX($P$1:P8)+1,0) -> 8 | Q9: =INDEX(YL[Название полное],MATCH(YL[[#This Row],[Строка]],YL[ПоискГОЛ],)) -> АО "Сарапульский электрогенераторный завод"
A10: 1 | B10: 22052 | C10: -22052 | D10: 94475488 | E10: ПАО "Полюс" | F10: ПАО "Полюс" | G10: 35,49,61,21 | H10: 7 | I10: 701 | K10: =IF(ISNUMBER(SEARCH(S!$C$4,YL[[#This Row],[Название полное]])),MAX($K$1:K9)+1,0) -> 9 | L10: 9 | M10: =INDEX(YL[Название полное],MATCH(YL[[#This Row],[Строка]],YL[Поиск1],)) -> ПАО "Полюс" | N10: =IFERROR(YL[[#This Row],[Строка]]*(YL[[#This Row],[Поиск3]]=S!$C$4),"") -> 0 | O10: =INDEX(YL[ОКПО],MATCH(YL[[#This Row],[Строка]],YL[Поиск1],)) -> 94475488 | P10: =IF(ISNUMBER(SEARCH(S!$C$3,YL[[#This Row],[Название полное]])),MAX($P$1:P9)+1,0) -> 9 | Q10: =INDEX(YL[Название полное],MATCH(YL[[#This Row],[Строка]],YL[ПоискГОЛ],)) -> ПАО "Полюс"
A11: 1 | B11: 109 | C11: 2252 | D11: 63121331 | E11: ООО "Нижнекамская ТЭЦ" | F11: ООО "Нижнекамская ТЭЦ" | G11: 14 | H11: 1 | I11: 101 | K11: =IF(ISNUMBER(SEARCH(S!$C$4,YL[[#This Row],[Название полное]])),MAX($K$1:K10)+1,0) -> 10 | L11: 10 | M11: =INDEX(YL[Название полное],MATCH(YL[[#This Row],[Строка]],YL[Поиск1],)) -> ООО "Нижнекамская ТЭЦ" | N11: =IFERROR(YL[[#This Row],[Строка]]*(YL[[#This Row],[Поиск3]]=S!$C$4),"") -> 0 | O11: =INDEX(YL[ОКПО],MATCH(YL[[#This Row],[Строка]],YL[Поиск1],)) -> 63121331 | P11: =IF(ISNUMBER(SEARCH(S!$C$3,YL[[#This Row],[Название полное]])),MAX($P$1:P10)+1,0) -> 10 | Q11: =INDEX(YL[Название полное],MATCH(YL[[#This Row],[Строка]],YL[ПоискГОЛ],)) -> ООО "Нижнекамская ТЭЦ"
A12: 1 | B12: 113 | C12: 2242 | D12: 103622 | E12: Филиал ОАО "ТГК-16" - "Казанская Теплоэлектроцентраль - 3" | F12: ФЛ ОАО "ТГК-16" - "Казанская ТЭЦ - 3" | G12: 14 | H12: 1 | I12: 101 | K12: =IF(ISNUMBER(SEARCH(S!$C$4,YL[[#This Row],[Название полное]])),MAX($K$1:K11)+1,0) -> 11 | L12: 11 | M12: =INDEX(YL[Название полное],MATCH(YL[[#This Row],[Строка]],YL[Поиск1],)) -> Филиал ОАО "ТГК-16" - "Казанская Теплоэлектроцентраль - 3" | N12: =IFERROR(YL[[#This Row],[Строка]]*(YL[[#This Row],[Поиск3]]=S!$C$4),"") -> 0 | O12: =INDEX(YL[ОКПО],MATCH(YL[[#This Row],[Строка]],YL[Поиск1],)) -> 103622 | P12: =IF(ISNUMBER(SEARCH(S!$C$3,YL[[#This Row],[Название полное]])),MAX($P$1:P11)+1,0) -> 11 | Q12: =INDEX(YL[Название полное],MATCH(YL[[#This Row],[Строка]],YL[ПоискГОЛ],)) -> Филиал ОАО "ТГК-16" - "Казанская Теплоэлектроцентраль - 3"
A13: 1 | B13: 39977 | C13: 2242 | D13: 65505691 | E13: ОАО "ТГК-16" | F13: ОАО "ТГК-16" | G13: 14 | H13: 1 | I13: 101 | K13: =IF(ISNUMBER(SEARCH(S!$C$4,YL[[#This Row],[Название полное]])),MAX($K$1:K12)+1,0) -> 12 | L13: 12 | M13: =INDEX(YL[Название полное],MATCH(YL[[#This Row],[Строка]],YL[Поиск1],)) -> ОАО "ТГК-16" | N13: =IFERROR(YL[[#This Row],[Строка]]*(YL[[#This Row],[Поиск3]]=S!$C$4),"") -> 0 | O13: =INDEX(YL[ОКПО],MATCH(YL[[#This Row],[Строка]],YL[Поиск1],)) -> 65505691 | P13: =IF(ISNUMBER(SEARCH(S!$C$3,YL[[#This Row],[Название полное]])),MAX($P$1:P12)+1,0) -> 12 | Q13: =INDEX(YL[Название полное],MATCH(YL[[#This Row],[Строка]],YL[ПоискГОЛ],)) -> ОАО "ТГК-16"
A14: 1 | B14: 24659 | C14: -1 | D14: 74421763 | E14: ПАО "Территориальная генерирующая компания №14" | F14: ПАО "ТГК-14" | G14: 88,4 | H14: 1 | I14: 104 | K14: =IF(ISNUMBER(SEARCH(S!$C$4,YL[[#This Row],[Название полное]])),MAX($K$1:K13)+1,0) -> 13 | L14: 13 | M14: =INDEX(YL[Название полное],MATCH(YL[[#This Row],[Строка]],YL[Поиск1],)) -> ПАО "Территориальная генерирующая компания №14" | N14: =IFERROR(YL[[#This Row],[Строка]]*(YL[[#This Row],[Поиск3]]=S!$C$4),"") -> 0 | O14: =INDEX(YL[ОКПО],MATCH(YL[[#This Row],[Строка]],YL[Поиск1],)) -> 74421763 | P14: =IF(ISNUMBER(SEARCH(S!$C$3,YL[[#This Row],[Название полное]])),MAX($P$1:P13)+1,0) -> 13 | Q14: =INDEX(YL[Название полное],MATCH(YL[[#This Row],[Строка]],YL[ПоискГОЛ],)) -> ПАО "Территориальная генерирующая компания №14"
A15: 1 | B15: 3184 | C15: 2008 | D15: 73227332 | E15: "Генерация Бурятии" Филиал ПАО "Территориальная генерирующая компания №14" | F15: "Генерация Бурятии" Филиал ПАО"ТГК-14" | G15: 4 | H15: 1 | I15: 101 | K15: =IF(ISNUMBER(SEARCH(S!$C$4,YL[[#This Row],[Название полное]])),MAX($K$1:K14)+1,0) -> 14 | L15: 14 | M15: =INDEX(YL[Название полное],MATCH(YL[[#This Row],[Строка]],YL[Поиск1],)) -> "Генерация Бурятии" Филиал ПАО "Территориальная генерирующая компания №14" | N15: =IFERROR(YL[[#This Row],[Строка]]*(YL[[#This Row],[Поиск3]]=S!$C$4),"") -> 0 | O15: =INDEX(YL[ОКПО],MATCH(YL[[#This Row],[Строка]],YL[Поиск1],)) -> 73227332 | P15: =IF(ISNUMBER(SEARCH(S!$C$3,YL[[#This Row],[Название полное]])),MAX($P$1:P14)+1,0) -> 14 | Q15: =INDEX(YL[Название полное],MATCH(YL[[#This Row],[Строка]],YL[ПоискГОЛ],)) -> "Генерация Бурятии" Филиал ПАО "Территориальная генерирующая компания №14"
A16: 1 | B16: 546964 | C16: 2378 | D16: 62158355 | E16: ООО "Нордголд Менеджмент" | F16: ООО "Нордголд Менеджмент" | G16: 21 | H16: 7 | I16: 701 | K16: =IF(ISNUMBER(SEARCH(S!$C$4,YL[[#This Row],[Название полное]])),MAX($K$1:K15)+1,0) -> 15 | L16: 15 | M16: =INDEX(YL[Название полное],MATCH(YL[[#This Row],[Строка]],YL[Поиск1],)) -> ООО "Нордголд Менеджмент" | N16: =IFERROR(YL[[#This Row],[Строка]]*(YL[[#This Row],[Поиск3]]=S!$C$4),"") -> 0 | O16: =INDEX(YL[ОКПО],MATCH(YL[[#This Row],[Строка]],YL[Поиск1],)) -> 62158355 | P16: =IF(ISNUMBER(SEARCH(S!$C$3,YL[[#This Row],[Название полное]])),MAX($P$1:P15)+1,0) -> 15 | Q16: =INDEX(YL[Название полное],MATCH(YL[[#This Row],[Строка]],YL[ПоискГОЛ],)) -> ООО "Нордголд Менеджмент"
A17: 1 | B17: 1995 | C17: 1069 | D17: 23022352 | E17: АО "Мособлгаз" | F17: АО "Мособлгаз" | G17: 62 | H17: 16 | I17: 1603 | K17: =IF(ISNUMBER(SEARCH(S!$C$4,YL[[#This Row],[Название полное]])),MAX($K$1:K16)+1,0) -> 16 | L17: 16 | M17: =INDEX(YL[Название полное],MATCH(YL[[#This Row],[Строка]],YL[Поиск1],)) -> АО "Мособлгаз" | N17: =IFERROR(YL[[#This Row],[Строка]]*(YL[[#This Row],[Поиск3]]=S!$C$4),"") -> 0 | O17: =INDEX(YL[ОКПО],MATCH(YL[[#This Row],[Строка]],YL[Поиск1],)) -> 23022352 | P17: =IF(ISNUMBER(SEARCH(S!$C$3,YL[[#This Row],[Название полное]])),MAX($P$1:P16)+1,0) -> 16 | Q17: =INDEX(YL[Название полное],MATCH(YL[[#This Row],[Строка]],YL[ПоискГОЛ],)) -> АО "Мособлгаз"
A18: 1 | B18: 499147 | C18: 1021 | D18: 97657853 | E18: АО "Усть-Среднеканская ГЭС им. А.Ф. Дьякова" | F18: АО "Усть-Среднеканская ГЭС им. А.Ф. Дьякова" | G18: 61 | H18: 1 | I18: 102 | K18: =IF(ISNUMBER(SEARCH(S!$C$4,YL[[#This Row],[Название полное]])),MAX($K$1:K17)+1,0) -> 17 | L18: 17 | M18: =INDEX(YL[Название полное],MATCH(YL[[#This Row],[Строка]],YL[Поиск1],)) -> АО "Усть-Среднеканская ГЭС им. А.Ф. Дьякова" | N18: =IFERROR(YL[[#This Row],[Строка]]*(YL[[#This Row],[Поиск3]]=S!$C$4),"") -> 0 | O18: =INDEX(YL[ОКПО],MATCH(YL[[#This Row],[Строка]],YL[Поиск1],)) -> 97657853 | P18: =IF(ISNUMBER(SEARCH(S!$C$3,YL[[#This Row],[Название полное]])),MAX($P$1:P17)+1,0) -> 17 | Q18: =INDEX(YL[Название полное],MATCH(YL[[#This Row],[Строка]],YL[ПоискГОЛ],)) -> АО "Усть-Среднеканская ГЭС им. А.Ф. Дьякова"
A19: 1 | B19: 546680 | C19: 974 | D19: 2250190 | E19: Санкт-Петербургский монетный двор - филиал акционерного общества "Гознак" | F19: ФЛ Санкт-Петербургский монетный двор АО "Гознак" | G19: 59 | H19: 7 | I19: 705 | K19: =IF(ISNUMBER(SEARCH(S!$C$4,YL[[#This Row],[Название полное]])),MAX($K$1:K18)+1,0) -> 18 | L19: 18 | M19: =INDEX(YL[Название полное],MATCH(YL[[#This Row],[Строка]],YL[Поиск1],)) -> Санкт-Петербургский монетный двор - филиал акционерного общества "Гознак" | N19: =IFERROR(YL[[#This Row],[Строка]]*(YL[[#This Row],[Поиск3]]=S!$C$4),"") -> 0 | O19: =INDEX(YL[ОКПО],MATCH(YL[[#This Row],[Строка]],YL[Поиск1],)) -> 2250190 | P19: =IF(ISNUMBER(SEARCH(S!$C$3,YL[[#This Row],[Название полное]])),MAX($P$1:P18)+1,0) -> 18 | Q19: =INDEX(YL[Название полное],MATCH(YL[[#This Row],[Строка]],YL[ПоискГОЛ],)) -> Санкт-Петербургский монетный двор - филиал акционерного общества "Гознак"
A20: 1 | B20: 546678 | C20: 1027 | D20: 2250238 | E20: Московский монетный двор - филиал акционерного общества "Гознак" | F20: ММД - Филиал АО "Гознак" | G20: 63 | H20: 7 | I20: 705 | K20: =IF(ISNUMBER(SEARCH(S!$C$4,YL[[#This Row],[Название полное]])),MAX($K$1:K19)+1,0) -> 19 | L20: 19 | M20: =INDEX(YL[Название полное],MATCH(YL[[#This Row],[Строка]],YL[Поиск1],)) -> Московский монетный двор - филиал акционерного общества "Гознак" | N20: =IFERROR(YL[[#This Row],[Строка]]*(YL[[#This Row],[Поиск3]]=S!$C$4),"") -> 0 | O20: =INDEX(YL[ОКПО],MATCH(YL[[#This Row],[Строка]],YL[Поиск1],)) -> 2250238 | P20: =IF(ISNUMBER(SEARCH(S!$C$3,YL[[#This Row],[Название полное]])),MAX($P$1:P19)+1,0) -> 19 | Q20: =INDEX(YL[Название полное],MATCH(YL[[#This Row],[Строка]],YL[ПоискГОЛ],)) -> Московский монетный двор - филиал акционерного общества "Гознак"
A21: 1 | B21: 546677 | C21: 1027 | D21: 2250445 | E21: Научно-исследовательский институт - филиал АО "Гознак" | F21: НИИ - Филиал АО "Гознак" | G21: 63 | H21: 16 | I21: 1602 | K21: =IF(ISNUMBER(SEARCH(S!$C$4,YL[[#This Row],[Название полное]])),MAX($K$1:K20)+1,0) -> 20 | L21: 20 | M21: =INDEX(YL[Название полное],MATCH(YL[[#This Row],[Строка]],YL[Поиск1],)) -> Научно-исследовательский институт - филиал АО "Гознак" | N21: =IFERROR(YL[[#This Row],[Строка]]*(YL[[#This Row],[Поиск3]]=S!$C$4),"") -> 0 | O21: =INDEX(YL[ОКПО],MATCH(YL[[#This Row],[Строка]],YL[Поиск1],)) -> 2250445 | P21: =IF(ISNUMBER(SEARCH(S!$C$3,YL[[#This Row],[Название полное]])),MAX($P$1:P20)+1,0) -> 20 | Q21: =INDEX(YL[Название полное],MATCH(YL[[#This Row],[Строка]],YL[ПоискГОЛ],)) -> Научно-исследовательский институт - филиал АО "Гознак"
A22: 1 | B22: 546676 | C22: 1027 | D22: 2250215 | E22: Московская печатная фабрика - филиал АО "Гознак" | F22: МПФ - филиал АО "Гознак" | G22: 63 | H22: 21 | I22: 2100 | K22: =IF(ISNUMBER(SEARCH(S!$C$4,YL[[#This Row],[Название полное]])),MAX($K$1:K21)+1,0) -> 21 | L22: 21 | M22: =INDEX(YL[Название полное],MATCH(YL[[#This Row],[Строка]],YL[Поиск1],)) -> Московская печатная фабрика - филиал АО "Гознак" | N22: =IFERROR(YL[[#This Row],[Строка]]*(YL[[#This Row],[Поиск3]]=S!$C$4),"") -> 0 | O22: =INDEX(YL[ОКПО],MATCH(YL[[#This Row],[Строка]],YL[Поиск1],)) -> 2250215 | P22: =IF(ISNUMBER(SEARCH(S!$C$3,YL[[#This Row],[Название полное]])),MAX($P$1:P21)+1,0) -> 21 | Q22: =INDEX(YL[Название полное],MATCH(YL[[#This Row],[Строка]],YL[ПоискГОЛ],)) -> Московская печатная фабрика - филиал АО "Гознак"
A23: 1 | B23: 180041 | C23: 1027 | D23: 2250221 | E23: Московская типография Гознака - филиал АО "Гознак" | F23: МТГ - филиал АО "Гознак" | G23: 63 | H23: 21 | I23: 2100 | K23: =IF(ISNUMBER(SEARCH(S!$C$4,YL[[#This Row],[Название полное]])),MAX($K$1:K22)+1,0) -> 22 | L23: 22 | M23: =INDEX(YL[Название полное],MATCH(YL[[#This Row],[Строка]],YL[Поиск1],)) -> Московская типография Гознака - филиал АО "Гознак" | N23: =IFERROR(YL[[#This Row],[Строка]]*(YL[[#This Row],[Поиск3]]=S!$C$4),"") -> 0 | O23: =INDEX(YL[ОКПО],MATCH(YL[[#This Row],[Строка]],YL[Поиск1],)) -> 2250221 | P23: =IF(ISNUMBER(SEARCH(S!$C$3,YL[[#This Row],[Название полное]])),MAX($P$1:P22)+1,0) -> 22 | Q23: =INDEX(YL[Название полное],MATCH(YL[[#This Row],[Строка]],YL[ПоискГОЛ],)) -> Московская типография Гознака - филиал АО "Гознак"
A24: 1 | B24: 546679 | C24: 974 | D24: 2250209 | E24: Санкт-Петербургская бумажная фабрика - филиал АО "Гознак" | F24: ФЛ Санкт-Петербургская бумажная фабрика АО "Гознак" | G24: 59 | H24: 10 | I24: 1003 | K24: =IF(ISNUMBER(SEARCH(S!$C$4,YL[[#This Row],[Название полное]])),MAX($K$1:K23)+1,0) -> 23 | L24: 23 | M24: =INDEX(YL[Название полное],MATCH(YL[[#This Row],[Строка]],YL[Поиск1],)) -> Санкт-Петербургская бумажная фабрика - филиал АО "Гознак" | N24: =IFERROR(YL[[#This Row],[Строка]]*(YL[[#This Row],[Поиск3]]=S!$C$4),"") -> 0 | O24: =INDEX(YL[ОКПО],MATCH(YL[[#This Row],[Строка]],YL[Поиск1],)) -> 2250209 | P24: =IF(ISNUMBER(SEARCH(S!$C$3,YL[[#This Row],[Название полное]])),MAX($P$1:P23)+1,0) -> 23 | Q24: =INDEX(YL[Название полное],MATCH(YL[[#This Row],[Строка]],YL[ПоискГОЛ],)) -> Санкт-Петербургская бумажная фабрика - филиал АО "Гознак"
A25: 1 | B25: 812 | C25: 1371 | D25: 2250244 | E25: Пермская печатная фабрика - филиал АО "Гознак" | F25: Пермская печатная фабрика АО "Гознак" | G25: 72 | H25: 21 | I25: 2100 | K25: =IF(ISNUMBER(SEARCH(S!$C$4,YL[[#This Row],[Название полное]])),MAX($K$1:K24)+1,0) -> 24 | L25: 24 | M25: =INDEX(YL[Название полное],MATCH(YL[[#This Row],[Строка]],YL[Поиск1],)) -> Пермская печатная фабрика - филиал АО "Гознак" | N25: =IFERROR(YL[[#This Row],[Строка]]*(YL[[#This Row],[Поиск3]]=S!$C$4),"") -> 0 | O25: =INDEX(YL[ОКПО],MATCH(YL[[#This Row],[Строка]],YL[Поиск1],)) -> 2250244 | P25: =IF(ISNUMBER(SEARCH(S!$C$3,YL[[#This Row],[Название полное]])),MAX($P$1:P24)+1,0) -> 24 | Q25: =INDEX(YL[Название полное],MATCH(YL[[#This Row],[Строка]],YL[ПоискГОЛ],)) -> Пермская печатная фабрика - филиал АО "Гознак"
A26: 1 | B26: 546674 | C26: 1378 | D26: 2250250 | E26: Краснокамская бумажная фабрика - филиал АО "Гознак" | F26: Краснокамская бумажная фабрика АО "Гознак" | G26: 72 | H26: 10 | I26: 1003 | K26: =IF(ISNUMBER(SEARCH(S!$C$4,YL[[#This Row],[Название полное]])),MAX($K$1:K25)+1,0) -> 25 | L26: 25 | M26: =INDEX(YL[Название полное],MATCH(YL[[#This Row],[Строка]],YL[Поиск1],)) -> Краснокамская бумажная фабрика - филиал АО "Гознак" | N26: =IFERROR(YL[[#This Row],[Строка]]*(YL[[#This Row],[Поиск3]]=S!$C$4),"") -> 0 | O26: =INDEX(YL[ОКПО],MATCH(YL[[#This Row],[Строка]],YL[Поиск1],)) -> 2250250 | P26: =IF(ISNUMBER(SEARCH(S!$C$3,YL[[#This Row],[Название полное]])),MAX($P$1:P25)+1,0) -> 25 | Q26: =INDEX(YL[Название полное],MATCH(YL[[#This Row],[Строка]],YL[ПоискГОЛ],)) -> Краснокамская бумажная фабрика - филиал АО "Гознак"
A27: 1 | B27: 40295 | C27: -1 | D27: 94690005 | E27: АО "Гознак" | F27: АО "Гознак" | G27: 72,59,63 | H27: 21 | I27: 2100 | K27: =IF(ISNUMBER(SEARCH(S!$C$4,YL[[#This Row],[Название полное]])),MAX($K$1:K26)+1,0) -> 26 | L27: 26 | M27: =INDEX(YL[Название полное],MATCH(YL[[#This Row],[Строка]],YL[Поиск1],)) -> АО "Гознак" | N27: =IFERROR(YL[[#This Row],[Строка]]*(YL[[#This Row],[Поиск3]]=S!$C$4),"") -> 0 | O27: =INDEX(YL[ОКПО],MATCH(YL[[#This Row],[Строка]],YL[Поиск1],)) -> 94690005 | P27: =IF(ISNUMBER(SEARCH(S!$C$3,YL[[#This Row],[Название полное]])),MAX($P$1:P26)+1,0) -> 26 | Q27: =INDEX(YL[Название полное],MATCH(YL[[#This Row],[Строка]],YL[ПоискГОЛ],)) -> АО "Гознак"
A28: 1 | B28: 546948 | C28: 2275 | D28: 31600722 | E28: ООО "Партнер" | F28: ООО "Партнер" | G28: 16 | H28: 9 | I28: 902 | K28: =IF(ISNUMBER(SEARCH(S!$C$4,YL[[#This Row],[Название полное]])),MAX($K$1:K27)+1,0) -> 27 | L28: 27 | M28: =INDEX(YL[Название полное],MATCH(YL[[#This Row],[Строка]],YL[Поиск1],)) -> ООО "Партнер" | N28: =IFERROR(YL[[#This Row],[Строка]]*(YL[[#This Row],[Поиск3]]=S!$C$4),"") -> 0 | O28: =INDEX(YL[ОКПО],MATCH(YL[[#This Row],[Строка]],YL[Поиск1],)) -> 31600722 | P28: =IF(ISNUMBER(SEARCH(S!$C$3,YL[[#This Row],[Название полное]])),MAX($P$1:P27)+1,0) -> 27 | Q28: =INDEX(YL[Название полное],MATCH(YL[[#This Row],[Строка]],YL[ПоискГОЛ],)) -> ООО "Партнер"
A29: 1 | B29: 2673 | C29: 1019 | D29: 50552905 | E29: АО "Серебро Магадана" | F29: АО "Серебро Магадана" | G29: 61 | H29: 7 | I29: 701 | K29: =IF(ISNUMBER(SEARCH(S!$C$4,YL[[#This Row],[Название полное]])),MAX($K$1:K28)+1,0) -> 28 | L29: 28 | M29: =INDEX(YL[Название полное],MATCH(YL[[#This Row],[Строка]],YL[Поиск1],)) -> АО "Серебро Магадана" | N29: =IFERROR(YL[[#This Row],[Строка]]*(YL[[#This Row],[Поиск3]]=S!$C$4),"") -> 0 | O29: =INDEX(YL[ОКПО],MATCH(YL[[#This Row],[Строка]],YL[Поиск1],)) -> 50552905 | P29: =IF(ISNUMBER(SEARCH(S!$C$3,YL[[#This Row],[Название полное]])),MAX($P$1:P28)+1,0) -> 28 | Q29: =INDEX(YL[Название полное],MATCH(YL[[#This Row],[Строка]],YL[ПоискГОЛ],)) -> АО "Серебро Магадана"
A30: 1 | B30: 24776 | C30: -1 | D30: 44577806 | E30: ПАО "Горно-металлургическая компания "Норильский никель" | F30: ПАО "ГМК "Норильский никель" | G30: 40,35,27,64 | H30: 7 | I30: 702 | K30: =IF(ISNUMBER(SEARCH(S!$C$4,YL[[#This Row],[Название полное]])),MAX($K$1:K29)+1,0) -> 29 | L30: 29 | M30: =INDEX(YL[Название полное],MATCH(YL[[#This Row],[Строка]],YL[Поиск1],)) -> ПАО "Горно-металлургическая компания "Норильский никель" | N30: =IFERROR(YL[[#This Row],[Строка]]*(YL[[#This Row],[Поиск3]]=S!$C$4),"") -> 0 | O30: =INDEX(YL[ОКПО],MATCH(YL[[#This Row],[Строка]],YL[Поиск1],)) -> 44577806 | P30: =IF(ISNUMBER(SEARCH(S!$C$3,YL[[#This Row],[Название полное]])),MAX($P$1:P29)+1,0) -> 29 | Q30: =INDEX(YL[Название полное],MATCH(YL[[#This Row],[Строка]],YL[ПоискГОЛ],)) -> ПАО "Горно-металлургическая компания "Норильский никель"
A31: 1 | B31: 2547 | C31: 1131 | D31: 48200234 | E31: АО "Кольская горно-металлургическая компания" | F31: АО "Кольская ГМК" | G31: 64 | H31: 7 | I31: 702 | K31: =IF(ISNUMBER(SEARCH(S!$C$4,YL[[#This Row],[Название полное]])),MAX($K$1:K30)+1,0) -> 30 | L31: 30 | M31: =INDEX(YL[Название полное],MATCH(YL[[#This Row],[Строка]],YL[Поиск1],)) -> АО "Кольская горно-металлургическая компания" | N31: =IFERROR(YL[[#This Row],[Строка]]*(YL[[#This Row],[Поиск3]]=S!$C$4),"") -> 0 | O31: =INDEX(YL[ОКПО],MATCH(YL[[#This Row],[Строка]],YL[Поиск1],)) -> 48200234 | P31: =IF(ISNUMBER(SEARCH(S!$C$3,YL[[#This Row],[Название полное]])),MAX($P$1:P30)+1,0) -> 30 | Q31: =INDEX(YL[Название полное],MATCH(YL[[#This Row],[Строка]],YL[ПоискГОЛ],)) -> АО "Кольская горно-металлургическая компания"
A32: 1 | B32: 3219 | C32: 181 | D32: 75792941 | E32: АО "Норильско-Таймырская энергетическая компания" | F32: АО "НТЭК" | G32: 27 | H32: 1 | I32: 104 | K32: =IF(ISNUMBER(SEARCH(S!$C$4,YL[[#This Row],[Название полное]])),MAX($K$1:K31)+1,0) -> 31 | L32: 31 | M32: =INDEX(YL[Название полное],MATCH(YL[[#This Row],[Строка]],YL[Поиск1],)) -> АО "Норильско-Таймырская энергетическая компания" | N32: =IFERROR(YL[[#This Row],[Строка]]*(YL[[#This Row],[Поиск3]]=S!$C$4),"") -> 0 | O32: =INDEX(YL[ОКПО],MATCH(YL[[#This Row],[Строка]],YL[Поиск1],)) -> 75792941 | P32: =IF(ISNUMBER(SEARCH(S!$C$3,YL[[#This Row],[Название полное]])),MAX($P$1:P31)+1,0) -> 31 | Q32: =INDEX(YL[Название полное],MATCH(YL[[#This Row],[Строка]],YL[ПоискГОЛ],)) -> АО "Норильско-Таймырская энергетическая компания"
A33: 1 | B33: 2384 | C33: 181 | D33: 49156713 | E33: Заполярный филиал ПАО "Горно-металлургическая компания "Норильский никель" | F33: ФЛ Заполярный ПАО "ГМК "Норильский никель" | G33: 35 | H33: 7 | I33: 702 | K33: =IF(ISNUMBER(SEARCH(S!$C$4,YL[[#This Row],[Название полное]])),MAX($K$1:K32)+1,0) -> 32 | L33: 32 | M33: =INDEX(YL[Название полное],MATCH(YL[[#This Row],[Строка]],YL[Поиск1],)) -> Заполярный филиал ПАО "Горно-металлургическая компания "Норильский никель" | N33: =IFERROR(YL[[#This Row],[Строка]]*(YL[[#This Row],[Поиск3]]=S!$C$4),"") -> 0 | O33: =INDEX(YL[ОКПО],MATCH(YL[[#This Row],[Строка]],YL[Поиск1],)) -> 49156713 | P33: =IF(ISNUMBER(SEARCH(S!$C$3,YL[[#This Row],[Название полное]])),MAX($P$1:P32)+1,0) -> 32 | Q33: =INDEX(YL[Название полное],MATCH(YL[[#This Row],[Строка]],YL[ПоискГОЛ],)) -> Заполярный филиал ПАО "Горно-металлургическая компания "Норильский никель"
A34: 1 | B34: 546949 | C34: 2298 | D34: 1478815 | E34: МУП торговли и общественного питания "Поиск" города Воткинска | F34: МУП ТОП "Поиск" | G34: 16 | H34: 11 | I34: 1108 | K34: =IF(ISNUMBER(SEARCH(S!$C$4,YL[[#This Row],[Название полное]])),MAX($K$1:K33)+1,0) -> 33 | L34: 33 | M34: =INDEX(YL[Название полное],MATCH(YL[[#This Row],[Строка]],YL[Поиск1],)) -> МУП торговли и общественного питания "Поиск" города Воткинска | N34: =IFERROR(YL[[#This Row],[Строка]]*(YL[[#This Row],[Поиск3]]=S!$C$4),"") -> 0 | O34: =INDEX(YL[ОКПО],MATCH(YL[[#This Row],[Строка]],YL[Поиск1],)) -> 1478815 | P34: =IF(ISNUMBER(SEARCH(S!$C$3,YL[[#This Row],[Название полное]])),MAX($P$1:P33)+1,0) -> 33 | Q34: =INDEX(YL[Название полное],MATCH(YL[[#This Row],[Строка]],YL[ПоискГОЛ],)) -> МУП торговли и общественного питания "Поиск" города Воткинска
A35: 1 | B35: 40269 | C35: -40269 | D35: 74824610 | E35: ПАО "Россети Северо-Запад" | F35: ПАО "Россети Северо-Запад" | G35: 40,46,64,66,73,9,10 | H35: 1 | I35: 105 | K35: =IF(ISNUMBER(SEARCH(S!$C$4,YL[[#This Row],[Название полное]])),MAX($K$1:K34)+1,0) -> 34 | L35: 34 | M35: =INDEX(YL[Название полное],MATCH(YL[[#This Row],[Строка]],YL[Поиск1],)) -> ПАО "Россети Северо-Запад" | N35: =IFERROR(YL[[#This Row],[Строка]]*(YL[[#This Row],[Поиск3]]=S!$C$4),"") -> 0 | O35: =INDEX(YL[ОКПО],MATCH(YL[[#This Row],[Строка]],YL[Поиск1],)) -> 74824610 | P35: =IF(ISNUMBER(SEARCH(S!$C$3,YL[[#This Row],[Название полное]])),MAX($P$1:P34)+1,0) -> 34 | Q35: =INDEX(YL[Название полное],MATCH(YL[[#This Row],[Строка]],YL[ПоискГОЛ],)) -> ПАО "Россети Северо-Запад"
A36: 1 | B36: 546950 | C36: 2274 | D36: 24468207 | E36: ООО "Вавожское жилищно-коммунальное хозяйство" | F36: ООО "Вавожское ЖКХ" | G36: 16 | H36: 16 | I36: 1600 | K36: =IF(ISNUMBER(SEARCH(S!$C$4,YL[[#This Row],[Название полное]])),MAX($K$1:K35)+1,0) -> 35 | L36: 35 | M36: =INDEX(YL[Название полное],MATCH(YL[[#This Row],[Строка]],YL[Поиск1],)) -> ООО "Вавожское жилищно-коммунальное хозяйство" | N36: =IFERROR(YL[[#This Row],[Строка]]*(YL[[#This Row],[Поиск3]]=S!$C$4),"") -> 0 | O36: =INDEX(YL[ОКПО],MATCH(YL[[#This Row],[Строка]],YL[Поиск1],)) -> 24468207 | P36: =IF(ISNUMBER(SEARCH(S!$C$3,YL[[#This Row],[Название полное]])),MAX($P$1:P35)+1,0) -> 35 | Q36: =INDEX(YL[Название полное],MATCH(YL[[#This Row],[Строка]],YL[ПоискГОЛ],)) -> ООО "Вавожское жилищно-коммунальное хозяйство"
A37: 1 | B37: 62693 | C37: 1333 | D37: 8632834 | E37: ПАО "Пензмаш" | F37: ПАО "Пензмаш" | G37: 71 | H37: 9 | I37: 905 | K37: =IF(ISNUMBER(SEARCH(S!$C$4,YL[[#This Row],[Название полное]])),MAX($K$1:K36)+1,0) -> 36 | L37: 36 | M37: =INDEX(YL[Название полное],MATCH(YL[[#This Row],[Строка]],YL[Поиск1],)) -> ПАО "Пензмаш" | N37: =IFERROR(YL[[#This Row],[Строка]]*(YL[[#This Row],[Поиск3]]=S!$C$4),"") -> 0 | O37: =INDEX(YL[ОКПО],MATCH(YL[[#This Row],[Строка]],YL[Поиск1],)) -> 8632834 | P37: =IF(ISNUMBER(SEARCH(S!$C$3,YL[[#This Row],[Название полное]])),MAX($P$1:P36)+1,0) -> 36 | Q37: =INDEX(YL[Название полное],MATCH(YL[[#This Row],[Строка]],YL[ПоискГОЛ],)) -> ПАО "Пензмаш"
A38: 1 | B38: 1984 | C38: 2297 | D38: 23242390 | E38: ООО "Ижевский радиозавод" | F38: ООО "ИРЗ" | G38: 16 | H38: 9 | I38: 900 | K38: =IF(ISNUMBER(SEARCH(S!$C$4,YL[[#This Row],[Название полное]])),MAX($K$1:K37)+1,0) -> 37 | L38: 37 | M38: =INDEX(YL[Название полное],MATCH(YL[[#This Row],[Строка]],YL[Поиск1],)) -> ООО "Ижевский радиозавод" | N38: =IFERROR(YL[[#This Row],[Строка]]*(YL[[#This Row],[Поиск3]]=S!$C$4),"") -> 0 | O38: =INDEX(YL[ОКПО],MATCH(YL[[#This Row],[Строка]],YL[Поиск1],)) -> 23242390 | P38: =IF(ISNUMBER(SEARCH(S!$C$3,YL[[#This Row],[Название полное]])),MAX($P$1:P37)+1,0) -> 37 | Q38: =INDEX(YL[Название полное],MATCH(YL[[#This Row],[Строка]],YL[ПоискГОЛ],)) -> ООО "Ижевский радиозавод"
A39: 1 | B39: 546952 | C39: 2383 | D39: 45203812 | E39: АО "Южно-Верхоянская Горнодобывающая Компания" | F39: АО "ЮВГК" | G39: 21 | H39: 14 | I39: 1401 | K39: =IF(ISNUMBER(SEARCH(S!$C$4,YL[[#This Row],[Название полное]])),MAX($K$1:K38)+1,0) -> 38 | L39: 38 | M39: =INDEX(YL[Название полное],MATCH(YL[[#This Row],[Строка]],YL[Поиск1],)) -> АО "Южно-Верхоянская Горнодобывающая Компания" | N39: =IFERROR(YL[[#This Row],[Строка]]*(YL[[#This Row],[Поиск3]]=S!$C$4),"") -> 0 | O39: =INDEX(YL[ОКПО],MATCH(YL[[#This Row],[Строка]],YL[Поиск1],)) -> 45203812 | P39: =IF(ISNUMBER(SEARCH(S!$C$3,YL[[#This Row],[Название полное]])),MAX($P$1:P38)+1,0) -> 38 | Q39: =INDEX(YL[Название полное],MATCH(YL[[#This Row],[Строка]],YL[ПоискГОЛ],)) -> АО "Южно-Верхоянская Горнодобывающая Компания"
A40: 1 | B40: 546953 | C40: 2279 | D40: 95289285 | E40: ООО "Совхоз - Правда" | F40: ООО "Совхоз - Правда" | G40: 16 | H40: 13 | I40: 1300 | K40: =IF(ISNUMBER(SEARCH(S!$C$4,YL[[#This Row],[Название полное]])),MAX($K$1:K39)+1,0) -> 39 | L40: 39 | M40: =INDEX(YL[Название полное],MATCH(YL[[#This Row],[Строка]],YL[Поиск1],)) -> ООО "Совхоз - Правда" | N40: =IFERROR(YL[[#This Row],[Строка]]*(YL[[#This Row],[Поиск3]]=S!$C$4),"") -> 0 | O40: =INDEX(YL[ОКПО],MATCH(YL[[#This Row],[Строка]],YL[Поиск1],)) -> 95289285 | P40: =IF(ISNUMBER(SEARCH(S!$C$3,YL[[#This Row],[Название полное]])),MAX($P$1:P39)+1,0) -> 39 | Q40: =INDEX(YL[Название полное],MATCH(YL[[#This Row],[Строка]],YL[ПоискГОЛ],)) -> ООО "Совхоз - Правда"
A41: 1 | B41: 546951 | C41: 2290 | D41: 70985256 | E41: МУП "Тепловодосети" МО "Селтинский район" Удмуртской Республики | F41: МУП "Тепловодосети" | G41: 16 | H41: 16 | I41: 1602 | K41: =IF(ISNUMBER(SEARCH(S!$C$4,YL[[#This Row],[Название полное]])),MAX($K$1:K40)+1,0) -> 40 | L41: 40 | M41: =INDEX(YL[Название полное],MATCH(YL[[#This Row],[Строка]],YL[Поиск1],)) -> МУП "Тепловодосети" МО "Селтинский район" Удмуртской Республики | N41: =IFERROR(YL[[#This Row],[Строка]]*(YL[[#This Row],[Поиск3]]=S!$C$4),"") -> 0 | O41: =INDEX(YL[ОКПО],MATCH(YL[[#This Row],[Строка]],YL[Поиск1],)) -> 70985256 | P41: =IF(ISNUMBER(SEARCH(S!$C$3,YL[[#This Row],[Название полное]])),MAX($P$1:P40)+1,0) -> 40 | Q41: =INDEX(YL[Название полное],MATCH(YL[[#This Row],[Строка]],YL[ПоискГОЛ],)) -> МУП "Тепловодосети" МО "Селтинский район" Удмуртской Республики
A42: 1 | B42: 206 | C42: 2297 | D42: 135361 | E42: ПАО "Удмуртнефть" им. В.И. Кудинова | F42: ПАО "Удмуртнефть" им. В.И. Кудинова | G42: 16 | H42: 2 | I42: 200 | K42: =IF(ISNUMBER(SEARCH(S!$C$4,YL[[#This Row],[Название полное]])),MAX($K$1:K41)+1,0) -> 41 | L42: 41 | M42: =INDEX(YL[Название полное],MATCH(YL[[#This Row],[Строка]],YL[Поиск1],)) -> ПАО "Удмуртнефть" им. В.И. Кудинова | N42: =IFERROR(YL[[#This Row],[Строка]]*(YL[[#This Row],[Поиск3]]=S!$C$4),"") -> 0 | O42: =INDEX(YL[ОКПО],MATCH(YL[[#This Row],[Строка]],YL[Поиск1],)) -> 135361 | P42: =IF(ISNUMBER(SEARCH(S!$C$3,YL[[#This Row],[Название полное]])),MAX($P$1:P41)+1,0) -> 41 | Q42: =INDEX(YL[Название полное],MATCH(YL[[#This Row],[Строка]],YL[ПоискГОЛ],)) -> ПАО "Удмуртнефть" им. В.И. Кудинова
A43: 1 | B43: 546954 | C43: 2298 | D43: 49638470 | E43: МУП торговли и общественного питания "Лакомка" города Воткинска | F43: МУП ТОП "Лакомка" | G43: 16 | H43: 11 | I43: 1107 | K43: =IF(ISNUMBER(SEARCH(S!$C$4,YL[[#This Row],[Название полное]])),MAX($K$1:K42)+1,0) -> 42 | L43: 42 | M43: =INDEX(YL[Название полное],MATCH(YL[[#This Row],[Строка]],YL[Поиск1],)) -> МУП торговли и общественного питания "Лакомка" города Воткинска | N43: =IFERROR(YL[[#This Row],[Строка]]*(YL[[#This Row],[Поиск3]]=S!$C$4),"") -> 0 | O43: =INDEX(YL[ОКПО],MATCH(YL[[#This Row],[Строка]],YL[Поиск1],)) -> 49638470 | P43: =IF(ISNUMBER(SEARCH(S!$C$3,YL[[#This Row],[Название полное]])),MAX($P$1:P42)+1,0) -> 42 | Q43: =INDEX(YL[Название полное],MATCH(YL[[#This Row],[Строка]],YL[ПоискГОЛ],)) -> МУП торговли и общественного питания "Лакомка" города Воткинска
A44: 1 | B44: 499163 | C44: 2276 | D44: 87507696 | E44: ООО "Свет" | F44: ООО "Свет" | G44: 16 | H44: 1 | I44: 106 | K44: =IF(ISNUMBER(SEARCH(S!$C$4,YL[[#This Row],[Название полное]])),MAX($K$1:K43)+1,0) -> 43 | L44: 43 | M44: =INDEX(YL[Название полное],MATCH(YL[[#This Row],[Строка]],YL[Поиск1],)) -> ООО "Свет" | N44: =IFERROR(YL[[#This Row],[Строка]]*(YL[[#This Row],[Поиск3]]=S!$C$4),"") -> 0 | O44: =INDEX(YL[ОКПО],MATCH(YL[[#This Row],[Строка]],YL[Поиск1],)) -> 87507696 | P44: =IF(ISNUMBER(SEARCH(S!$C$3,YL[[#This Row],[Название полное]])),MAX($P$1:P43)+1,0) -> 43 | Q44: =INDEX(YL[Название полное],MATCH(YL[[#This Row],[Строка]],YL[ПоискГОЛ],)) -> ООО "Свет"
A45: 1 | B45: 499165 | C45: 2276 | D45: 13047411 | E45: ООО "Теплоресурс" | F45: ООО "ТР" | G45: 16 | H45: 1 | I45: 106 | K45: =IF(ISNUMBER(SEARCH(S!$C$4,YL[[#This Row],[Название полное]])),MAX($K$1:K44)+1,0) -> 44 | L45: 44 | M45: =INDEX(YL[Название полное],MATCH(YL[[#This Row],[Строка]],YL[Поиск1],)) -> ООО "Теплоресурс" | N45: =IFERROR(YL[[#This Row],[Строка]]*(YL[[#This Row],[Поиск3]]=S!$C$4),"") -> 0 | O45: =INDEX(YL[ОКПО],MATCH(YL[[#This Row],[Строка]],YL[Поиск1],)) -> 13047411 | P45: =IF(ISNUMBER(SEARCH(S!$C$3,YL[[#This Row],[Название полное]])),MAX($P$1:P44)+1,0) -> 44 | Q45: =INDEX(YL[Название полное],MATCH(YL[[#This Row],[Строка]],YL[ПоискГОЛ],)) -> ООО "Теплоресурс"
A46: 1 | B46: 2041 | C46: 1794 | D46: 25370703 | E46: ООО "Газпром газораспределение Ульяновск" | F46: ООО "Газпром газораспределение Ульяновск" | G46: 86 | H46: 16 | I46: 1603 | K46: =IF(ISNUMBER(SEARCH(S!$C$4,YL[[#This Row],[Название полное]])),MAX($K$1:K45)+1,0) -> 45 | L46: 45 | M46: =INDEX(YL[Название полное],MATCH(YL[[#This Row],[Строка]],YL[Поиск1],)) -> ООО "Газпром газораспределение Ульяновск" | N46: =IFERROR(YL[[#This Row],[Строка]]*(YL[[#This Row],[Поиск3]]=S!$C$4),"") -> 0 | O46: =INDEX(YL[ОКПО],MATCH(YL[[#This Row],[Строка]],YL[Поиск1],)) -> 25370703 | P46: =IF(ISNUMBER(SEARCH(S!$C$3,YL[[#This Row],[Название полное]])),MAX($P$1:P45)+1,0) -> 45 | Q46: =INDEX(YL[Название полное],MATCH(YL[[#This Row],[Строка]],YL[ПоискГОЛ],)) -> ООО "Газпром газораспределение Ульяновск"
A47: 1 | B47: 3325 | C47: 1612 | D47: 97921764 | E47: ООО "Водоканал-НТ" | F47: ООО "Водоканал-НТ" | G47: 79 | H47: 16 | I47: 1600 | K47: =IF(ISNUMBER(SEARCH(S!$C$4,YL[[#This Row],[Название полное]])),MAX($K$1:K46)+1,0) -> 46 | L47: 46 | M47: =INDEX(YL[Название полное],MATCH(YL[[#This Row],[Строка]],YL[Поиск1],)) -> ООО "Водоканал-НТ" | N47: =IFERROR(YL[[#This Row],[Строка]]*(YL[[#This Row],[Поиск3]]=S!$C$4),"") -> 0 | O47: =INDEX(YL[ОКПО],MATCH(YL[[#This Row],[Строка]],YL[Поиск1],)) -> 97921764 | P47: =IF(ISNUMBER(SEARCH(S!$C$3,YL[[#This Row],[Название полное]])),MAX($P$1:P46)+1,0) -> 46 | Q47: =INDEX(YL[Название полное],MATCH(YL[[#This Row],[Строка]],YL[ПоискГОЛ],)) -> ООО "Водоканал-НТ"
A48: 1 | B48: 1496 | C48: 1596 | D48: 7509511 | E48: ПАО "Машиностроительный завод им.М.И.Калинина, г. Екатеринбург"" | F48: ПАО "МЗИК" | G48: 79 | H48: 9 | I48: 901 | K48: =IF(ISNUMBER(SEARCH(S!$C$4,YL[[#This Row],[Название полное]])),MAX($K$1:K47)+1,0) -> 47 | L48: 47 | M48: =INDEX(YL[Название полное],MATCH(YL[[#This Row],[Строка]],YL[Поиск1],)) -> ПАО "Машиностроительный завод им.М.И.Калинина, г. Екатеринбург"" | N48: =IFERROR(YL[[#This Row],[Строка]]*(YL[[#This Row],[Поиск3]]=S!$C$4),"") -> 0 | O48: =INDEX(YL[ОКПО],MATCH(YL[[#This Row],[Строка]],YL[Поиск1],)) -> 7509511 | P48: =IF(ISNUMBER(SEARCH(S!$C$3,YL[[#This Row],[Название полное]])),MAX($P$1:P47)+1,0) -> 47 | Q48: =INDEX(YL[Название полное],MATCH(YL[[#This Row],[Строка]],YL[ПоискГОЛ],)) -> ПАО "Машиностроительный завод им.М.И.Калинина, г. Екатеринбург""
A49: 1 | B49: 16640 | C49: -1 | D49: 40778 | E49: ПАО "Газпром" | F49: ПАО "Газпром" | G49: 32,34,84,85,29,41,5,69,86,65,83,67,45,76,63,35,53,62,79,74,47,51,58,66,73,9,82,75,12,70,60,57,48,44,43,42,81,56,87,2,14,10,89,33,68,72,16,77,71,11,37,59,64,54,55,80,20,13,1,46,18,8,6,7 | H49: 15 | I49: 1503 | K49: =IF(ISNUMBER(SEARCH(S!$C$4,YL[[#This Row],[Название полное]])),MAX($K$1:K48)+1,0) -> 48 | L49: 48 | M49: =INDEX(YL[Название полное],MATCH(YL[[#This Row],[Строка]],YL[Поиск1],)) -> ПАО "Газпром" | N49: =IFERROR(YL[[#This Row],[Строка]]*(YL[[#This Row],[Поиск3]]=S!$C$4),"") -> 0 | O49: =INDEX(YL[ОКПО],MATCH(YL[[#This Row],[Строка]],YL[Поиск1],)) -> 40778 | P49: =IF(ISNUMBER(SEARCH(S!$C$3,YL[[#This Row],[Название полное]])),MAX($P$1:P48)+1,0) -> 48 | Q49: =INDEX(YL[Название полное],MATCH(YL[[#This Row],[Строка]],YL[ПоискГОЛ],)) -> ПАО "Газпром"
A50: 1 | B50: 1340 | C50: 1980 | D50: 5766575 | E50: ООО "Газпром нефтехим Салават" | F50: ООО "Газпром нефтехим Салават" | G50: 2 | H50: 8 | I50: 802 | K50: =IF(ISNUMBER(SEARCH(S!$C$4,YL[[#This Row],[Название полное]])),MAX($K$1:K49)+1,0) -> 49 | L50: 49 | M50: =INDEX(YL[Название полное],MATCH(YL[[#This Row],[Строка]],YL[Поиск1],)) -> ООО "Газпром нефтехим Салават" | N50: =IFERROR(YL[[#This Row],[Строка]]*(YL[[#This Row],[Поиск3]]=S!$C$4),"") -> 0 | O50: =INDEX(YL[ОКПО],MATCH(YL[[#This Row],[Строка]],YL[Поиск1],)) -> 5766575 | P50: =IF(ISNUMBER(SEARCH(S!$C$3,YL[[#This Row],[Название полное]])),MAX($P$1:P49)+1,0) -> 49 | Q50: =INDEX(YL[Название полное],MATCH(YL[[#This Row],[Строка]],YL[ПоискГОЛ],)) -> ООО "Газпром нефтехим Салават"
A51: 1 | B51: 23016 | C51: -1 | D51: 42045241 | E51: ПАО "Газпром нефть" | F51: ПАО "Газпром нефть" | G51: 79,68,63,32,75,62,29,67,83 | H51: 2 | I51: 200 | K51: =IF(ISNUMBER(SEARCH(S!$C$4,YL[[#This Row],[Название полное]])),MAX($K$1:K50)+1,0) -> 50 | L51: 50 | M51: =INDEX(YL[Название полное],MATCH(YL[[#This Row],[Строка]],YL[Поиск1],)) -> ПАО "Газпром нефть" | N51: =IFERROR(YL[[#This Row],[Строка]]*(YL[[#This Row],[Поиск3]]=S!$C$4),"") -> 0 | O51: =INDEX(YL[ОКПО],MATCH(YL[[#This Row],[Строка]],YL[Поиск1],)) -> 42045241 | P51: =IF(ISNUMBER(SEARCH(S!$C$3,YL[[#This Row],[Название полное]])),MAX($P$1:P50)+1,0) -> 50 | Q51: =INDEX(YL[Название полное],MATCH(YL[[#This Row],[Строка]],YL[ПоискГОЛ],)) -> ПАО "Газпром нефть"
A52: 1 | B52: 546956 | C52: 2298 | D52: 3253919 | E52: МУП "Водоканал" г. Воткинска | F52: МУП "Водоканал" | G52: 16 | H52: 16 | I52: 1600 | K52: =IF(ISNUMBER(SEARCH(S!$C$4,YL[[#This Row],[Название полное]])),MAX($K$1:K51)+1,0) -> 51 | L52: 51 | M52: =INDEX(YL[Название полное],MATCH(YL[[#This Row],[Строка]],YL[Поиск1],)) -> МУП "Водоканал" г. Воткинска | N52: =IFERROR(YL[[#This Row],[Строка]]*(YL[[#This Row],[Поиск3]]=S!$C$4),"") -> 0 | O52: =INDEX(YL[ОКПО],MATCH(YL[[#This Row],[Строка]],YL[Поиск1],)) -> 3253919 | P52: =IF(ISNUMBER(SEARCH(S!$C$3,YL[[#This Row],[Название полное]])),MAX($P$1:P51)+1,0) -> 51 | Q52: =INDEX(YL[Название полное],MATCH(YL[[#This Row],[Строка]],YL[ПоискГОЛ],)) -> МУП "Водоканал" г. Воткинска
A53: 1 | B53: 3349 | C53: 1025 | D53: 97657830 | E53: АО "Усть-СреднеканГЭСстрой" | F53: АО "Усть-СреднеканГЭСстрой" | G53: 61 | H53: 14 | I53: 1401 | K53: =IF(ISNUMBER(SEARCH(S!$C$4,YL[[#This Row],[Название полное]])),MAX($K$1:K52)+1,0) -> 52 | L53: 52 | M53: =INDEX(YL[Название полное],MATCH(YL[[#This Row],[Строка]],YL[Поиск1],)) -> АО "Усть-СреднеканГЭСстрой" | N53: =IFERROR(YL[[#This Row],[Строка]]*(YL[[#This Row],[Поиск3]]=S!$C$4),"") -> 0 | O53: =INDEX(YL[ОКПО],MATCH(YL[[#This Row],[Строка]],YL[Поиск1],)) -> 97657830 | P53: =IF(ISNUMBER(SEARCH(S!$C$3,YL[[#This Row],[Название полное]])),MAX($P$1:P52)+1,0) -> 52 | Q53: =INDEX(YL[Название полное],MATCH(YL[[#This Row],[Строка]],YL[ПоискГОЛ],)) -> АО "Усть-СреднеканГЭСстрой"
A54: 1 | B54: 546883 | C54: 1598 | D54: 32267762 | E54: МУП "Горэнерго" МО города Асбест | F54: МУП "Горэнерго" | G54: 79 | H54: 1 | I54: 106 | K54: =IF(ISNUMBER(SEARCH(S!$C$4,YL[[#This Row],[Название полное]])),MAX($K$1:K53)+1,0) -> 53 | L54: 53 | M54: =INDEX(YL[Название полное],MATCH(YL[[#This Row],[Строка]],YL[Поиск1],)) -> МУП "Горэнерго" МО города Асбест | N54: =IFERROR(YL[[#This Row],[Строка]]*(YL[[#This Row],[Поиск3]]=S!$C$4),"") -> 0 | O54: =INDEX(YL[ОКПО],MATCH(YL[[#This Row],[Строка]],YL[Поиск1],)) -> 32267762 | P54: =IF(ISNUMBER(SEARCH(S!$C$3,YL[[#This Row],[Название полное]])),MAX($P$1:P53)+1,0) -> 53 | Q54: =INDEX(YL[Название полное],MATCH(YL[[#This Row],[Строка]],YL[ПоискГОЛ],)) -> МУП "Горэнерго" МО города Асбест
A55: -1 | B55: 546876 | C55: 1612 | D55: 45593397 | E55: МУП "Тагилэнерго" | F55: МУП "Тагилэнерго" | G55: 79 | H55: 1 | I55: 106 | K55: =IF(ISNUMBER(SEARCH(S!$C$4,YL[[#This Row],[Название полное]])),MAX($K$1:K54)+1,0) -> 54 | L55: 54 | M55: =INDEX(YL[Название полное],MATCH(YL[[#This Row],[Строка]],YL[Поиск1],)) -> МУП "Тагилэнерго" | N55: =IFERROR(YL[[#This Row],[Строка]]*(YL[[#This Row],[Поиск3]]=S!$C$4),"") -> 0 | O55: =INDEX(YL[ОКПО],MATCH(YL[[#This Row],[Строка]],YL[Поиск1],)) -> 45593397 | P55: =IF(ISNUMBER(SEARCH(S!$C$3,YL[[#This Row],[Название полное]])),MAX($P$1:P54)+1,0) -> 54 | Q55: =INDEX(YL[Название полное],MATCH(YL[[#This Row],[Строка]],YL[ПоискГОЛ],)) -> МУП "Тагилэнерго"
A56: 1 | B56: 546884 | C56: 1672 | D56: 7513168 | E56: Акционерное общество «Завод»Тамбоваппарат» | G56: 81 | H56: 9 | I56: 900 | J56: Прекратил деятельность при присоединении, правоприемник АО "Тамбовский завод "Октябрь" ОКПО: 7522397 | K56: =IF(ISNUMBER(SEARCH(S!$C$4,YL[[#This Row],[Название полное]])),MAX($K$1:K55)+1,0) -> 55 | L56: 55 | M56: =INDEX(YL[Название полное],MATCH(YL[[#This Row],[Строка]],YL[Поиск1],)) -> Акционерное общество «Завод»Тамбоваппарат» | N56: =IFERROR(YL[[#This Row],[Строка]]*(YL[[#This Row],[Поиск3]]=S!$C$4),"") -> 0 | O56: =INDEX(YL[ОКПО],MATCH(YL[[#This Row],[Строка]],YL[Поиск1],)) -> 7513168 | P56: =IF(ISNUMBER(SEARCH(S!$C$3,YL[[#This Row],[Название полное]])),MAX($P$1:P55)+1,0) -> 55 | Q56: =INDEX(YL[Название полное],MATCH(YL[[#This Row],[Строка]],YL[ПоискГОЛ],)) -> Акционерное общество «Завод»Тамбоваппарат»
A57: 1 | B57: 546885 | C57: 1596 | D57: 39908201 | E57: АО "Екатеринбургская теплосетевая компания" | F57: АО "ЕТК" | G57: 79 | H57: 1 | I57: 106 | K57: =IF(ISNUMBER(SEARCH(S!$C$4,YL[[#This Row],[Название полное]])),MAX($K$1:K56)+1,0) -> 56 | L57: 56 | M57: =INDEX(YL[Название полное],MATCH(YL[[#This Row],[Строка]],YL[Поиск1],)) -> АО "Екатеринбургская теплосетевая компания" | N57: =IFERROR(YL[[#This Row],[Строка]]*(YL[[#This Row],[Поиск3]]=S!$C$4),"") -> 0 | O57: =INDEX(YL[ОКПО],MATCH(YL[[#This Row],[Строка]],YL[Поиск1],)) -> 39908201 | P57: =IF(ISNUMBER(SEARCH(S!$C$3,YL[[#This Row],[Название полное]])),MAX($P$1:P56)+1,0) -> 56 | Q57: =INDEX(YL[Название полное],MATCH(YL[[#This Row],[Строка]],YL[ПоискГОЛ],)) -> АО "Екатеринбургская теплосетевая компания"
A58: 1 | B58: 1529 | C58: 1672 | D58: 7522397 | E58: АО "Тамбовский завод "Октябрь" | F58: АО "ТЗ "Октябрь" | G58: 81 | H58: 9 | I58: 900 | K58: =IF(ISNUMBER(SEARCH(S!$C$4,YL[[#This Row],[Название полное]])),MAX($K$1:K57)+1,0) -> 57 | L58: 57 | M58: =INDEX(YL[Название полное],MATCH(YL[[#This Row],[Строка]],YL[Поиск1],)) -> АО "Тамбовский завод "Октябрь" | N58: =IFERROR(YL[[#This Row],[Строка]]*(YL[[#This Row],[Поиск3]]=S!$C$4),"") -> 0 | O58: =INDEX(YL[ОКПО],MATCH(YL[[#This Row],[Строка]],YL[Поиск1],)) -> 7522397 | P58: =IF(ISNUMBER(SEARCH(S!$C$3,YL[[#This Row],[Название полное]])),MAX($P$1:P57)+1,0) -> 57 | Q58: =INDEX(YL[Название полное],MATCH(YL[[#This Row],[Строка]],YL[ПоискГОЛ],)) -> АО "Тамбовский завод "Октябрь"
A59: 1 | B59: 1528 | C59: 1672 | D59: 7522291 | E59: АО "Тамбовский завод "Революционный труд" | F59: АО "ТЗ "Ревтруд" | G59: 81 | H59: 9 | I59: 900 | K59: =IF(ISNUMBER(SEARCH(S!$C$4,YL[[#This Row],[Название полное]])),MAX($K$1:K58)+1,0) -> 58 | L59: 58 | M59: =INDEX(YL[Название полное],MATCH(YL[[#This Row],[Строка]],YL[Поиск1],)) -> АО "Тамбовский завод "Революционный труд" | N59: =IFERROR(YL[[#This Row],[Строка]]*(YL[[#This Row],[Поиск3]]=S!$C$4),"") -> 0 | O59: =INDEX(YL[ОКПО],MATCH(YL[[#This Row],[Строка]],YL[Поиск1],)) -> 7522291 | P59: =IF(ISNUMBER(SEARCH(S!$C$3,YL[[#This Row],[Название полное]])),MAX($P$1:P58)+1,0) -> 58 | Q59: =INDEX(YL[Название полное],MATCH(YL[[#This Row],[Строка]],YL[ПоискГОЛ],)) -> АО "Тамбовский завод "Революционный труд"
A60: 1 | B60: 155 | C60: -155 | D60: 106201 | E60: ПАО энергитики и электрофикации "Магаданэнерго" | F60: ПАО "Магаданэнерго" | G60: 61 | H60: 1 | I60: 104 | K60: =IF(ISNUMBER(SEARCH(S!$C$4,YL[[#This Row],[Название полное]])),MAX($K$1:K59)+1,0) -> 59 | L60: 59 | M60: =INDEX(YL[Название полное],MATCH(YL[[#This Row],[Строка]],YL[Поиск1],)) -> ПАО энергитики и электрофикации "Магаданэнерго" | N60: =IFERROR(YL[[#This Row],[Строка]]*(YL[[#This Row],[Поиск3]]=S!$C$4),"") -> 0 | O60: =INDEX(YL[ОКПО],MATCH(YL[[#This Row],[Строка]],YL[Поиск1],)) -> 106201 | P60: =IF(ISNUMBER(SEARCH(S!$C$3,YL[[#This Row],[Название полное]])),MAX($P$1:P59)+1,0) -> 59 | Q60: =INDEX(YL[Название полное],MATCH(YL[[#This Row],[Строка]],YL[ПоискГОЛ],)) -> ПАО энергитики и электрофикации "Магаданэнерго"
A61: 1 | B61: 546886 | C61: 261 | D61: 3886116 | E61: Рыболовецкая артель (колхоз) имени 50 лет Октября | F61: Рыболовецкая артель (колхоз) имени 50 лет Октября | G61: 38 | H61: 11 | I61: 1103 | K61: =IF(ISNUMBER(SEARCH(S!$C$4,YL[[#This Row],[Название полное]])),MAX($K$1:K60)+1,0) -> 60 | L61: 60 | M61: =INDEX(YL[Название полное],MATCH(YL[[#This Row],[Строка]],YL[Поиск1],)) -> Рыболовецкая артель (колхоз) имени 50 лет Октября | N61: =IFERROR(YL[[#This Row],[Строка]]*(YL[[#This Row],[Поиск3]]=S!$C$4),"") -> 0 | O61: =INDEX(YL[ОКПО],MATCH(YL[[#This Row],[Строка]],YL[Поиск1],)) -> 3886116 | P61: =IF(ISNUMBER(SEARCH(S!$C$3,YL[[#This Row],[Название полное]])),MAX($P$1:P60)+1,0) -> 60 | Q61: =INDEX(YL[Название полное],MATCH(YL[[#This Row],[Строка]],YL[ПоискГОЛ],)) -> Рыболовецкая артель (колхоз) имени 50 лет Октября
A62: 1 | B62: 3070 | C62: 1592 | D62: 12309228 | E62: ООО "Тавдинский фанерно-плитный комбинат" | F62: ООО "Тавдинский ФПК" | G62: 79 | H62: 10 | I62: 1004 | K62: =IF(ISNUMBER(SEARCH(S!$C$4,YL[[#This Row],[Название полное]])),MAX($K$1:K61)+1,0) -> 61 | L62: 61 | M62: =INDEX(YL[Название полное],MATCH(YL[[#This Row],[Строка]],YL[Поиск1],)) -> ООО "Тавдинский фанерно-плитный комбинат" | N62: =IFERROR(YL[[#This Row],[Строка]]*(YL[[#This Row],[Поиск3]]=S!$C$4),"") -> 0 | O62: =INDEX(YL[ОКПО],MATCH(YL[[#This Row],[Строка]],YL[Поиск1],)) -> 12309228 | P62: =IF(ISNUMBER(SEARCH(S!$C$3,YL[[#This Row],[Название полное]])),MAX($P$1:P61)+1,0) -> 61 | Q62: =INDEX(YL[Название полное],MATCH(YL[[#This Row],[Строка]],YL[ПоискГОЛ],)) -> ООО "Тавдинский фанерно-плитный комбинат"
A63: 1 | B63: 343521 | C63: 1564 | D63: 52997818 | E63: МКП "Завод строительных материалов имени Героя Советского Союза М.А.Федотова» ГО "Город Южно-Сахалинск" | F63: МКП "ЗСМ им. М.А. ФЕДОТОВА" ГО "Город Южно-Сахалинск" | G63: 78 | H63: 12 | I63: 1203 | K63: =IF(ISNUMBER(SEARCH(S!$C$4,YL[[#This Row],[Название полное]])),MAX($K$1:K62)+1,0) -> 62 | L63: 62 | M63: =INDEX(YL[Название полное],MATCH(YL[[#This Row],[Строка]],YL[Поиск1],)) -> МКП "Завод строительных материалов имени Героя Советского Союза М.А.Федотова» ГО "Город Южно-Сахалинск" | N63: =IFERROR(YL[[#This Row],[Строка]]*(YL[[#This Row],[Поиск3]]=S!$C$4),"") -> 0 | O63: =INDEX(YL[ОКПО],MATCH(YL[[#This Row],[Строка]],YL[Поиск1],)) -> 52997818 | P63: =IF(ISNUMBER(SEARCH(S!$C$3,YL[[#This Row],[Название полное]])),MAX($P$1:P62)+1,0) -> 62 | Q63: =INDEX(YL[Название полное],MATCH(YL[[#This Row],[Строка]],YL[ПоискГОЛ],)) -> МКП "Завод строительных материалов имени Героя Советского Союза М.А.Федотова» ГО "Город Южно-Сахалинск"
A64: 1 | B64: 546887 | C64: 1620 | D64: 39928652 | E64: МУП Новоуральского городского округа "Водопроводно-канализационное хозяйство" | F64: МУП "Водоканал" | G64: 79 | H64: 16 | I64: 1600 | K64: =IF(ISNUMBER(SEARCH(S!$C$4,YL[[#This Row],[Название полное]])),MAX($K$1:K63)+1,0) -> 63 | L64: 63 | M64: =INDEX(YL[Название полное],MATCH(YL[[#This Row],[Строка]],YL[Поиск1],)) -> МУП Новоуральского городского округа "Водопроводно-канализационное хозяйство" | N64: =IFERROR(YL[[#This Row],[Строка]]*(YL[[#This Row],[Поиск3]]=S!$C$4),"") -> 0 | O64: =INDEX(YL[ОКПО],MATCH(YL[[#This Row],[Строка]],YL[Поиск1],)) -> 39928652 | P64: =IF(ISNUMBER(SEARCH(S!$C$3,YL[[#This Row],[Название полное]])),MAX($P$1:P63)+1,0) -> 63 | Q64: =INDEX(YL[Название полное],MATCH(YL[[#This Row],[Строка]],YL[ПоискГОЛ],)) -> МУП Новоуральского городского округа "Водопроводно-канализационное хозяйство"
A65: 1 | B65: 358 | C65: 1603 | D65: 195430 | E65: АО "Каменск-Уральский завод по обработке цветных металлов" | F65: АО "КУЗОЦМ" | G65: 79 | H65: 7 | I65: 702 | K65: =IF(ISNUMBER(SEARCH(S!$C$4,YL[[#This Row],[Название полное]])),MAX($K$1:K64)+1,0) -> 64 | L65: 64 | M65: =INDEX(YL[Название полное],MATCH(YL[[#This Row],[Строка]],YL[Поиск1],)) -> АО "Каменск-Уральский завод по обработке цветных металлов" | N65: =IFERROR(YL[[#This Row],[Строка]]*(YL[[#This Row],[Поиск3]]=S!$C$4),"") -> 0 | O65: =INDEX(YL[ОКПО],MATCH(YL[[#This Row],[Строка]],YL[Поиск1],)) -> 195430 | P65: =IF(ISNUMBER(SEARCH(S!$C$3,YL[[#This Row],[Название полное]])),MAX($P$1:P64)+1,0) -> 64 | Q65: =INDEX(YL[Название полное],MATCH(YL[[#This Row],[Строка]],YL[ПоискГОЛ],)) -> АО "Каменск-Уральский завод по обработке цветных металлов"
A66: 1 | B66: 257364 | C66: 1026 | D66: 1129983 | E66: АО "Аэропорт Магадан" | F66: АО "Аэропорт Магадан" | G66: 61 | H66: 15 | I66: 1508 | K66: =IF(ISNUMBER(SEARCH(S!$C$4,YL[[#This Row],[Название полное]])),MAX($K$1:K65)+1,0) -> 65 | L66: 65 | M66: =INDEX(YL[Название полное],MATCH(YL[[#This Row],[Строка]],YL[Поиск1],)) -> АО "Аэропорт Магадан" | N66: =IFERROR(YL[[#This Row],[Строка]]*(YL[[#This Row],[Поиск3]]=S!$C$4),"") -> 0 | O66: =INDEX(YL[ОКПО],MATCH(YL[[#This Row],[Строка]],YL[Поиск1],)) -> 1129983 | P66: =IF(ISNUMBER(SEARCH(S!$C$3,YL[[#This Row],[Название полное]])),MAX($P$1:P65)+1,0) -> 65 | Q66: =INDEX(YL[Название полное],MATCH(YL[[#This Row],[Строка]],YL[ПоискГОЛ],)) -> АО "Аэропорт Магадан"
A67: 1 | B67: 546888 | C67: 366 | D67: 5893310 | E67: ООО "Центр Экологической Безопасности" Белгородской области | F67: ООО "ЦЭБ" | G67: 42 | H67: 19 | I67: 1900 | K67: =IF(ISNUMBER(SEARCH(S!$C$4,YL[[#This Row],[Название полное]])),MAX($K$1:K66)+1,0) -> 66 | L67: 66 | M67: =INDEX(YL[Название полное],MATCH(YL[[#This Row],[Строка]],YL[Поиск1],)) -> ООО "Центр Экологической Безопасности" Белгородской области | N67: =IFERROR(YL[[#This Row],[Строка]]*(YL[[#This Row],[Поиск3]]=S!$C$4),"") -> 0 | O67: =INDEX(YL[ОКПО],MATCH(YL[[#This Row],[Строка]],YL[Поиск1],)) -> 5893310 | P67: =IF(ISNUMBER(SEARCH(S!$C$3,YL[[#This Row],[Название полное]])),MAX($P$1:P66)+1,0) -> 66 | Q67: =INDEX(YL[Название полное],MATCH(YL[[#This Row],[Строка]],YL[ПоискГОЛ],)) -> ООО "Центр Экологической Безопасности" Белгородской области
A68: 1 | B68: 179464 | C68: 1617 | D68: 5297720 | E68: АО "Ревдинский кирпичный завод" | F68: АО "РКЗ" | G68: 79 | H68: 12 | I68: 1204 | K68: =IF(ISNUMBER(SEARCH(S!$C$4,YL[[#This Row],[Название полное]])),MAX($K$1:K67)+1,0) -> 67 | L68: 67 | M68: =INDEX(YL[Название полное],MATCH(YL[[#This Row],[Строка]],YL[Поиск1],)) -> АО "Ревдинский кирпичный завод" | N68: =IFERROR(YL[[#This Row],[Строка]]*(YL[[#This Row],[Поиск3]]=S!$C$4),"") -> 0 | O68: =INDEX(YL[ОКПО],MATCH(YL[[#This Row],[Строка]],YL[Поиск1],)) -> 5297720 | P68: =IF(ISNUMBER(SEARCH(S!$C$3,YL[[#This Row],[Название полное]])),MAX($P$1:P67)+1,0) -> 67 | Q68: =INDEX(YL[Название полное],MATCH(YL[[#This Row],[Строка]],YL[ПоискГОЛ],)) -> АО "Ревдинский кирпичный завод"
A69: 1 | B69: 390 | C69: 461 | D69: 204168 | E69: АО "Волжский оргсинтез" | F69: АО "Волжский оргсинтез" | G69: 45 | H69: 8 | I69: 802 | K69: =IF(ISNUMBER(SEARCH(S!$C$4,YL[[#This Row],[Название полное]])),MAX($K$1:K68)+1,0) -> 68 | L69: 68 | M69: =INDEX(YL[Название полное],MATCH(YL[[#This Row],[Строка]],YL[Поиск1],)) -> АО "Волжский оргсинтез" | N69: =IFERROR(YL[[#This Row],[Строка]]*(YL[[#This Row],[Поиск3]]=S!$C$4),"") -> 0 | O69: =INDEX(YL[ОКПО],MATCH(YL[[#This Row],[Строка]],YL[Поиск1],)) -> 204168 | P69: =IF(ISNUMBER(SEARCH(S!$C$3,YL[[#This Row],[Название полное]])),MAX($P$1:P68)+1,0) -> 68 | Q69: =INDEX(YL[Название полное],MATCH(YL[[#This Row],[Строка]],YL[ПоискГОЛ],)) -> АО "Волжский оргсинтез"
A70: 1 | B70: 62777 | C70: 583 | D70: 8624579 | E70: "Опытное Конструкторское Бюро Машиностроения имени И.И. Африкантова" | F70: АО "ОКБМ Африкантова" | G70: 65 | H70: 9 | I70: 900 | K70: =IF(ISNUMBER(SEARCH(S!$C$4,YL[[#This Row],[Название полное]])),MAX($K$1:K69)+1,0) -> 69 | L70: 69 | M70: =INDEX(YL[Название полное],MATCH(YL[[#This Row],[Строка]],YL[Поиск1],)) -> "Опытное Конструкторское Бюро Машиностроения имени И.И. Африкантова" | N70: =IFERROR(YL[[#This Row],[Строка]]*(YL[[#This Row],[Поиск3]]=S!$C$4),"") -> 0 | O70: =INDEX(YL[ОКПО],MATCH(YL[[#This Row],[Строка]],YL[Поиск1],)) -> 8624579 | P70: =IF(ISNUMBER(SEARCH(S!$C$3,YL[[#This Row],[Название полное]])),MAX($P$1:P69)+1,0) -> 69 | Q70: =INDEX(YL[Название полное],MATCH(YL[[#This Row],[Строка]],YL[ПоискГОЛ],)) -> "Опытное Конструкторское Бюро Машиностроения имени И.И. Африкантова"
A71: -1 | B71: 546889 | C71: 1574 | D71: 44122916 | E71: МУП "Городское упарвление жилищно-коммунальное хозяйство" | F71: МУП "ГОР.УЖКХ" | G71: 79 | H71: 1 | I71: 106 | K71: =IF(ISNUMBER(SEARCH(S!$C$4,YL[[#This Row],[Название полное]])),MAX($K$1:K70)+1,0) -> 70 | L71: 70 | M71: =INDEX(YL[Название полное],MATCH(YL[[#This Row],[Строка]],YL[Поиск1],)) -> МУП "Городское упарвление жилищно-коммунальное хозяйство" | N71: =IFERROR(YL[[#This Row],[Строка]]*(YL[[#This Row],[Поиск3]]=S!$C$4),"") -> 0 | O71: =INDEX(YL[ОКПО],MATCH(YL[[#This Row],[Строка]],YL[Поиск1],)) -> 44122916 | P71: =IF(ISNUMBER(SEARCH(S!$C$3,YL[[#This Row],[Название полное]])),MAX($P$1:P70)+1,0) -> 70 | Q71: =INDEX(YL[Название полное],MATCH(YL[[#This Row],[Строка]],YL[ПоискГОЛ],)) -> МУП "Городское упарвление жилищно-коммунальное хозяйство"
A72: 1 | B72: 3132 | C72: 1713 | D72: 70781737 | E72: Производственное подразделение "Новомосковская ГРЭС" филиала ПАО "Квадра" - "Центральная генерация" | F72: СТПОБП Новомосковская ГРЭС ФЛ ПАО "Квадра" - "Центральная генерация" | G72: 84 | H72: 1 | I72: 100 | K72: =IF(ISNUMBER(SEARCH(S!$C$4,YL[[#This Row],[Название полное]])),MAX($K$1:K71)+1,0) -> 71 | L72: 71 | M72: =INDEX(YL[Название полное],MATCH(YL[[#This Row],[Строка]],YL[Поиск1],)) -> Производственное подразделение "Новомосковская ГРЭС" филиала ПАО "Квадра" - "Центральная генерация" | N72: =IFERROR(YL[[#This Row],[Строка]]*(YL[[#This Row],[Поиск3]]=S!$C$4),"") -> 0 | O72: =INDEX(YL[ОКПО],MATCH(YL[[#This Row],[Строка]],YL[Поиск1],)) -> 70781737 | P72: =IF(ISNUMBER(SEARCH(S!$C$3,YL[[#This Row],[Название полное]])),MAX($P$1:P71)+1,0) -> 71 | Q72: =INDEX(YL[Название полное],MATCH(YL[[#This Row],[Строка]],YL[ПоискГОЛ],)) -> Производственное подразделение "Новомосковская ГРЭС" филиала ПАО "Квадра" - "Центральная генерация"
A73: 1 | B73: 546890 | C73: 1906 | D73: 52999705 | E73: ООО Лимонадная фабрика " Майкопская" | F73: ООО Лимонадная фабрика " Майкопская" | G73: 1 | H73: 11 | I73: 1105 | K73: =IF(ISNUMBER(SEARCH(S!$C$4,YL[[#This Row],[Название полное]])),MAX($K$1:K72)+1,0) -> 72 | L73: 72 | M73: =INDEX(YL[Название полное],MATCH(YL[[#This Row],[Строка]],YL[Поиск1],)) -> ООО Лимонадная фабрика " Майкопская" | N73: =IFERROR(YL[[#This Row],[Строка]]*(YL[[#This Row],[Поиск3]]=S!$C$4),"") -> 0 | O73: =INDEX(YL[ОКПО],MATCH(YL[[#This Row],[Строка]],YL[Поиск1],)) -> 52999705 | P73: =IF(ISNUMBER(SEARCH(S!$C$3,YL[[#This Row],[Название полное]])),MAX($P$1:P72)+1,0) -> 72 | Q73: =INDEX(YL[Название полное],MATCH(YL[[#This Row],[Строка]],YL[ПоискГОЛ],)) -> ООО Лимонадная фабрика " Майкопская"
A74: 1 | B74: 546891 | C74: 993 | D74: 65522100 | E74: Северо-Западный производственный комплекс - филиал ОАО "Объединенные электротехнические заводы" | F74: СЗПК - Филиал ОАО "ЭЛТЕЗА" | G74: 58 | H74: 9 | I74: 900 | K74: =IF(ISNUMBER(SEARCH(S!$C$4,YL[[#This Row],[Название полное]])),MAX($K$1:K73)+1,0) -> 73 | L74: 73 | M74: =INDEX(YL[Название полное],MATCH(YL[[#This Row],[Строка]],YL[Поиск1],)) -> Северо-Западный производственный комплекс - филиал ОАО "Объединенные электротехнические заводы" | N74: =IFERROR(YL[[#This Row],[Строка]]*(YL[[#This Row],[Поиск3]]=S!$C$4),"") -> 0 | O74: =INDEX(YL[ОКПО],MATCH(YL[[#This Row],[Строка]],YL[Поиск1],)) -> 65522100 | P74: =IF(ISNUMBER(SEARCH(S!$C$3,YL[[#This Row],[Название полное]])),MAX($P$1:P73)+1,0) -> 73 | Q74: =INDEX(YL[Название полное],MATCH(YL[[#This Row],[Строка]],YL[ПоискГОЛ],)) -> Северо-Западный производственный комплекс - филиал ОАО "Объединенные электротехнические заводы"
A75: 1 | B75: 116 | C75: 1699 | D75: 103786 | E75: Производственное подразделение "Алексинская ТЭЦ" филиала ПАО "Квадра" - "Центральная генерация" | F75: СТПОБП Алексинская ТЭЦ ФЛ ПАО "Квадра" - "Центральная генерация" | G75: 84 | H75: 1 | I75: 101 | K75: =IF(ISNUMBER(SEARCH(S!$C$4,YL[[#This Row],[Название полное]])),MAX($K$1:K74)+1,0) -> 74 | L75: 74 | M75: =INDEX(YL[Название полное],MATCH(YL[[#This Row],[Строка]],YL[Поиск1],)) -> Производственное подразделение "Алексинская ТЭЦ" филиала ПАО "Квадра" - "Центральная генерация" | N75: =IFERROR(YL[[#This Row],[Строка]]*(YL[[#This Row],[Поиск3]]=S!$C$4),"") -> 0 | O75: =INDEX(YL[ОКПО],MATCH(YL[[#This Row],[Строка]],YL[Поиск1],)) -> 103786 | P75: =IF(ISNUMBER(SEARCH(S!$C$3,YL[[#This Row],[Название полное]])),MAX($P$1:P74)+1,0) -> 74 | Q75: =INDEX(YL[Название полное],MATCH(YL[[#This Row],[Строка]],YL[ПоискГОЛ],)) -> Производственное подразделение "Алексинская ТЭЦ" филиала ПАО "Квадра" - "Центральная генерация"
A76: 1 | B76: 179558 | C76: 1726 | D76: 103792 | E76: Производственное подразделение "Ефремовская ТЭЦ" филиала ПАО "Квадра" - "Центральная генерация" | F76: СТПОБП Ефремовская ТЭЦ ФЛ ПАО ФЛ ПАО "Квадра" - "Центральная генерация" | G76: 84 | H76: 1 | I76: 101 | K76: =IF(ISNUMBER(SEARCH(S!$C$4,YL[[#This Row],[Название полное]])),MAX($K$1:K75)+1,0) -> 75 | L76: 75 | M76: =INDEX(YL[Название полное],MATCH(YL[[#This Row],[Строка]],YL[Поиск1],)) -> Производственное подразделение "Ефремовская ТЭЦ" филиала ПАО "Квадра" - "Центральная генерация" | N76: =IFERROR(YL[[#This Row],[Строка]]*(YL[[#This Row],[Поиск3]]=S!$C$4),"") -> 0 | O76: =INDEX(YL[ОКПО],MATCH(YL[[#This Row],[Строка]],YL[Поиск1],)) -> 103792 | P76: =IF(ISNUMBER(SEARCH(S!$C$3,YL[[#This Row],[Название полное]])),MAX($P$1:P75)+1,0) -> 75 | Q76: =INDEX(YL[Название полное],MATCH(YL[[#This Row],[Строка]],YL[ПоискГОЛ],)) -> Производственное подразделение "Ефремовская ТЭЦ" филиала ПАО "Квадра" - "Центральная генерация"
A77: 1 | B77: 1324 | C77: 1278 | D77: 5762312 | E77: АО "Новотроицкий завод хромовых соединений" | F77: АО "НЗХС" | G77: 69 | H77: 7 | I77: 702 | K77: =IF(ISNUMBER(SEARCH(S!$C$4,YL[[#This Row],[Название полное]])),MAX($K$1:K76)+1,0) -> 76 | L77: 76 | M77: =INDEX(YL[Название полное],MATCH(YL[[#This Row],[Строка]],YL[Поиск1],)) -> АО "Новотроицкий завод хромовых соединений" | N77: =IFERROR(YL[[#This Row],[Строка]]*(YL[[#This Row],[Поиск3]]=S!$C$4),"") -> 0 | O77: =INDEX(YL[ОКПО],MATCH(YL[[#This Row],[Строка]],YL[Поиск1],)) -> 5762312 | P77: =IF(ISNUMBER(SEARCH(S!$C$3,YL[[#This Row],[Название полное]])),MAX($P$1:P76)+1,0) -> 76 | Q77: =INDEX(YL[Название полное],MATCH(YL[[#This Row],[Строка]],YL[ПоискГОЛ],)) -> АО "Новотроицкий завод хромовых соединений"
A78: 1 | B78: 372 | C78: 1607 | D78: 196144 | E78: АО "Кировградский завод твердых сплавов" | F78: АО "КЗТС" | G78: 79 | H78: 7 | I78: 702 | K78: =IF(ISNUMBER(SEARCH(S!$C$4,YL[[#This Row],[Название полное]])),MAX($K$1:K77)+1,0) -> 77 | L78: 77 | M78: =INDEX(YL[Название полное],MATCH(YL[[#This Row],[Строка]],YL[Поиск1],)) -> АО "Кировградский завод твердых сплавов" | N78: =IFERROR(YL[[#This Row],[Строка]]*(YL[[#This Row],[Поиск3]]=S!$C$4),"") -> 0 | O78: =INDEX(YL[ОКПО],MATCH(YL[[#This Row],[Строка]],YL[Поиск1],)) -> 196144 | P78: =IF(ISNUMBER(SEARCH(S!$C$3,YL[[#This Row],[Название полное]])),MAX($P$1:P77)+1,0) -> 77 | Q78: =INDEX(YL[Название полное],MATCH(YL[[#This Row],[Строка]],YL[ПоискГОЛ],)) -> АО "Кировградский завод твердых сплавов"
A79: 1 | B79: 546892 | C79: 1271 | D79: 15411766 | E79: ООО "Природа" | F79: ООО "Природа" | G79: 69 | H79: 19 | I79: 1900 | K79: =IF(ISNUMBER(SEARCH(S!$C$4,YL[[#This Row],[Название полное]])),MAX($K$1:K78)+1,0) -> 78 | L79: 78 | M79: =INDEX(YL[Название полное],MATCH(YL[[#This Row],[Строка]],YL[Поиск1],)) -> ООО "Природа" | N79: =IFERROR(YL[[#This Row],[Строка]]*(YL[[#This Row],[Поиск3]]=S!$C$4),"") -> 0 | O79: =INDEX(YL[ОКПО],MATCH(YL[[#This Row],[Строка]],YL[Поиск1],)) -> 15411766 | P79: =IF(ISNUMBER(SEARCH(S!$C$3,YL[[#This Row],[Название полное]])),MAX($P$1:P78)+1,0) -> 78 | Q79: =INDEX(YL[Название полное],MATCH(YL[[#This Row],[Строка]],YL[ПоискГОЛ],)) -> ООО "Природа"
A80: 1 | B80: 499056 | C80: 373 | D80: 65807771 | E80: ООО "Актив" | F80: ООО "Актив" | G80: 43 | H80: 1 | I80: 106 | K80: =IF(ISNUMBER(SEARCH(S!$C$4,YL[[#This Row],[Название полное]])),MAX($K$1:K79)+1,0) -> 79 | L80: 79 | M80: =INDEX(YL[Название полное],MATCH(YL[[#This Row],[Строка]],YL[Поиск1],)) -> ООО "Актив" | N80: =IFERROR(YL[[#This Row],[Строка]]*(YL[[#This Row],[Поиск3]]=S!$C$4),"") -> 0 | O80: =INDEX(YL[ОКПО],MATCH(YL[[#This Row],[Строка]],YL[Поиск1],)) -> 65807771 | P80: =IF(ISNUMBER(SEARCH(S!$C$3,YL[[#This Row],[Название полное]])),MAX($P$1:P79)+1,0) -> 79 | Q80: =INDEX(YL[Название полное],MATCH(YL[[#This Row],[Строка]],YL[ПоискГОЛ],)) -> ООО "Актив"
A81: 1 | B81: 546895 | C81: 398 | D81: 10434892 | E81: ЗАО "Паросиловое хозяйство" | F81: ЗАО "Паросиловое хозяйство" | G81: 43 | H81: 1 | I81: 106 | K81: =IF(ISNUMBER(SEARCH(S!$C$4,YL[[#This Row],[Название полное]])),MAX($K$1:K80)+1,0) -> 80 | L81: 80 | M81: =INDEX(YL[Название полное],MATCH(YL[[#This Row],[Строка]],YL[Поиск1],)) -> ЗАО "Паросиловое хозяйство" | N81: =IFERROR(YL[[#This Row],[Строка]]*(YL[[#This Row],[Поиск3]]=S!$C$4),"") -> 0 | O81: =INDEX(YL[ОКПО],MATCH(YL[[#This Row],[Строка]],YL[Поиск1],)) -> 10434892 | P81: =IF(ISNUMBER(SEARCH(S!$C$3,YL[[#This Row],[Название полное]])),MAX($P$1:P80)+1,0) -> 80 | Q81: =INDEX(YL[Название полное],MATCH(YL[[#This Row],[Строка]],YL[ПоискГОЛ],)) -> ЗАО "Паросиловое хозяйство"
A82: 1 | B82: 546896 | C82: 1603 | D82: - | E82: Каменск-Уральское подразделение | G82: 79 | H82: 17 | I82: 1702 | K82: =IF(ISNUMBER(SEARCH(S!$C$4,YL[[#This Row],[Название полное]])),MAX($K$1:K81)+1,0) -> 81 | L82: 81 | M82: =INDEX(YL[Название полное],MATCH(YL[[#This Row],[Строка]],YL[Поиск1],)) -> Каменск-Уральское подразделение | N82: =IFERROR(YL[[#This Row],[Строка]]*(YL[[#This Row],[Поиск3]]=S!$C$4),"") -> 0 | O82: =INDEX(YL[ОКПО],MATCH(YL[[#This Row],[Строка]],YL[Поиск1],)) -> - | P82: =IF(ISNUMBER(SEARCH(S!$C$3,YL[[#This Row],[Название полное]])),MAX($P$1:P81)+1,0) -> 81 | Q82: =INDEX(YL[Название полное],MATCH(YL[[#This Row],[Строка]],YL[ПоискГОЛ],)) -> Каменск-Уральское подразделение
A83: 1 | B83: 546897 | C83: 1589 | D83: - | E83: Курьинское обособленное подразделение | G83: 79 | H83: 17 | I83: 1702 | K83: =IF(ISNUMBER(SEARCH(S!$C$4,YL[[#This Row],[Название полное]])),MAX($K$1:K82)+1,0) -> 82 | L83: 82 | M83: =INDEX(YL[Название полное],MATCH(YL[[#This Row],[Строка]],YL[Поиск1],)) -> Курьинское обособленное подразделение | N83: =IFERROR(YL[[#This Row],[Строка]]*(YL[[#This Row],[Поиск3]]=S!$C$4),"") -> 0 | O83: =INDEX(YL[ОКПО],MATCH(YL[[#This Row],[Строка]],YL[Поиск1],)) -> - | P83: =IF(ISNUMBER(SEARCH(S!$C$3,YL[[#This Row],[Название полное]])),MAX($P$1:P82)+1,0) -> 82 | Q83: =INDEX(YL[Название полное],MATCH(YL[[#This Row],[Строка]],YL[ПоискГОЛ],)) -> Курьинское обособленное подразделение
A84: 1 | B84: 546898 | C84: 1589 | D84: - | E84: Сухоложское подразделение | G84: 79 | H84: 17 | I84: 1702 | K84: =IF(ISNUMBER(SEARCH(S!$C$4,YL[[#This Row],[Название полное]])),MAX($K$1:K83)+1,0) -> 83 | L84: 83 | M84: =INDEX(YL[Название полное],MATCH(YL[[#This Row],[Строка]],YL[Поиск1],)) -> Сухоложское подразделение | N84: =IFERROR(YL[[#This Row],[Строка]]*(YL[[#This Row],[Поиск3]]=S!$C$4),"") -> 0 | O84: =INDEX(YL[ОКПО],MATCH(YL[[#This Row],[Строка]],YL[Поиск1],)) -> - | P84: =IF(ISNUMBER(SEARCH(S!$C$3,YL[[#This Row],[Название полное]])),MAX($P$1:P83)+1,0) -> 83 | Q84: =INDEX(YL[Название полное],MATCH(YL[[#This Row],[Строка]],YL[ПоискГОЛ],)) -> Сухоложское подразделение
A85: 1 | B85: 546899 | C85: 1598 | D85: - | E85: Асбестовское отделение по производству пропантов "ФОРЭС" | G85: 79 | H85: 17 | I85: 1702 | K85: =IF(ISNUMBER(SEARCH(S!$C$4,YL[[#This Row],[Название полное]])),MAX($K$1:K84)+1,0) -> 84 | L85: 84 | M85: =INDEX(YL[Название полное],MATCH(YL[[#This Row],[Строка]],YL[Поиск1],)) -> Асбестовское отделение по производству пропантов "ФОРЭС" | N85: =IFERROR(YL[[#This Row],[Строка]]*(YL[[#This Row],[Поиск3]]=S!$C$4),"") -> 0 | O85: =INDEX(YL[ОКПО],MATCH(YL[[#This Row],[Строка]],YL[Поиск1],)) -> - | P85: =IF(ISNUMBER(SEARCH(S!$C$3,YL[[#This Row],[Название полное]])),MAX($P$1:P84)+1,0) -> 84 | Q85: =INDEX(YL[Название полное],MATCH(YL[[#This Row],[Строка]],YL[ПоискГОЛ],)) -> Асбестовское отделение по производству пропантов "ФОРЭС"
A86: 1 | B86: 546870 | C86: 0 | D86: 50298370 | E86: ООО "ФОРЭС" | F86: ООО "ФОРЭС" | G86: 79 | H86: 17 | I86: 1702 | K86: =IF(ISNUMBER(SEARCH(S!$C$4,YL[[#This Row],[Название полное]])),MAX($K$1:K85)+1,0) -> 85 | L86: 85 | M86: =INDEX(YL[Название полное],MATCH(YL[[#This Row],[Строка]],YL[Поиск1],)) -> ООО "ФОРЭС" | N86: =IFERROR(YL[[#This Row],[Строка]]*(YL[[#This Row],[Поиск3]]=S!$C$4),"") -> 0 | O86: =INDEX(YL[ОКПО],MATCH(YL[[#This Row],[Строка]],YL[Поиск1],)) -> 50298370 | P86: =IF(ISNUMBER(SEARCH(S!$C$3,YL[[#This Row],[Название полное]])),MAX($P$1:P85)+1,0) -> 85 | Q86: =INDEX(YL[Название полное],MATCH(YL[[#This Row],[Строка]],YL[ПоискГОЛ],)) -> ООО "ФОРЭС"
A87: 1 | B87: 546900 | C87: 1729 | D87: 34609238 | E87: ООО "Биологические очистные сооружения -Эксплуатация" | F87: ООО "БОС-Эксплуатация" | G87: 84 | H87: 16 | I87: 1600 | K87: =IF(ISNUMBER(SEARCH(S!$C$4,YL[[#This Row],[Название полное]])),MAX($K$1:K86)+1,0) -> 86 | L87: 86 | M87: =INDEX(YL[Название полное],MATCH(YL[[#This Row],[Строка]],YL[Поиск1],)) -> ООО "Биологические очистные сооружения -Эксплуатация" | N87: =IFERROR(YL[[#This Row],[Строка]]*(YL[[#This Row],[Поиск3]]=S!$C$4),"") -> 0 | O87: =INDEX(YL[ОКПО],MATCH(YL[[#This Row],[Строка]],YL[Поиск1],)) -> 34609238 | P87: =IF(ISNUMBER(SEARCH(S!$C$3,YL[[#This Row],[Название полное]])),MAX($P$1:P86)+1,0) -> 86 | Q87: =INDEX(YL[Название полное],MATCH(YL[[#This Row],[Строка]],YL[ПоискГОЛ],)) -> ООО "Биологические очистные сооружения -Эксплуатация"
A88: 1 | B88: 546901 | C88: 1589 | D88: 40308481 | E88: ООО "СЛК Цемент" | F88: ООО "СЛК Цемент" | G88: 79 | H88: 12 | I88: 1200 | K88: =IF(ISNUMBER(SEARCH(S!$C$4,YL[[#This Row],[Название полное]])),MAX($K$1:K87)+1,0) -> 87 | L88: 87 | M88: =INDEX(YL[Название полное],MATCH(YL[[#This Row],[Строка]],YL[Поиск1],)) -> ООО "СЛК Цемент" | N88: =IFERROR(YL[[#This Row],[Строка]]*(YL[[#This Row],[Поиск3]]=S!$C$4),"") -> 0 | O88: =INDEX(YL[ОКПО],MATCH(YL[[#This Row],[Строка]],YL[Поиск1],)) -> 40308481 | P88: =IF(ISNUMBER(SEARCH(S!$C$3,YL[[#This Row],[Название полное]])),MAX($P$1:P87)+1,0) -> 87 | Q88: =INDEX(YL[Название полное],MATCH(YL[[#This Row],[Строка]],YL[ПоискГОЛ],)) -> ООО "СЛК Цемент"
A89: 1 | B89: 546902 | C89: 1616 | D89: 99325724 | E89: ООО "Полевской Технический Сервис" | F89: ООО "Полевской ТехСервис" | G89: 79 | H89: 9 | I89: 906 | K89: =IF(ISNUMBER(SEARCH(S!$C$4,YL[[#This Row],[Название полное]])),MAX($K$1:K88)+1,0) -> 88 | L89: 88 | M89: =INDEX(YL[Название полное],MATCH(YL[[#This Row],[Строка]],YL[Поиск1],)) -> ООО "Полевской Технический Сервис" | N89: =IFERROR(YL[[#This Row],[Строка]]*(YL[[#This Row],[Поиск3]]=S!$C$4),"") -> 0 | O89: =INDEX(YL[ОКПО],MATCH(YL[[#This Row],[Строка]],YL[Поиск1],)) -> 99325724 | P89: =IF(ISNUMBER(SEARCH(S!$C$3,YL[[#This Row],[Название полное]])),MAX($P$1:P88)+1,0) -> 88 | Q89: =INDEX(YL[Название полное],MATCH(YL[[#This Row],[Строка]],YL[ПоискГОЛ],)) -> ООО "Полевской Технический Сервис"
A90: 1 | B90: 546903 | C90: 1596 | D90: 16517490 | E90: АО "Регионгаз-инвест" | F90: АО "Регионгаз-инвест" | G90: 79 | H90: 1 | I90: 106 | K90: =IF(ISNUMBER(SEARCH(S!$C$4,YL[[#This Row],[Название полное]])),MAX($K$1:K89)+1,0) -> 89 | L90: 89 | M90: =INDEX(YL[Название полное],MATCH(YL[[#This Row],[Строка]],YL[Поиск1],)) -> АО "Регионгаз-инвест" | N90: =IFERROR(YL[[#This Row],[Строка]]*(YL[[#This Row],[Поиск3]]=S!$C$4),"") -> 0 | O90: =INDEX(YL[ОКПО],MATCH(YL[[#This Row],[Строка]],YL[Поиск1],)) -> 16517490 | P90: =IF(ISNUMBER(SEARCH(S!$C$3,YL[[#This Row],[Название полное]])),MAX($P$1:P89)+1,0) -> 89 | Q90: =INDEX(YL[Название полное],MATCH(YL[[#This Row],[Строка]],YL[ПоискГОЛ],)) -> АО "Регионгаз-инвест"
A91: 1 | B91: 1787 | C91: 398 | D91: 14343904 | E91: МУП "Брянский городской водоканал" | F91: МУП "Брянскгорводоканал" | G91: 43 | H91: 16 | I91: 1600 | K91: =IF(ISNUMBER(SEARCH(S!$C$4,YL[[#This Row],[Название полное]])),MAX($K$1:K90)+1,0) -> 90 | L91: 90 | M91: =INDEX(YL[Название полное],MATCH(YL[[#This Row],[Строка]],YL[Поиск1],)) -> МУП "Брянский городской водоканал" | N91: =IFERROR(YL[[#This Row],[Строка]]*(YL[[#This Row],[Поиск3]]=S!$C$4),"") -> 0 | O91: =INDEX(YL[ОКПО],MATCH(YL[[#This Row],[Строка]],YL[Поиск1],)) -> 14343904 | P91: =IF(ISNUMBER(SEARCH(S!$C$3,YL[[#This Row],[Название полное]])),MAX($P$1:P90)+1,0) -> 90 | Q91: =INDEX(YL[Название полное],MATCH(YL[[#This Row],[Строка]],YL[ПоискГОЛ],)) -> МУП "Брянский городской водоканал"
A92: 1 | B92: 546894 | C92: 398 | D92: 78608754 | E92: МУП "Жилкомсервис" Бежицкого района г.Брянска | F92: МУП "Жилкомсервис" Бежицкого района г.Брянска | G92: 43 | H92: 1 | I92: 106 | K92: =IF(ISNUMBER(SEARCH(S!$C$4,YL[[#This Row],[Название полное]])),MAX($K$1:K91)+1,0) -> 91 | L92: 91 | M92: =INDEX(YL[Название полное],MATCH(YL[[#This Row],[Строка]],YL[Поиск1],)) -> МУП "Жилкомсервис" Бежицкого района г.Брянска | N92: =IFERROR(YL[[#This Row],[Строка]]*(YL[[#This Row],[Поиск3]]=S!$C$4),"") -> 0 | O92: =INDEX(YL[ОКПО],MATCH(YL[[#This Row],[Строка]],YL[Поиск1],)) -> 78608754 | P92: =IF(ISNUMBER(SEARCH(S!$C$3,YL[[#This Row],[Название полное]])),MAX($P$1:P91)+1,0) -> 91 | Q92: =INDEX(YL[Название полное],MATCH(YL[[#This Row],[Строка]],YL[ПоискГОЛ],)) -> МУП "Жилкомсервис" Бежицкого района г.Брянска
A93: 1 | B93: 546904 | C93: 2150 | D93: 76863956 | E93: ООО "Птицефабрика Акашевская" | F93: ООО "Птицефабрика Акашевская" | G93: 11 | H93: 13 | I93: 1301 | K93: =IF(ISNUMBER(SEARCH(S!$C$4,YL[[#This Row],[Название полное]])),MAX($K$1:K92)+1,0) -> 92 | L93: 92 | M93: =INDEX(YL[Название полное],MATCH(YL[[#This Row],[Строка]],YL[Поиск1],)) -> ООО "Птицефабрика Акашевская" | N93: =IFERROR(YL[[#This Row],[Строка]]*(YL[[#This Row],[Поиск3]]=S!$C$4),"") -> 0 | O93: =INDEX(YL[ОКПО],MATCH(YL[[#This Row],[Строка]],YL[Поиск1],)) -> 76863956 | P93: =IF(ISNUMBER(SEARCH(S!$C$3,YL[[#This Row],[Название полное]])),MAX($P$1:P92)+1,0) -> 92 | Q93: =INDEX(YL[Название полное],MATCH(YL[[#This Row],[Строка]],YL[ПоискГОЛ],)) -> ООО "Птицефабрика Акашевская"
A94: 1 | B94: 346 | C94: 1617 | D94: 194441 | E94: ПАО "Среднеуральский медеплавильный завод" | F94: ПАО "СУМЗ" | G94: 79 | H94: 7 | I94: 702 | K94: =IF(ISNUMBER(SEARCH(S!$C$4,YL[[#This Row],[Название полное]])),MAX($K$1:K93)+1,0) -> 93 | L94: 93 | M94: =INDEX(YL[Название полное],MATCH(YL[[#This Row],[Строка]],YL[Поиск1],)) -> ПАО "Среднеуральский медеплавильный завод" | N94: =IFERROR(YL[[#This Row],[Строка]]*(YL[[#This Row],[Поиск3]]=S!$C$4),"") -> 0 | O94: =INDEX(YL[ОКПО],MATCH(YL[[#This Row],[Строка]],YL[Поиск1],)) -> 194441 | P94: =IF(ISNUMBER(SEARCH(S!$C$3,YL[[#This Row],[Название полное]])),MAX($P$1:P93)+1,0) -> 93 | Q94: =INDEX(YL[Название полное],MATCH(YL[[#This Row],[Строка]],YL[ПоискГОЛ],)) -> ПАО "Среднеуральский медеплавильный завод"
A95: 1 | B95: 546905 | C95: 0 | D95: 45045224 | E95: ООО "Газпромнефть-Терминал" | F95: ООО "Газпромнефть-Терминал" | G95: 79 | H95: 15 | I95: 1505 | K95: =IF(ISNUMBER(SEARCH(S!$C$4,YL[[#This Row],[Название полное]])),MAX($K$1:K94)+1,0) -> 94 | L95: 94 | M95: =INDEX(YL[Название полное],MATCH(YL[[#This Row],[Строка]],YL[Поиск1],)) -> ООО "Газпромнефть-Терминал" | N95: =IFERROR(YL[[#This Row],[Строка]]*(YL[[#This Row],[Поиск3]]=S!$C$4),"") -> 0 | O95: =INDEX(YL[ОКПО],MATCH(YL[[#This Row],[Строка]],YL[Поиск1],)) -> 45045224 | P95: =IF(ISNUMBER(SEARCH(S!$C$3,YL[[#This Row],[Название полное]])),MAX($P$1:P94)+1,0) -> 94 | Q95: =INDEX(YL[Название полное],MATCH(YL[[#This Row],[Строка]],YL[ПоискГОЛ],)) -> ООО "Газпромнефть-Терминал"
A96: 1 | B96: 3335 | C96: 1299 | D96: 25981855 | E96: Филиал ПАО "Квадра" - "Орловская генерация" | F96: Филиал ПАО "Квадра" - "Орловская генерация" | G96: 70 | H96: 1 | I96: 101 | K96: =IF(ISNUMBER(SEARCH(S!$C$4,YL[[#This Row],[Название полное]])),MAX($K$1:K95)+1,0) -> 95 | L96: 95 | M96: =INDEX(YL[Название полное],MATCH(YL[[#This Row],[Строка]],YL[Поиск1],)) -> Филиал ПАО "Квадра" - "Орловская генерация" | N96: =IFERROR(YL[[#This Row],[Строка]]*(YL[[#This Row],[Поиск3]]=S!$C$4),"") -> 0 | O96: =INDEX(YL[ОКПО],MATCH(YL[[#This Row],[Строка]],YL[Поиск1],)) -> 25981855 | P96: =IF(ISNUMBER(SEARCH(S!$C$3,YL[[#This Row],[Название полное]])),MAX($P$1:P95)+1,0) -> 95 | Q96: =INDEX(YL[Название полное],MATCH(YL[[#This Row],[Строка]],YL[ПоискГОЛ],)) -> Филиал ПАО "Квадра" - "Орловская генерация"
A97: 1 | B97: 179915 | C97: 2115 | D97: 106885 | E97: Филиал ОАО "Межрегиональная распределительная сетевая компания Северо-Запада" "Карелэнерго" | F97: ФЛ ОАО "МРСК Северо-Запада" "Карелэнерго" | G97: 9 | H97: 1 | I97: 105 | K97: =IF(ISNUMBER(SEARCH(S!$C$4,YL[[#This Row],[Название полное]])),MAX($K$1:K96)+1,0) -> 96 | L97: 96 | M97: =INDEX(YL[Название полное],MATCH(YL[[#This Row],[Строка]],YL[Поиск1],)) -> Филиал ОАО "Межрегиональная распределительная сетевая компания Северо-Запада" "Карелэнерго" | N97: =IFERROR(YL[[#This Row],[Строка]]*(YL[[#This Row],[Поиск3]]=S!$C$4),"") -> 0 | O97: =INDEX(YL[ОКПО],MATCH(YL[[#This Row],[Строка]],YL[Поиск1],)) -> 106885 | P97: =IF(ISNUMBER(SEARCH(S!$C$3,YL[[#This Row],[Название полное]])),MAX($P$1:P96)+1,0) -> 96 | Q97: =INDEX(YL[Название полное],MATCH(YL[[#This Row],[Строка]],YL[ПоискГОЛ],)) -> Филиал ОАО "Межрегиональная распределительная сетевая компания Северо-Запада" "Карелэнерго"
A98: 1 | B98: 546907 | C98: 1026 | D98: 106158 | E98: Филиал "Магаданская ТЭЦ" ОАО "Магаданэнерго" | F98: ФЛ "Магаданская ТЭЦ" ОАО "Магаданэнерго" | G98: 61 | H98: 1 | I98: 101 | K98: =IF(ISNUMBER(SEARCH(S!$C$4,YL[[#This Row],[Название полное]])),MAX($K$1:K97)+1,0) -> 97 | L98: 97 | M98: =INDEX(YL[Название полное],MATCH(YL[[#This Row],[Строка]],YL[Поиск1],)) -> Филиал "Магаданская ТЭЦ" ОАО "Магаданэнерго" | N98: =IFERROR(YL[[#This Row],[Строка]]*(YL[[#This Row],[Поиск3]]=S!$C$4),"") -> 0 | O98: =INDEX(YL[ОКПО],MATCH(YL[[#This Row],[Строка]],YL[Поиск1],)) -> 106158 | P98: =IF(ISNUMBER(SEARCH(S!$C$3,YL[[#This Row],[Название полное]])),MAX($P$1:P97)+1,0) -> 97 | Q98: =INDEX(YL[Название полное],MATCH(YL[[#This Row],[Строка]],YL[ПоискГОЛ],)) -> Филиал "Магаданская ТЭЦ" ОАО "Магаданэнерго"
A99: 1 | B99: 546908 | C99: 261 | D99: 19192195 | E99: МУП Ванинского МР "Янтарь" | F99: МУП "Янтарь" | G99: 38 | H99: 1 | I99: 106 | K99: =IF(ISNUMBER(SEARCH(S!$C$4,YL[[#This Row],[Название полное]])),MAX($K$1:K98)+1,0) -> 98 | L99: 98 | M99: =INDEX(YL[Название полное],MATCH(YL[[#This Row],[Строка]],YL[Поиск1],)) -> МУП Ванинского МР "Янтарь" | N99: =IFERROR(YL[[#This Row],[Строка]]*(YL[[#This Row],[Поиск3]]=S!$C$4),"") -> 0 | O99: =INDEX(YL[ОКПО],MATCH(YL[[#This Row],[Строка]],YL[Поиск1],)) -> 19192195 | P99: =IF(ISNUMBER(SEARCH(S!$C$3,YL[[#This Row],[Название полное]])),MAX($P$1:P98)+1,0) -> 98 | Q99: =INDEX(YL[Название полное],MATCH(YL[[#This Row],[Строка]],YL[ПоискГОЛ],)) -> МУП Ванинского МР "Янтарь"
A100: 1 | B100: 390641 | C100: 278 | D100: 57363716 | E100: МУП "Комплексное обслуживание, благоустройство и ремонт Ленинского округа" г. Комсомольска-на-Амуре | F100: МУП "КОБР ЛО" | G100: 38 | H100: 16 | I100: 1604 | K100: =IF(ISNUMBER(SEARCH(S!$C$4,YL[[#This Row],[Название полное]])),MAX($K$1:K99)+1,0) -> 99 | L100: 99 | M100: =INDEX(YL[Название полное],MATCH(YL[[#This Row],[Строка]],YL[Поиск1],)) -> МУП "Комплексное обслуживание, благоустройство и ремонт Ленинского округа" г. Комсомольска-на-Амуре | N100: =IFERROR(YL[[#This Row],[Строка]]*(YL[[#This Row],[Поиск3]]=S!$C$4),"") -> 0 | O100: =INDEX(YL[ОКПО],MATCH(YL[[#This Row],[Строка]],YL[Поиск1],)) -> 57363716 | P100: =IF(ISNUMBER(SEARCH(S!$C$3,YL[[#This Row],[Название полное]])),MAX($P$1:P99)+1,0) -> 99 | Q100: =INDEX(YL[Название полное],MATCH(YL[[#This Row],[Строка]],YL[ПоискГОЛ],)) -> МУП "Комплексное обслуживание, благоустройство и ремонт Ленинского округа" г. Комсомольска-на-Амуре
A101: 1 | B101: 303 | C101: 1603 | D101: 186631 | E101: АО "Синарский трубный завод" | F101: АО "СИНТЗ" | G101: 79 | H101: 6 | I101: 604 | K101: =IF(ISNUMBER(SEARCH(S!$C$4,YL[[#This Row],[Название полное]])),MAX($K$1:K100)+1,0) -> 100 | L101: 100 | M101: =INDEX(YL[Название полное],MATCH(YL[[#This Row],[Строка]],YL[Поиск1],)) -> АО "Синарский трубный завод" | N101: =IFERROR(YL[[#This Row],[Строка]]*(YL[[#This Row],[Поиск3]]=S!$C$4),"") -> 0 | O101: =INDEX(YL[ОКПО],MATCH(YL[[#This Row],[Строка]],YL[Поиск1],)) -> 186631 | P101: =IF(ISNUMBER(SEARCH(S!$C$3,YL[[#This Row],[Название полное]])),MAX($P$1:P100)+1,0) -> 100 | Q101: =INDEX(YL[Название полное],MATCH(YL[[#This Row],[Строка]],YL[ПоискГОЛ],)) -> АО "Синарский трубный завод"
A102: 1 | B102: 546909 | C102: 1743 | D102: 15383644 | E102: АО "Ачимгаз" | F102: АО "Ачимгаз" | G102: 32 | H102: 4 | I102: 400 | K102: =IF(ISNUMBER(SEARCH(S!$C$4,YL[[#This Row],[Название полное]])),MAX($K$1:K101)+1,0) -> 101 | L102: 101 | M102: =INDEX(YL[Название полное],MATCH(YL[[#This Row],[Строка]],YL[Поиск1],)) -> АО "Ачимгаз" | N102: =IFERROR(YL[[#This Row],[Строка]]*(YL[[#This Row],[Поиск3]]=S!$C$4),"") -> 0 | O102: =INDEX(YL[ОКПО],MATCH(YL[[#This Row],[Строка]],YL[Поиск1],)) -> 15383644 | P102: =IF(ISNUMBER(SEARCH(S!$C$3,YL[[#This Row],[Название полное]])),MAX($P$1:P101)+1,0) -> 101 | Q102: =INDEX(YL[Название полное],MATCH(YL[[#This Row],[Строка]],YL[ПоискГОЛ],)) -> АО "Ачимгаз"
A103: 1 | B103: 546910 | C103: 1596 | D103: 36849840 | E103: АО "Уральский электромеханический завод" | F103: АО "УЭМЗ" | G103: 79 | H103: 9 | I103: 905 | K103: =IF(ISNUMBER(SEARCH(S!$C$4,YL[[#This Row],[Название полное]])),MAX($K$1:K102)+1,0) -> 102 | L103: 102 | M103: =INDEX(YL[Название полное],MATCH(YL[[#This Row],[Строка]],YL[Поиск1],)) -> АО "Уральский электромеханический завод" | N103: =IFERROR(YL[[#This Row],[Строка]]*(YL[[#This Row],[Поиск3]]=S!$C$4),"") -> 0 | O103: =INDEX(YL[ОКПО],MATCH(YL[[#This Row],[Строка]],YL[Поиск1],)) -> 36849840 | P103: =IF(ISNUMBER(SEARCH(S!$C$3,YL[[#This Row],[Название полное]])),MAX($P$1:P102)+1,0) -> 102 | Q103: =INDEX(YL[Название полное],MATCH(YL[[#This Row],[Строка]],YL[ПоискГОЛ],)) -> АО "Уральский электромеханический завод"
A104: 1 | B104: 546912 | C104: 978 | D104: 302907 | E104: АО "БТК Групп" | F104: АО "БТК Групп" | G104: 58 | H104: 18 | I104: 1800 | K104: =IF(ISNUMBER(SEARCH(S!$C$4,YL[[#This Row],[Название полное]])),MAX($K$1:K103)+1,0) -> 103 | L104: 103 | M104: =INDEX(YL[Название полное],MATCH(YL[[#This Row],[Строка]],YL[Поиск1],)) -> АО "БТК Групп" | N104: =IFERROR(YL[[#This Row],[Строка]]*(YL[[#This Row],[Поиск3]]=S!$C$4),"") -> 0 | O104: =INDEX(YL[ОКПО],MATCH(YL[[#This Row],[Строка]],YL[Поиск1],)) -> 302907 | P104: =IF(ISNUMBER(SEARCH(S!$C$3,YL[[#This Row],[Название полное]])),MAX($P$1:P103)+1,0) -> 103 | Q104: =INDEX(YL[Название полное],MATCH(YL[[#This Row],[Строка]],YL[ПоискГОЛ],)) -> АО "БТК Групп"
A105: 1 | B105: 546911 | C105: 978 | D105: 5270260 | E105: Подпорожская фабрика "Труд" Филиал ЗАО "Труд" | F105: ФЛ ЗАО "Труд" | G105: 58 | H105: 18 | I105: 1800 | K105: =IF(ISNUMBER(SEARCH(S!$C$4,YL[[#This Row],[Название полное]])),MAX($K$1:K104)+1,0) -> 104 | L105: 104 | M105: =INDEX(YL[Название полное],MATCH(YL[[#This Row],[Строка]],YL[Поиск1],)) -> Подпорожская фабрика "Труд" Филиал ЗАО "Труд" | N105: =IFERROR(YL[[#This Row],[Строка]]*(YL[[#This Row],[Поиск3]]=S!$C$4),"") -> 0 | O105: =INDEX(YL[ОКПО],MATCH(YL[[#This Row],[Строка]],YL[Поиск1],)) -> 5270260 | P105: =IF(ISNUMBER(SEARCH(S!$C$3,YL[[#This Row],[Название полное]])),MAX($P$1:P104)+1,0) -> 104 | Q105: =INDEX(YL[Название полное],MATCH(YL[[#This Row],[Строка]],YL[ПоискГОЛ],)) -> Подпорожская фабрика "Труд" Филиал ЗАО "Труд"
A106: 1 | B106: 546913 | C106: 1784 | D106: 87813281 | E106: МБУ "Юг-Сервис" МО "Новоспасское городское поселение" | F106: МБУ "Юг-Сервис" | G106: 86 | H106: 1 | I106: 106 | K106: =IF(ISNUMBER(SEARCH(S!$C$4,YL[[#This Row],[Название полное]])),MAX($K$1:K105)+1,0) -> 105 | L106: 105 | M106: =INDEX(YL[Название полное],MATCH(YL[[#This Row],[Строка]],YL[Поиск1],)) -> МБУ "Юг-Сервис" МО "Новоспасское городское поселение" | N106: =IFERROR(YL[[#This Row],[Строка]]*(YL[[#This Row],[Поиск3]]=S!$C$4),"") -> 0 | O106: =INDEX(YL[ОКПО],MATCH(YL[[#This Row],[Строка]],YL[Поиск1],)) -> 87813281 | P106: =IF(ISNUMBER(SEARCH(S!$C$3,YL[[#This Row],[Название полное]])),MAX($P$1:P105)+1,0) -> 105 | Q106: =INDEX(YL[Название полное],MATCH(YL[[#This Row],[Строка]],YL[ПоискГОЛ],)) -> МБУ "Юг-Сервис" МО "Новоспасское городское поселение"
A107: 1 | B107: 1697 | C107: 1615 | D107: 12281990 | E107: ОАО "Уральский трубный завод" | F107: ОАО "Уралтрубпром" | G107: 79 | H107: 6 | I107: 604 | K107: =IF(ISNUMBER(SEARCH(S!$C$4,YL[[#This Row],[Название полное]])),MAX($K$1:K106)+1,0) -> 106 | L107: 106 | M107: =INDEX(YL[Название полное],MATCH(YL[[#This Row],[Строка]],YL[Поиск1],)) -> ОАО "Уральский трубный завод" | N107: =IFERROR(YL[[#This Row],[Строка]]*(YL[[#This Row],[Поиск3]]=S!$C$4),"") -> 0 | O107: =INDEX(YL[ОКПО],MATCH(YL[[#This Row],[Строка]],YL[Поиск1],)) -> 12281990 | P107: =IF(ISNUMBER(SEARCH(S!$C$3,YL[[#This Row],[Название полное]])),MAX($P$1:P106)+1,0) -> 106 | Q107: =INDEX(YL[Название полное],MATCH(YL[[#This Row],[Строка]],YL[ПоискГОЛ],)) -> ОАО "Уральский трубный завод"
A108: -1 | B108: 3272 | C108: 797 | D108: 80298858 | E108: АО "СУЭК-Кузбасс" | F108: АО "СУЭК-Кузбасс" | G108: 53 | H108: 5 | I108: 500 | K108: =IF(ISNUMBER(SEARCH(S!$C$4,YL[[#This Row],[Название полное]])),MAX($K$1:K107)+1,0) -> 107 | L108: 107 | M108: =INDEX(YL[Название полное],MATCH(YL[[#This Row],[Строка]],YL[Поиск1],)) -> АО "СУЭК-Кузбасс" | N108: =IFERROR(YL[[#This Row],[Строка]]*(YL[[#This Row],[Поиск3]]=S!$C$4),"") -> 0 | O108: =INDEX(YL[ОКПО],MATCH(YL[[#This Row],[Строка]],YL[Поиск1],)) -> 80298858 | P108: =IF(ISNUMBER(SEARCH(S!$C$3,YL[[#This Row],[Название полное]])),MAX($P$1:P107)+1,0) -> 107 | Q108: =INDEX(YL[Название полное],MATCH(YL[[#This Row],[Строка]],YL[ПоискГОЛ],)) -> АО "СУЭК-Кузбасс"
A109: 1 | B109: 546914 | C109: 986 | D109: 3965784 | E109: ООО "Лужское предприятие "Бриз" | F109: ООО "Бриз" | G109: 58 | H109: 9 | I109: 900 | K109: =IF(ISNUMBER(SEARCH(S!$C$4,YL[[#This Row],[Название полное]])),MAX($K$1:K108)+1,0) -> 108 | L109: 108 | M109: =INDEX(YL[Название полное],MATCH(YL[[#This Row],[Строка]],YL[Поиск1],)) -> ООО "Лужское предприятие "Бриз" | N109: =IFERROR(YL[[#This Row],[Строка]]*(YL[[#This Row],[Поиск3]]=S!$C$4),"") -> 0 | O109: =INDEX(YL[ОКПО],MATCH(YL[[#This Row],[Строка]],YL[Поиск1],)) -> 3965784 | P109: =IF(ISNUMBER(SEARCH(S!$C$3,YL[[#This Row],[Название полное]])),MAX($P$1:P108)+1,0) -> 108 | Q109: =INDEX(YL[Название полное],MATCH(YL[[#This Row],[Строка]],YL[ПоискГОЛ],)) -> ООО "Лужское предприятие "Бриз"
A110: 1 | B110: 179264 | C110: 1128 | D110: 78345898 | E110: АО "Северо-Западная Фосфорная Компания" | F110: АО "СЗФК" | G110: 64 | H110: 8 | I110: 800 | K110: =IF(ISNUMBER(SEARCH(S!$C$4,YL[[#This Row],[Название полное]])),MAX($K$1:K109)+1,0) -> 109 | L110: 109 | M110: =INDEX(YL[Название полное],MATCH(YL[[#This Row],[Строка]],YL[Поиск1],)) -> АО "Северо-Западная Фосфорная Компания" | N110: =IFERROR(YL[[#This Row],[Строка]]*(YL[[#This Row],[Поиск3]]=S!$C$4),"") -> 0 | O110: =INDEX(YL[ОКПО],MATCH(YL[[#This Row],[Строка]],YL[Поиск1],)) -> 78345898 | P110: =IF(ISNUMBER(SEARCH(S!$C$3,YL[[#This Row],[Название полное]])),MAX($P$1:P109)+1,0) -> 109 | Q110: =INDEX(YL[Название полное],MATCH(YL[[#This Row],[Строка]],YL[ПоискГОЛ],)) -> АО "Северо-Западная Фосфорная Компания"
A111: 1 | B111: 104 | C111: 1089 | D111: 102930 | E111: Филиал "Шатурская ГРЭС" ПАО "Юнипро" | F111: ФЛ "Шатурская ГРЭС" ПАО "Юнипро" | G111: 62 | H111: 1 | I111: 100 | K111: =IF(ISNUMBER(SEARCH(S!$C$4,YL[[#This Row],[Название полное]])),MAX($K$1:K110)+1,0) -> 110 | L111: 110 | M111: =INDEX(YL[Название полное],MATCH(YL[[#This Row],[Строка]],YL[Поиск1],)) -> Филиал "Шатурская ГРЭС" ПАО "Юнипро" | N111: =IFERROR(YL[[#This Row],[Строка]]*(YL[[#This Row],[Поиск3]]=S!$C$4),"") -> 0 | O111: =INDEX(YL[ОКПО],MATCH(YL[[#This Row],[Строка]],YL[Поиск1],)) -> 102930 | P111: =IF(ISNUMBER(SEARCH(S!$C$3,YL[[#This Row],[Название полное]])),MAX($P$1:P110)+1,0) -> 110 | Q111: =INDEX(YL[Название полное],MATCH(YL[[#This Row],[Строка]],YL[ПоискГОЛ],)) -> Филиал "Шатурская ГРЭС" ПАО "Юнипро"
A112: 1 | B112: 546915 | C112: 1601 | D112: 15045474 | E112: "Марсятское рудоуправление" филиал АО "Серовский завод ферросплавов" | F112: ФЛ Марсятское рудоуправление АО "СЗФ" | G112: 79 | H112: 12 | I112: 1202 | K112: =IF(ISNUMBER(SEARCH(S!$C$4,YL[[#This Row],[Название полное]])),MAX($K$1:K111)+1,0) -> 111 | L112: 111 | M112: =INDEX(YL[Название полное],MATCH(YL[[#This Row],[Строка]],YL[Поиск1],)) -> "Марсятское рудоуправление" филиал АО "Серовский завод ферросплавов" | N112: =IFERROR(YL[[#This Row],[Строка]]*(YL[[#This Row],[Поиск3]]=S!$C$4),"") -> 0 | O112: =INDEX(YL[ОКПО],MATCH(YL[[#This Row],[Строка]],YL[Поиск1],)) -> 15045474 | P112: =IF(ISNUMBER(SEARCH(S!$C$3,YL[[#This Row],[Название полное]])),MAX($P$1:P111)+1,0) -> 111 | Q112: =INDEX(YL[Название полное],MATCH(YL[[#This Row],[Строка]],YL[ПоискГОЛ],)) -> "Марсятское рудоуправление" филиал АО "Серовский завод ферросплавов"
A113: 1 | B113: 299 | C113: 1619 | D113: 186499 | E113: АО "Серовский завод ферросплавов" | F113: АО "СЗФ" | G113: 79 | H113: 6 | I113: 602 | K113: =IF(ISNUMBER(SEARCH(S!$C$4,YL[[#This Row],[Название полное]])),MAX($K$1:K112)+1,0) -> 112 | L113: 112 | M113: =INDEX(YL[Название полное],MATCH(YL[[#This Row],[Строка]],YL[Поиск1],)) -> АО "Серовский завод ферросплавов" | N113: =IFERROR(YL[[#This Row],[Строка]]*(YL[[#This Row],[Поиск3]]=S!$C$4),"") -> 0 | O113: =INDEX(YL[ОКПО],MATCH(YL[[#This Row],[Строка]],YL[Поиск1],)) -> 186499 | P113: =IF(ISNUMBER(SEARCH(S!$C$3,YL[[#This Row],[Название полное]])),MAX($P$1:P112)+1,0) -> 112 | Q113: =INDEX(YL[Название полное],MATCH(YL[[#This Row],[Строка]],YL[ПоискГОЛ],)) -> АО "Серовский завод ферросплавов"
A114: 1 | B114: 546906 | C114: 378 | D114: 10457290 | E114: МУП Жуковского района "Водоканал" | F114: МУП "Водоканал" | G114: 43 | H114: 16 | I114: 1600 | K114: =IF(ISNUMBER(SEARCH(S!$C$4,YL[[#This Row],[Название полное]])),MAX($K$1:K113)+1,0) -> 113 | L114: 113 | M114: =INDEX(YL[Название полное],MATCH(YL[[#This Row],[Строка]],YL[Поиск1],)) -> МУП Жуковского района "Водоканал" | N114: =IFERROR(YL[[#This Row],[Строка]]*(YL[[#This Row],[Поиск3]]=S!$C$4),"") -> 0 | O114: =INDEX(YL[ОКПО],MATCH(YL[[#This Row],[Строка]],YL[Поиск1],)) -> 10457290 | P114: =IF(ISNUMBER(SEARCH(S!$C$3,YL[[#This Row],[Название полное]])),MAX($P$1:P113)+1,0) -> 113 | Q114: =INDEX(YL[Название полное],MATCH(YL[[#This Row],[Строка]],YL[ПоискГОЛ],)) -> МУП Жуковского района "Водоканал"
A115: 1 | B115: 546916 | C115: 1194 | D115: 7552286 | E115: АО "Бердский электромеханический завод" | F115: АО "БЭМЗ" | G115: 67 | H115: 9 | I115: 900 | K115: =IF(ISNUMBER(SEARCH(S!$C$4,YL[[#This Row],[Название полное]])),MAX($K$1:K114)+1,0) -> 114 | L115: 114 | M115: =INDEX(YL[Название полное],MATCH(YL[[#This Row],[Строка]],YL[Поиск1],)) -> АО "Бердский электромеханический завод" | N115: =IFERROR(YL[[#This Row],[Строка]]*(YL[[#This Row],[Поиск3]]=S!$C$4),"") -> 0 | O115: =INDEX(YL[ОКПО],MATCH(YL[[#This Row],[Строка]],YL[Поиск1],)) -> 7552286 | P115: =IF(ISNUMBER(SEARCH(S!$C$3,YL[[#This Row],[Название полное]])),MAX($P$1:P114)+1,0) -> 114 | Q115: =INDEX(YL[Название полное],MATCH(YL[[#This Row],[Строка]],YL[ПоискГОЛ],)) -> АО "Бердский электромеханический завод"
A116: 1 | B116: 546917 | C116: 1564 | D116: 24553873 | E116: ООО "Бриллиант" | F116: ООО "Бриллиант" | G116: 78 | H116: 1 | I116: 107 | K116: =IF(ISNUMBER(SEARCH(S!$C$4,YL[[#This Row],[Название полное]])),MAX($K$1:K115)+1,0) -> 115 | L116: 115 | M116: =INDEX(YL[Название полное],MATCH(YL[[#This Row],[Строка]],YL[Поиск1],)) -> ООО "Бриллиант" | N116: =IFERROR(YL[[#This Row],[Строка]]*(YL[[#This Row],[Поиск3]]=S!$C$4),"") -> 0 | O116: =INDEX(YL[ОКПО],MATCH(YL[[#This Row],[Строка]],YL[Поиск1],)) -> 24553873 | P116: =IF(ISNUMBER(SEARCH(S!$C$3,YL[[#This Row],[Название полное]])),MAX($P$1:P115)+1,0) -> 115 | Q116: =INDEX(YL[Название полное],MATCH(YL[[#This Row],[Строка]],YL[ПоискГОЛ],)) -> ООО "Бриллиант"
A117: 1 | B117: 1741 | C117: 2357 | D117: 13120272 | E117: АО "Полюс Алдан" | F117: АО "Полюс Алдан" | G117: 21 | H117: 7 | I117: 701 | K117: =IF(ISNUMBER(SEARCH(S!$C$4,YL[[#This Row],[Название полное]])),MAX($K$1:K116)+1,0) -> 116 | L117: 116 | M117: =INDEX(YL[Название полное],MATCH(YL[[#This Row],[Строка]],YL[Поиск1],)) -> АО "Полюс Алдан" | N117: =IFERROR(YL[[#This Row],[Строка]]*(YL[[#This Row],[Поиск3]]=S!$C$4),"") -> 0 | O117: =INDEX(YL[ОКПО],MATCH(YL[[#This Row],[Строка]],YL[Поиск1],)) -> 13120272 | P117: =IF(ISNUMBER(SEARCH(S!$C$3,YL[[#This Row],[Название полное]])),MAX($P$1:P116)+1,0) -> 116 | Q117: =INDEX(YL[Название полное],MATCH(YL[[#This Row],[Строка]],YL[ПоискГОЛ],)) -> АО "Полюс Алдан"
A118: 1 | B118: 546918 | C118: 607 | D118: 5263141 | E118: ПАО "Швейная фирма "Айвенго" | F118: ПАО "Айвенго" | G118: 48 | H118: 18 | I118: 1800 | K118: =IF(ISNUMBER(SEARCH(S!$C$4,YL[[#This Row],[Название полное]])),MAX($K$1:K117)+1,0) -> 117 | L118: 117 | M118: =INDEX(YL[Название полное],MATCH(YL[[#This Row],[Строка]],YL[Поиск1],)) -> ПАО "Швейная фирма "Айвенго" | N118: =IFERROR(YL[[#This Row],[Строка]]*(YL[[#This Row],[Поиск3]]=S!$C$4),"") -> 0 | O118: =INDEX(YL[ОКПО],MATCH(YL[[#This Row],[Строка]],YL[Поиск1],)) -> 5263141 | P118: =IF(ISNUMBER(SEARCH(S!$C$3,YL[[#This Row],[Название полное]])),MAX($P$1:P117)+1,0) -> 117 | Q118: =INDEX(YL[Название полное],MATCH(YL[[#This Row],[Строка]],YL[ПоискГОЛ],)) -> ПАО "Швейная фирма "Айвенго"
A119: 1 | B119: 546707 | C119: 268 | D119: 92797986 | E119: Охотский филиал АО "Теплоэнергосервис" | F119: Охотский филиал АО "Теплоэнергосервис" | G119: 38 | H119: 1 | I119: 106 | K119: =IF(ISNUMBER(SEARCH(S!$C$4,YL[[#This Row],[Название полное]])),MAX($K$1:K118)+1,0) -> 118 | L119: 118 | M119: =INDEX(YL[Название полное],MATCH(YL[[#This Row],[Строка]],YL[Поиск1],)) -> Охотский филиал АО "Теплоэнергосервис" | N119: =IFERROR(YL[[#This Row],[Строка]]*(YL[[#This Row],[Поиск3]]=S!$C$4),"") -> 0 | O119: =INDEX(YL[ОКПО],MATCH(YL[[#This Row],[Строка]],YL[Поиск1],)) -> 92797986 | P119: =IF(ISNUMBER(SEARCH(S!$C$3,YL[[#This Row],[Название полное]])),MAX($P$1:P118)+1,0) -> 118 | Q119: =INDEX(YL[Название полное],MATCH(YL[[#This Row],[Строка]],YL[ПоискГОЛ],)) -> Охотский филиал АО "Теплоэнергосервис"
A120: 1 | B120: 546919 | C120: 268 | D120: 28479010 | E120: ООО "Энергетик" | F120: ООО "Энергетик" | G120: 38 | H120: 1 | I120: 106 | K120: =IF(ISNUMBER(SEARCH(S!$C$4,YL[[#This Row],[Название полное]])),MAX($K$1:K119)+1,0) -> 119 | L120: 119 | M120: =INDEX(YL[Название полное],MATCH(YL[[#This Row],[Строка]],YL[Поиск1],)) -> ООО "Энергетик" | N120: =IFERROR(YL[[#This Row],[Строка]]*(YL[[#This Row],[Поиск3]]=S!$C$4),"") -> 0 | O120: =INDEX(YL[ОКПО],MATCH(YL[[#This Row],[Строка]],YL[Поиск1],)) -> 28479010 | P120: =IF(ISNUMBER(SEARCH(S!$C$3,YL[[#This Row],[Название полное]])),MAX($P$1:P119)+1,0) -> 119 | Q120: =INDEX(YL[Название полное],MATCH(YL[[#This Row],[Строка]],YL[ПоискГОЛ],)) -> ООО "Энергетик"
A121: 1 | B121: 546920 | C121: 2305 | D121: 12556642 | E121: МУП "Сонкомсервис" | F121: МУП "Сонкомсервис" | G121: 17 | H121: 1 | I121: 106 | K121: =IF(ISNUMBER(SEARCH(S!$C$4,YL[[#This Row],[Название полное]])),MAX($K$1:K120)+1,0) -> 120 | L121: 120 | M121: =INDEX(YL[Название полное],MATCH(YL[[#This Row],[Строка]],YL[Поиск1],)) -> МУП "Сонкомсервис" | N121: =IFERROR(YL[[#This Row],[Строка]]*(YL[[#This Row],[Поиск3]]=S!$C$4),"") -> 0 | O121: =INDEX(YL[ОКПО],MATCH(YL[[#This Row],[Строка]],YL[Поиск1],)) -> 12556642 | P121: =IF(ISNUMBER(SEARCH(S!$C$3,YL[[#This Row],[Название полное]])),MAX($P$1:P120)+1,0) -> 120 | Q121: =INDEX(YL[Название полное],MATCH(YL[[#This Row],[Строка]],YL[ПоискГОЛ],)) -> МУП "Сонкомсервис"
A122: 1 | B122: 546921 | C122: 1586 | D122: 64747363 | E122: МУП Режевского городского округа "РежПром" | F122: МУП РГО "РежПром" | G122: 79 | H122: 1 | I122: 106 | K122: =IF(ISNUMBER(SEARCH(S!$C$4,YL[[#This Row],[Название полное]])),MAX($K$1:K121)+1,0) -> 121 | L122: 121 | M122: =INDEX(YL[Название полное],MATCH(YL[[#This Row],[Строка]],YL[Поиск1],)) -> МУП Режевского городского округа "РежПром" | N122: =IFERROR(YL[[#This Row],[Строка]]*(YL[[#This Row],[Поиск3]]=S!$C$4),"") -> 0 | O122: =INDEX(YL[ОКПО],MATCH(YL[[#This Row],[Строка]],YL[Поиск1],)) -> 64747363 | P122: =IF(ISNUMBER(SEARCH(S!$C$3,YL[[#This Row],[Название полное]])),MAX($P$1:P121)+1,0) -> 121 | Q122: =INDEX(YL[Название полное],MATCH(YL[[#This Row],[Строка]],YL[ПоискГОЛ],)) -> МУП Режевского городского округа "РежПром"
A123: 1 | B123: 975 | C123: 1596 | D123: 3301914 | E123: МУП "Екатеринбургэнерго" | F123: МУП "Екатеринбургэнерго" | G123: 79 | H123: 1 | I123: 106 | K123: =IF(ISNUMBER(SEARCH(S!$C$4,YL[[#This Row],[Название полное]])),MAX($K$1:K122)+1,0) -> 122 | L123: 122 | M123: =INDEX(YL[Название полное],MATCH(YL[[#This Row],[Строка]],YL[Поиск1],)) -> МУП "Екатеринбургэнерго" | N123: =IFERROR(YL[[#This Row],[Строка]]*(YL[[#This Row],[Поиск3]]=S!$C$4),"") -> 0 | O123: =INDEX(YL[ОКПО],MATCH(YL[[#This Row],[Строка]],YL[Поиск1],)) -> 3301914 | P123: =IF(ISNUMBER(SEARCH(S!$C$3,YL[[#This Row],[Название полное]])),MAX($P$1:P122)+1,0) -> 122 | Q123: =INDEX(YL[Название полное],MATCH(YL[[#This Row],[Строка]],YL[ПоискГОЛ],)) -> МУП "Екатеринбургэнерго"
A124: 1 | B124: 369 | C124: 2390 | D124: 196090 | E124: Мирнинский горно-обогатительный комбинат АК "АЛРОСА" (ПАО) | F124: Мирнинский ГОК АК "АЛРОСА" | G124: 21 | H124: 7 | I124: 700 | K124: =IF(ISNUMBER(SEARCH(S!$C$4,YL[[#This Row],[Название полное]])),MAX($K$1:K123)+1,0) -> 123 | L124: 123 | M124: =INDEX(YL[Название полное],MATCH(YL[[#This Row],[Строка]],YL[Поиск1],)) -> Мирнинский горно-обогатительный комбинат АК "АЛРОСА" (ПАО) | N124: =IFERROR(YL[[#This Row],[Строка]]*(YL[[#This Row],[Поиск3]]=S!$C$4),"") -> 0 | O124: =INDEX(YL[ОКПО],MATCH(YL[[#This Row],[Строка]],YL[Поиск1],)) -> 196090 | P124: =IF(ISNUMBER(SEARCH(S!$C$3,YL[[#This Row],[Название полное]])),MAX($P$1:P123)+1,0) -> 123 | Q124: =INDEX(YL[Название полное],MATCH(YL[[#This Row],[Строка]],YL[ПоискГОЛ],)) -> Мирнинский горно-обогатительный комбинат АК "АЛРОСА" (ПАО)
A125: 1 | B125: 546681 | C125: 2372 | D125: 52499492 | E125: СП АК "АЛРОСА" (ПАО) "Нюрбинский горно-обогатительный комбинат" | F125: СП Нюрбинский ГОК АК "АЛРОСА" (ПАО) | G125: 21 | H125: 7 | I125: 700 | K125: =IF(ISNUMBER(SEARCH(S!$C$4,YL[[#This Row],[Название полное]])),MAX($K$1:K124)+1,0) -> 124 | L125: 124 | M125: =INDEX(YL[Название полное],MATCH(YL[[#This Row],[Строка]],YL[Поиск1],)) -> СП АК "АЛРОСА" (ПАО) "Нюрбинский горно-обогатительный комбинат" | N125: =IFERROR(YL[[#This Row],[Строка]]*(YL[[#This Row],[Поиск3]]=S!$C$4),"") -> 0 | O125: =INDEX(YL[ОКПО],MATCH(YL[[#This Row],[Строка]],YL[Поиск1],)) -> 52499492 | P125: =IF(ISNUMBER(SEARCH(S!$C$3,YL[[#This Row],[Название полное]])),MAX($P$1:P124)+1,0) -> 124 | Q125: =INDEX(YL[Название полное],MATCH(YL[[#This Row],[Строка]],YL[ПоискГОЛ],)) -> СП АК "АЛРОСА" (ПАО) "Нюрбинский горно-обогатительный комбинат"
A126: 1 | B126: 1429 | C126: 2374 | D126: 5802543 | E126: СП АК "АЛРОСА" (ПАО) "Айхальский горно-обогатительный комбинат" | F126: СП Айхальский ГОК АК "АЛРОСА" (ПАО) | G126: 21 | H126: 7 | I126: 700 | K126: =IF(ISNUMBER(SEARCH(S!$C$4,YL[[#This Row],[Название полное]])),MAX($K$1:K125)+1,0) -> 125 | L126: 125 | M126: =INDEX(YL[Название полное],MATCH(YL[[#This Row],[Строка]],YL[Поиск1],)) -> СП АК "АЛРОСА" (ПАО) "Айхальский горно-обогатительный комбинат" | N126: =IFERROR(YL[[#This Row],[Строка]]*(YL[[#This Row],[Поиск3]]=S!$C$4),"") -> 0 | O126: =INDEX(YL[ОКПО],MATCH(YL[[#This Row],[Строка]],YL[Поиск1],)) -> 5802543 | P126: =IF(ISNUMBER(SEARCH(S!$C$3,YL[[#This Row],[Название полное]])),MAX($P$1:P125)+1,0) -> 125 | Q126: =INDEX(YL[Название полное],MATCH(YL[[#This Row],[Строка]],YL[ПоискГОЛ],)) -> СП АК "АЛРОСА" (ПАО) "Айхальский горно-обогатительный комбинат"
A127: 1 | B127: 368 | C127: 2374 | D127: 196055 | E127: СП АК "АЛРОСА" (ПАО) "Удачнинский горно-обогатительный комбинат" | F127: СП Удачнинский ГОК АК "АЛРОСА" (ПАО) | G127: 21 | H127: 7 | I127: 700 | K127: =IF(ISNUMBER(SEARCH(S!$C$4,YL[[#This Row],[Название полное]])),MAX($K$1:K126)+1,0) -> 126 | L127: 126 | M127: =INDEX(YL[Название полное],MATCH(YL[[#This Row],[Строка]],YL[Поиск1],)) -> СП АК "АЛРОСА" (ПАО) "Удачнинский горно-обогатительный комбинат" | N127: =IFERROR(YL[[#This Row],[Строка]]*(YL[[#This Row],[Поиск3]]=S!$C$4),"") -> 0 | O127: =INDEX(YL[ОКПО],MATCH(YL[[#This Row],[Строка]],YL[Поиск1],)) -> 196055 | P127: =IF(ISNUMBER(SEARCH(S!$C$3,YL[[#This Row],[Название полное]])),MAX($P$1:P126)+1,0) -> 126 | Q127: =INDEX(YL[Название полное],MATCH(YL[[#This Row],[Строка]],YL[ПоискГОЛ],)) -> СП АК "АЛРОСА" (ПАО) "Удачнинский горно-обогатительный комбинат"
A128: 1 | B128: 1523 | C128: 1612 | D128: 7518941 | E128: АО "Научно-производственная корпорация "Уралвагонзавод" имени Ф. Э. Дзержинского" | F128: АО "Научно-производственная корпорация "Уралвагонзавод" | G128: 79 | H128: 9 | I128: 903 | K128: =IF(ISNUMBER(SEARCH(S!$C$4,YL[[#This Row],[Название полное]])),MAX($K$1:K127)+1,0) -> 127 | L128: 127 | M128: =INDEX(YL[Название полное],MATCH(YL[[#This Row],[Строка]],YL[Поиск1],)) -> АО "Научно-производственная корпорация "Уралвагонзавод" имени Ф. Э. Дзержинского" | N128: =IFERROR(YL[[#This Row],[Строка]]*(YL[[#This Row],[Поиск3]]=S!$C$4),"") -> 0 | O128: =INDEX(YL[ОКПО],MATCH(YL[[#This Row],[Строка]],YL[Поиск1],)) -> 7518941 | P128: =IF(ISNUMBER(SEARCH(S!$C$3,YL[[#This Row],[Название полное]])),MAX($P$1:P127)+1,0) -> 127 | Q128: =INDEX(YL[Название полное],MATCH(YL[[#This Row],[Строка]],YL[ПоискГОЛ],)) -> АО "Научно-производственная корпорация "Уралвагонзавод" имени Ф. Э. Дзержинского"
A129: 1 | B129: 546922 | C129: 1271 | D129: 6665110 | E129: ООО "ЭкоСпутник" | F129: ООО "ЭкоСпутник" | G129: 69 | H129: 16 | I129: 1604 | K129: =IF(ISNUMBER(SEARCH(S!$C$4,YL[[#This Row],[Название полное]])),MAX($K$1:K128)+1,0) -> 128 | L129: 128 | M129: =INDEX(YL[Название полное],MATCH(YL[[#This Row],[Строка]],YL[Поиск1],)) -> ООО "ЭкоСпутник" | N129: =IFERROR(YL[[#This Row],[Строка]]*(YL[[#This Row],[Поиск3]]=S!$C$4),"") -> 0 | O129: =INDEX(YL[ОКПО],MATCH(YL[[#This Row],[Строка]],YL[Поиск1],)) -> 6665110 | P129: =IF(ISNUMBER(SEARCH(S!$C$3,YL[[#This Row],[Название полное]])),MAX($P$1:P128)+1,0) -> 128 | Q129: =INDEX(YL[Название полное],MATCH(YL[[#This Row],[Строка]],YL[ПоискГОЛ],)) -> ООО "ЭкоСпутник"
A130: 1 | B130: 257422 | C130: 1596 | D130: 1130785 | E130: ПАО "Аэропорт Кольцово" | F130: ПАО "Аэропорт Кольцово" | G130: 79 | H130: 15 | I130: 1508 | K130: =IF(ISNUMBER(SEARCH(S!$C$4,YL[[#This Row],[Название полное]])),MAX($K$1:K129)+1,0) -> 129 | L130: 129 | M130: =INDEX(YL[Название полное],MATCH(YL[[#This Row],[Строка]],YL[Поиск1],)) -> ПАО "Аэропорт Кольцово" | N130: =IFERROR(YL[[#This Row],[Строка]]*(YL[[#This Row],[Поиск3]]=S!$C$4),"") -> 0 | O130: =INDEX(YL[ОКПО],MATCH(YL[[#This Row],[Строка]],YL[Поиск1],)) -> 1130785 | P130: =IF(ISNUMBER(SEARCH(S!$C$3,YL[[#This Row],[Название полное]])),MAX($P$1:P129)+1,0) -> 129 | Q130: =INDEX(YL[Название полное],MATCH(YL[[#This Row],[Строка]],YL[ПоискГОЛ],)) -> ПАО "Аэропорт Кольцово"
A131: 1 | B131: 546923 | C131: 1566 | D131: 27697762 | E131: ООО "Березовский рудник" | F131: ООО "Березовский рудник" | G131: 43,79 | H131: 7 | I131: 701 | K131: =IF(ISNUMBER(SEARCH(S!$C$4,YL[[#This Row],[Название полное]])),MAX($K$1:K130)+1,0) -> 130 | L131: 130 | M131: =INDEX(YL[Название полное],MATCH(YL[[#This Row],[Строка]],YL[Поиск1],)) -> ООО "Березовский рудник" | N131: =IFERROR(YL[[#This Row],[Строка]]*(YL[[#This Row],[Поиск3]]=S!$C$4),"") -> 0 | O131: =INDEX(YL[ОКПО],MATCH(YL[[#This Row],[Строка]],YL[Поиск1],)) -> 27697762 | P131: =IF(ISNUMBER(SEARCH(S!$C$3,YL[[#This Row],[Название полное]])),MAX($P$1:P130)+1,0) -> 130 | Q131: =INDEX(YL[Название полное],MATCH(YL[[#This Row],[Строка]],YL[ПоискГОЛ],)) -> ООО "Березовский рудник"
A132: -1 | B132: 546924 | C132: 1674 | D132: 7620177 | E132: ОАО "АЛМАЗ" | G132: 81 | H132: 9 | I132: 900 | J132: Находится в састоянии ликвидации | K132: =IF(ISNUMBER(SEARCH(S!$C$4,YL[[#This Row],[Название полное]])),MAX($K$1:K131)+1,0) -> 131 | L132: 131 | M132: =INDEX(YL[Название полное],MATCH(YL[[#This Row],[Строка]],YL[Поиск1],)) -> ОАО "АЛМАЗ" | N132: =IFERROR(YL[[#This Row],[Строка]]*(YL[[#This Row],[Поиск3]]=S!$C$4),"") -> 0 | O132: =INDEX(YL[ОКПО],MATCH(YL[[#This Row],[Строка]],YL[Поиск1],)) -> 7620177 | P132: =IF(ISNUMBER(SEARCH(S!$C$3,YL[[#This Row],[Название полное]])),MAX($P$1:P131)+1,0) -> 131 | Q132: =INDEX(YL[Название полное],MATCH(YL[[#This Row],[Строка]],YL[ПоискГОЛ],)) -> ОАО "АЛМАЗ"
A133: 1 | B133: 748 | C133: 1596 | D133: 1217316 | E133: ООО "ЛСР. Строительство-Урал" | F133: ООО "ЛСР. Строительство-Урал" | G133: 79 | H133: 12 | I133: 1203 | K133: =IF(ISNUMBER(SEARCH(S!$C$4,YL[[#This Row],[Название полное]])),MAX($K$1:K132)+1,0) -> 132 | L133: 132 | M133: =INDEX(YL[Название полное],MATCH(YL[[#This Row],[Строка]],YL[Поиск1],)) -> ООО "ЛСР. Строительство-Урал" | N133: =IFERROR(YL[[#This Row],[Строка]]*(YL[[#This Row],[Поиск3]]=S!$C$4),"") -> 0 | O133: =INDEX(YL[ОКПО],MATCH(YL[[#This Row],[Строка]],YL[Поиск1],)) -> 1217316 | P133: =IF(ISNUMBER(SEARCH(S!$C$3,YL[[#This Row],[Название полное]])),MAX($P$1:P132)+1,0) -> 132 | Q133: =INDEX(YL[Название полное],MATCH(YL[[#This Row],[Строка]],YL[ПоискГОЛ],)) -> ООО "ЛСР. Строительство-Урал"
A134: 1 | B134: 1289 | C134: 1743 | D134: 5751797 | E134: ООО "Газпром добыча Ноябрьск" | F134: ООО "Газпром добыча Ноябрьск" | G134: 32 | H134: 4 | I134: 400 | K134: =IF(ISNUMBER(SEARCH(S!$C$4,YL[[#This Row],[Название полное]])),MAX($K$1:K133)+1,0) -> 133 | L134: 133 | M134: =INDEX(YL[Название полное],MATCH(YL[[#This Row],[Строка]],YL[Поиск1],)) -> ООО "Газпром добыча Ноябрьск" | N134: =IFERROR(YL[[#This Row],[Строка]]*(YL[[#This Row],[Поиск3]]=S!$C$4),"") -> 0 | O134: =INDEX(YL[ОКПО],MATCH(YL[[#This Row],[Строка]],YL[Поиск1],)) -> 5751797 | P134: =IF(ISNUMBER(SEARCH(S!$C$3,YL[[#This Row],[Название полное]])),MAX($P$1:P133)+1,0) -> 133 | Q134: =INDEX(YL[Название полное],MATCH(YL[[#This Row],[Строка]],YL[ПоискГОЛ],)) -> ООО "Газпром добыча Ноябрьск"
A135: 1 | B135: 546925 | C135: 2053 | D135: 12824433 | E135: ООО "ЗАО Мушарака" | F135: ООО "ЗАО Мушарака" | G135: 5 | H135: 8 | I135: 809 | K135: =IF(ISNUMBER(SEARCH(S!$C$4,YL[[#This Row],[Название полное]])),MAX($K$1:K134)+1,0) -> 134 | L135: 134 | M135: =INDEX(YL[Название полное],MATCH(YL[[#This Row],[Строка]],YL[Поиск1],)) -> ООО "ЗАО Мушарака" | N135: =IFERROR(YL[[#This Row],[Строка]]*(YL[[#This Row],[Поиск3]]=S!$C$4),"") -> 0 | O135: =INDEX(YL[ОКПО],MATCH(YL[[#This Row],[Строка]],YL[Поиск1],)) -> 12824433 | P135: =IF(ISNUMBER(SEARCH(S!$C$3,YL[[#This Row],[Название полное]])),MAX($P$1:P134)+1,0) -> 134 | Q135: =INDEX(YL[Название полное],MATCH(YL[[#This Row],[Строка]],YL[ПоискГОЛ],)) -> ООО "ЗАО Мушарака"
A136: 1 | B136: 854 | C136: 1064 | D136: 3215072 | E136: АО "Мытищинская теплосеть" | F136: АО "Мытищинская теплосеть" | G136: 62 | H136: 1 | I136: 106 | K136: =IF(ISNUMBER(SEARCH(S!$C$4,YL[[#This Row],[Название полное]])),MAX($K$1:K135)+1,0) -> 135 | L136: 135 | M136: =INDEX(YL[Название полное],MATCH(YL[[#This Row],[Строка]],YL[Поиск1],)) -> АО "Мытищинская теплосеть" | N136: =IFERROR(YL[[#This Row],[Строка]]*(YL[[#This Row],[Поиск3]]=S!$C$4),"") -> 0 | O136: =INDEX(YL[ОКПО],MATCH(YL[[#This Row],[Строка]],YL[Поиск1],)) -> 3215072 | P136: =IF(ISNUMBER(SEARCH(S!$C$3,YL[[#This Row],[Название полное]])),MAX($P$1:P135)+1,0) -> 135 | Q136: =INDEX(YL[Название полное],MATCH(YL[[#This Row],[Строка]],YL[ПоискГОЛ],)) -> АО "Мытищинская теплосеть"
A137: 1 | B137: 546926 | C137: 2152 | D137: 24986997 | E137: ООО "Производственное объединение "КАНН" | F137: ООО "ПО "КАНН" | G137: 11 | H137: 10 | I137: 1001 | K137: =IF(ISNUMBER(SEARCH(S!$C$4,YL[[#This Row],[Название полное]])),MAX($K$1:K136)+1,0) -> 136 | L137: 136 | M137: =INDEX(YL[Название полное],MATCH(YL[[#This Row],[Строка]],YL[Поиск1],)) -> ООО "Производственное объединение "КАНН" | N137: =IFERROR(YL[[#This Row],[Строка]]*(YL[[#This Row],[Поиск3]]=S!$C$4),"") -> 0 | O137: =INDEX(YL[ОКПО],MATCH(YL[[#This Row],[Строка]],YL[Поиск1],)) -> 24986997 | P137: =IF(ISNUMBER(SEARCH(S!$C$3,YL[[#This Row],[Название полное]])),MAX($P$1:P136)+1,0) -> 136 | Q137: =INDEX(YL[Название полное],MATCH(YL[[#This Row],[Строка]],YL[ПоискГОЛ],)) -> ООО "Производственное объединение "КАНН"
A138: 1 | B138: 546927 | C138: 305 | D138: 49896060 | E138: ООО "ЗАРУБЕЖНЕФТЬ-добыча Харьяга" | F138: ООО "ЗАРУБЕЖНЕФТЬ-добыча Харьяга" | G138: 26 | H138: 2 | I138: 200 | K138: =IF(ISNUMBER(SEARCH(S!$C$4,YL[[#This Row],[Название полное]])),MAX($K$1:K137)+1,0) -> 137 | L138: 137 | M138: =INDEX(YL[Название полное],MATCH(YL[[#This Row],[Строка]],YL[Поиск1],)) -> ООО "ЗАРУБЕЖНЕФТЬ-добыча Харьяга" | N138: =IFERROR(YL[[#This Row],[Строка]]*(YL[[#This Row],[Поиск3]]=S!$C$4),"") -> 0 | O138: =INDEX(YL[ОКПО],MATCH(YL[[#This Row],[Строка]],YL[Поиск1],)) -> 49896060 | P138: =IF(ISNUMBER(SEARCH(S!$C$3,YL[[#This Row],[Название полное]])),MAX($P$1:P137)+1,0) -> 137 | Q138: =INDEX(YL[Название полное],MATCH(YL[[#This Row],[Строка]],YL[ПоискГОЛ],)) -> ООО "ЗАРУБЕЖНЕФТЬ-добыча Харьяга"
A139: 1 | B139: 546928 | C139: 1279 | D139: 96976929 | E139: ООО "Оренбургский Вторчермет" | F139: ООО "Оренбургвторчермет" | G139: 69 | H139: 6 | I139: 605 | K139: =IF(ISNUMBER(SEARCH(S!$C$4,YL[[#This Row],[Название полное]])),MAX($K$1:K138)+1,0) -> 138 | L139: 138 | M139: =INDEX(YL[Название полное],MATCH(YL[[#This Row],[Строка]],YL[Поиск1],)) -> ООО "Оренбургский Вторчермет" | N139: =IFERROR(YL[[#This Row],[Строка]]*(YL[[#This Row],[Поиск3]]=S!$C$4),"") -> 0 | O139: =INDEX(YL[ОКПО],MATCH(YL[[#This Row],[Строка]],YL[Поиск1],)) -> 96976929 | P139: =IF(ISNUMBER(SEARCH(S!$C$3,YL[[#This Row],[Название полное]])),MAX($P$1:P138)+1,0) -> 138 | Q139: =INDEX(YL[Название полное],MATCH(YL[[#This Row],[Строка]],YL[ПоискГОЛ],)) -> ООО "Оренбургский Вторчермет"
A140: 1 | B140: 1221 | C140: 278 | D140: 5229888 | E140: Муниципальное унитарное производственное предприятие электрических сетей | F140: МУ ППЭС | G140: 38 | H140: 1 | I140: 105 | K140: =IF(ISNUMBER(SEARCH(S!$C$4,YL[[#This Row],[Название полное]])),MAX($K$1:K139)+1,0) -> 139 | L140: 139 | M140: =INDEX(YL[Название полное],MATCH(YL[[#This Row],[Строка]],YL[Поиск1],)) -> Муниципальное унитарное производственное предприятие электрических сетей | N140: =IFERROR(YL[[#This Row],[Строка]]*(YL[[#This Row],[Поиск3]]=S!$C$4),"") -> 0 | O140: =INDEX(YL[ОКПО],MATCH(YL[[#This Row],[Строка]],YL[Поиск1],)) -> 5229888 | P140: =IF(ISNUMBER(SEARCH(S!$C$3,YL[[#This Row],[Название полное]])),MAX($P$1:P139)+1,0) -> 139 | Q140: =INDEX(YL[Название полное],MATCH(YL[[#This Row],[Строка]],YL[ПоискГОЛ],)) -> Муниципальное унитарное производственное предприятие электрических сетей
A141: 1 | B141: 546929 | C141: 460 | D141: 22460133 | E141: ООО "Концессии Водоснабжения" | F141: ООО "Концессии Водоснабжения" | G141: 45 | H141: 16 | I141: 1600 | K141: =IF(ISNUMBER(SEARCH(S!$C$4,YL[[#This Row],[Название полное]])),MAX($K$1:K140)+1,0) -> 140 | L141: 140 | M141: =INDEX(YL[Название полное],MATCH(YL[[#This Row],[Строка]],YL[Поиск1],)) -> ООО "Концессии Водоснабжения" | N141: =IFERROR(YL[[#This Row],[Строка]]*(YL[[#This Row],[Поиск3]]=S!$C$4),"") -> 0 | O141: =INDEX(YL[ОКПО],MATCH(YL[[#This Row],[Строка]],YL[Поиск1],)) -> 22460133 | P141: =IF(ISNUMBER(SEARCH(S!$C$3,YL[[#This Row],[Название полное]])),MAX($P$1:P140)+1,0) -> 140 | Q141: =INDEX(YL[Название полное],MATCH(YL[[#This Row],[Строка]],YL[ПоискГОЛ],)) -> ООО "Концессии Водоснабжения"
A142: 1 | B142: 1545 | C142: 1333 | D142: 7545091 | E142: АО "Пензенское Производственное Объединение "Электроприбор" | F142: АО "ПО "Электроприбор" | G142: 71 | H142: 9 | I142: 900 | K142: =IF(ISNUMBER(SEARCH(S!$C$4,YL[[#This Row],[Название полное]])),MAX($K$1:K141)+1,0) -> 141 | L142: 141 | M142: =INDEX(YL[Название полное],MATCH(YL[[#This Row],[Строка]],YL[Поиск1],)) -> АО "Пензенское Производственное Объединение "Электроприбор" | N142: =IFERROR(YL[[#This Row],[Строка]]*(YL[[#This Row],[Поиск3]]=S!$C$4),"") -> 0 | O142: =INDEX(YL[ОКПО],MATCH(YL[[#This Row],[Строка]],YL[Поиск1],)) -> 7545091 | P142: =IF(ISNUMBER(SEARCH(S!$C$3,YL[[#This Row],[Название полное]])),MAX($P$1:P141)+1,0) -> 141 | Q142: =INDEX(YL[Название полное],MATCH(YL[[#This Row],[Строка]],YL[ПоискГОЛ],)) -> АО "Пензенское Производственное Объединение "Электроприбор"
A143: 1 | B143: 2686 | C143: 1603 | D143: 50721130 | E143: ООО "Объединенная компания РУСАЛ кремний Урал" | F143: ООО "РУСАЛ кремний Урал" | G143: 79 | H143: 7 | I143: 704 | K143: =IF(ISNUMBER(SEARCH(S!$C$4,YL[[#This Row],[Название полное]])),MAX($K$1:K142)+1,0) -> 142 | L143: 142 | M143: =INDEX(YL[Название полное],MATCH(YL[[#This Row],[Строка]],YL[Поиск1],)) -> ООО "Объединенная компания РУСАЛ кремний Урал" | N143: =IFERROR(YL[[#This Row],[Строка]]*(YL[[#This Row],[Поиск3]]=S!$C$4),"") -> 0 | O143: =INDEX(YL[ОКПО],MATCH(YL[[#This Row],[Строка]],YL[Поиск1],)) -> 50721130 | P143: =IF(ISNUMBER(SEARCH(S!$C$3,YL[[#This Row],[Название полное]])),MAX($P$1:P142)+1,0) -> 142 | Q143: =INDEX(YL[Название полное],MATCH(YL[[#This Row],[Строка]],YL[ПоискГОЛ],)) -> ООО "Объединенная компания РУСАЛ кремний Урал"
A144: 1 | B144: 354 | C144: 1022 | D144: 195127 | E144: АО "Сусуманский горно-обогатительный комбинат "Сусуманзолото" | F144: АО "Сусуманзолото" | G144: 61 | H144: 7 | I144: 701 | K144: =IF(ISNUMBER(SEARCH(S!$C$4,YL[[#This Row],[Название полное]])),MAX($K$1:K143)+1,0) -> 143 | L144: 143 | M144: =INDEX(YL[Название полное],MATCH(YL[[#This Row],[Строка]],YL[Поиск1],)) -> АО "Сусуманский горно-обогатительный комбинат "Сусуманзолото" | N144: =IFERROR(YL[[#This Row],[Строка]]*(YL[[#This Row],[Поиск3]]=S!$C$4),"") -> 0 | O144: =INDEX(YL[ОКПО],MATCH(YL[[#This Row],[Строка]],YL[Поиск1],)) -> 195127 | P144: =IF(ISNUMBER(SEARCH(S!$C$3,YL[[#This Row],[Название полное]])),MAX($P$1:P143)+1,0) -> 143 | Q144: =INDEX(YL[Название полное],MATCH(YL[[#This Row],[Строка]],YL[ПоискГОЛ],)) -> АО "Сусуманский горно-обогатительный комбинат "Сусуманзолото"
A145: 1 | B145: 546930 | C145: 305 | D145: 66566418 | E145: ООО "Башнефть-Полюс" | F145: ООО "Башнефть-Полюс" | G145: 26 | H145: 2 | I145: 200 | K145: =IF(ISNUMBER(SEARCH(S!$C$4,YL[[#This Row],[Название полное]])),MAX($K$1:K144)+1,0) -> 144 | L145: 144 | M145: =INDEX(YL[Название полное],MATCH(YL[[#This Row],[Строка]],YL[Поиск1],)) -> ООО "Башнефть-Полюс" | N145: =IFERROR(YL[[#This Row],[Строка]]*(YL[[#This Row],[Поиск3]]=S!$C$4),"") -> 0 | O145: =INDEX(YL[ОКПО],MATCH(YL[[#This Row],[Строка]],YL[Поиск1],)) -> 66566418 | P145: =IF(ISNUMBER(SEARCH(S!$C$3,YL[[#This Row],[Название полное]])),MAX($P$1:P144)+1,0) -> 144 | Q145: =INDEX(YL[Название полное],MATCH(YL[[#This Row],[Строка]],YL[ПоискГОЛ],)) -> ООО "Башнефть-Полюс"
A146: 1 | B146: 322 | C146: 1615 | D146: 187085 | E146: ОАО "Первоуральский Динасовский завод" | F146: ОАО "ДИНУР" | G146: 79 | H146: 6 | I146: 601 | K146: =IF(ISNUMBER(SEARCH(S!$C$4,YL[[#This Row],[Название полное]])),MAX($K$1:K145)+1,0) -> 145 | L146: 145 | M146: =INDEX(YL[Название полное],MATCH(YL[[#This Row],[Строка]],YL[Поиск1],)) -> ОАО "Первоуральский Динасовский завод" | N146: =IFERROR(YL[[#This Row],[Строка]]*(YL[[#This Row],[Поиск3]]=S!$C$4),"") -> 0 | O146: =INDEX(YL[ОКПО],MATCH(YL[[#This Row],[Строка]],YL[Поиск1],)) -> 187085 | P146: =IF(ISNUMBER(SEARCH(S!$C$3,YL[[#This Row],[Название полное]])),MAX($P$1:P145)+1,0) -> 145 | Q146: =INDEX(YL[Название полное],MATCH(YL[[#This Row],[Строка]],YL[ПоискГОЛ],)) -> ОАО "Первоуральский Динасовский завод"
A147: 1 | B147: 820 | C147: 1648 | D147: 2838871 | E147: АО "ЭлС" | F147: АО "ЭлС" | G147: 80 | H147: 1 | I147: 105 | K147: =IF(ISNUMBER(SEARCH(S!$C$4,YL[[#This Row],[Название полное]])),MAX($K$1:K146)+1,0) -> 146 | L147: 146 | M147: =INDEX(YL[Название полное],MATCH(YL[[#This Row],[Строка]],YL[Поиск1],)) -> АО "ЭлС" | N147: =IFERROR(YL[[#This Row],[Строка]]*(YL[[#This Row],[Поиск3]]=S!$C$4),"") -> 0 | O147: =INDEX(YL[ОКПО],MATCH(YL[[#This Row],[Строка]],YL[Поиск1],)) -> 2838871 | P147: =IF(ISNUMBER(SEARCH(S!$C$3,YL[[#This Row],[Название полное]])),MAX($P$1:P146)+1,0) -> 146 | Q147: =INDEX(YL[Название полное],MATCH(YL[[#This Row],[Строка]],YL[ПоискГОЛ],)) -> АО "ЭлС"
A148: 1 | B148: 179930 | C148: 398 | D148: 84242501 | E148: Филиал ПАО "Россети центр" - "Брянскэнерго" | F148: ФЛ ПАО "Россети центр" - "Брянскэнерго" | G148: 43 | H148: 1 | I148: 105 | K148: =IF(ISNUMBER(SEARCH(S!$C$4,YL[[#This Row],[Название полное]])),MAX($K$1:K147)+1,0) -> 147 | L148: 147 | M148: =INDEX(YL[Название полное],MATCH(YL[[#This Row],[Строка]],YL[Поиск1],)) -> Филиал ПАО "Россети центр" - "Брянскэнерго" | N148: =IFERROR(YL[[#This Row],[Строка]]*(YL[[#This Row],[Поиск3]]=S!$C$4),"") -> 0 | O148: =INDEX(YL[ОКПО],MATCH(YL[[#This Row],[Строка]],YL[Поиск1],)) -> 84242501 | P148: =IF(ISNUMBER(SEARCH(S!$C$3,YL[[#This Row],[Название полное]])),MAX($P$1:P147)+1,0) -> 147 | Q148: =INDEX(YL[Название полное],MATCH(YL[[#This Row],[Строка]],YL[ПоискГОЛ],)) -> Филиал ПАО "Россети центр" - "Брянскэнерго"
A149: 1 | B149: 546893 | C149: 398 | D149: 10444577 | E149: ООО "КОН" | F149: ООО "КОН" | G149: 43 | H149: 16 | I149: 1602 | K149: =IF(ISNUMBER(SEARCH(S!$C$4,YL[[#This Row],[Название полное]])),MAX($K$1:K148)+1,0) -> 148 | L149: 148 | M149: =INDEX(YL[Название полное],MATCH(YL[[#This Row],[Строка]],YL[Поиск1],)) -> ООО "КОН" | N149: =IFERROR(YL[[#This Row],[Строка]]*(YL[[#This Row],[Поиск3]]=S!$C$4),"") -> 0 | O149: =INDEX(YL[ОКПО],MATCH(YL[[#This Row],[Строка]],YL[Поиск1],)) -> 10444577 | P149: =IF(ISNUMBER(SEARCH(S!$C$3,YL[[#This Row],[Название полное]])),MAX($P$1:P148)+1,0) -> 148 | Q149: =INDEX(YL[Название полное],MATCH(YL[[#This Row],[Строка]],YL[ПоискГОЛ],)) -> ООО "КОН"
A150: -1 | B150: 546931 | C150: 0 | D150: 37319340 | E150: ООО "Теплоснабжающая компания Мосэнерго" | F150: ООО "ТСК Мосэнерго" | G150: 62 | H150: 1 | I150: 106 | K150: =IF(ISNUMBER(SEARCH(S!$C$4,YL[[#This Row],[Название полное]])),MAX($K$1:K149)+1,0) -> 149 | L150: 149 | M150: =INDEX(YL[Название полное],MATCH(YL[[#This Row],[Строка]],YL[Поиск1],)) -> ООО "Теплоснабжающая компания Мосэнерго" | N150: =IFERROR(YL[[#This Row],[Строка]]*(YL[[#This Row],[Поиск3]]=S!$C$4),"") -> 0 | O150: =INDEX(YL[ОКПО],MATCH(YL[[#This Row],[Строка]],YL[Поиск1],)) -> 37319340 | P150: =IF(ISNUMBER(SEARCH(S!$C$3,YL[[#This Row],[Название полное]])),MAX($P$1:P149)+1,0) -> 149 | Q150: =INDEX(YL[Название полное],MATCH(YL[[#This Row],[Строка]],YL[ПоискГОЛ],)) -> ООО "Теплоснабжающая компания Мосэнерго"
A151: 1 | B151: 386 | C151: 1130 | D151: 16146214 | E151: Кировский филиал АО "Апатит" | F151: КФ АО "Апатит" | G151: 64 | H151: 8 | I151: 800 | K151: =IF(ISNUMBER(SEARCH(S!$C$4,YL[[#This Row],[Название полное]])),MAX($K$1:K150)+1,0) -> 150 | L151: 150 | M151: =INDEX(YL[Название полное],MATCH(YL[[#This Row],[Строка]],YL[Поиск1],)) -> Кировский филиал АО "Апатит" | N151: =IFERROR(YL[[#This Row],[Строка]]*(YL[[#This Row],[Поиск3]]=S!$C$4),"") -> 0 | O151: =INDEX(YL[ОКПО],MATCH(YL[[#This Row],[Строка]],YL[Поиск1],)) -> 16146214 | P151: =IF(ISNUMBER(SEARCH(S!$C$3,YL[[#This Row],[Название полное]])),MAX($P$1:P150)+1,0) -> 150 | Q151: =INDEX(YL[Название полное],MATCH(YL[[#This Row],[Строка]],YL[ПоискГОЛ],)) -> Кировский филиал АО "Апатит"
A152: 1 | B152: 546932 | C152: 1906 | D152: 72621328 | E152: ГБУ Республики Адыгея "Управление автомобильных дорог "Адыгеяавтодор" | F152: ГБУ РА "УАД "Адыгеяавтодор" | G152: 42,1 | H152: 16 | I152: 1604 | K152: =IF(ISNUMBER(SEARCH(S!$C$4,YL[[#This Row],[Название полное]])),MAX($K$1:K151)+1,0) -> 151 | L152: 151 | M152: =INDEX(YL[Название полное],MATCH(YL[[#This Row],[Строка]],YL[Поиск1],)) -> ГБУ Республики Адыгея "Управление автомобильных дорог "Адыгеяавтодор" | N152: =IFERROR(YL[[#This Row],[Строка]]*(YL[[#This Row],[Поиск3]]=S!$C$4),"") -> 0 | O152: =INDEX(YL[ОКПО],MATCH(YL[[#This Row],[Строка]],YL[Поиск1],)) -> 72621328 | P152: =IF(ISNUMBER(SEARCH(S!$C$3,YL[[#This Row],[Название полное]])),MAX($P$1:P151)+1,0) -> 151 | Q152: =INDEX(YL[Название полное],MATCH(YL[[#This Row],[Строка]],YL[ПоискГОЛ],)) -> ГБУ Республики Адыгея "Управление автомобильных дорог "Адыгеяавтодор"
A153: 1 | B153: 546933 | C153: 2116 | D153: 91293143 | E153: МКП "Горводоканала Костомукшского городского округа" | F153: МКП "Горводоканал КГО" | G153: 9 | H153: 16 | I153: 1600 | K153: =IF(ISNUMBER(SEARCH(S!$C$4,YL[[#This Row],[Название полное]])),MAX($K$1:K152)+1,0) -> 152 | L153: 152 | M153: =INDEX(YL[Название полное],MATCH(YL[[#This Row],[Строка]],YL[Поиск1],)) -> МКП "Горводоканала Костомукшского городского округа" | N153: =IFERROR(YL[[#This Row],[Строка]]*(YL[[#This Row],[Поиск3]]=S!$C$4),"") -> 0 | O153: =INDEX(YL[ОКПО],MATCH(YL[[#This Row],[Строка]],YL[Поиск1],)) -> 91293143 | P153: =IF(ISNUMBER(SEARCH(S!$C$3,YL[[#This Row],[Название полное]])),MAX($P$1:P152)+1,0) -> 152 | Q153: =INDEX(YL[Название полное],MATCH(YL[[#This Row],[Строка]],YL[ПоискГОЛ],)) -> МКП "Горводоканала Костомукшского городского округа"
A154: 1 | B154: 546543 | C154: 1319 | D154: 96483807 | E154: ООО "Азия Цемент" | F154: ООО "Азия Цемент" | G154: 71 | H154: 12 | I154: 1200 | K154: =IF(ISNUMBER(SEARCH(S!$C$4,YL[[#This Row],[Название полное]])),MAX($K$1:K153)+1,0) -> 153 | L154: 153 | M154: =INDEX(YL[Название полное],MATCH(YL[[#This Row],[Строка]],YL[Поиск1],)) -> ООО "Азия Цемент" | N154: =IFERROR(YL[[#This Row],[Строка]]*(YL[[#This Row],[Поиск3]]=S!$C$4),"") -> 0 | O154: =INDEX(YL[ОКПО],MATCH(YL[[#This Row],[Строка]],YL[Поиск1],)) -> 96483807 | P154: =IF(ISNUMBER(SEARCH(S!$C$3,YL[[#This Row],[Название полное]])),MAX($P$1:P153)+1,0) -> 153 | Q154: =INDEX(YL[Название полное],MATCH(YL[[#This Row],[Строка]],YL[ПоискГОЛ],)) -> ООО "Азия Цемент"
A155: 1 | B155: 546935 | C155: 1612 | D155: 51821394 | E155: ЗАО "Стройкомплекс" | F155: ЗАО "Стройкомплекс" | G155: 79 | H155: 14 | I155: 1403 | K155: =IF(ISNUMBER(SEARCH(S!$C$4,YL[[#This Row],[Название полное]])),MAX($K$1:K154)+1,0) -> 154 | L155: 154 | M155: =INDEX(YL[Название полное],MATCH(YL[[#This Row],[Строка]],YL[Поиск1],)) -> ЗАО "Стройкомплекс" | N155: =IFERROR(YL[[#This Row],[Строка]]*(YL[[#This Row],[Поиск3]]=S!$C$4),"") -> 0 | O155: =INDEX(YL[ОКПО],MATCH(YL[[#This Row],[Строка]],YL[Поиск1],)) -> 51821394 | P155: =IF(ISNUMBER(SEARCH(S!$C$3,YL[[#This Row],[Название полное]])),MAX($P$1:P154)+1,0) -> 154 | Q155: =INDEX(YL[Название полное],MATCH(YL[[#This Row],[Строка]],YL[ПоискГОЛ],)) -> ЗАО "Стройкомплекс"
A156: 1 | B156: 546936 | C156: 1055 | D156: 11774911 | E156: АО "Красногорская теплосеть" | F156: АО "Красногорская теплосеть" | G156: 62 | H156: 1 | I156: 106 | K156: =IF(ISNUMBER(SEARCH(S!$C$4,YL[[#This Row],[Название полное]])),MAX($K$1:K155)+1,0) -> 155 | L156: 155 | M156: =INDEX(YL[Название полное],MATCH(YL[[#This Row],[Строка]],YL[Поиск1],)) -> АО "Красногорская теплосеть" | N156: =IFERROR(YL[[#This Row],[Строка]]*(YL[[#This Row],[Поиск3]]=S!$C$4),"") -> 0 | O156: =INDEX(YL[ОКПО],MATCH(YL[[#This Row],[Строка]],YL[Поиск1],)) -> 11774911 | P156: =IF(ISNUMBER(SEARCH(S!$C$3,YL[[#This Row],[Название полное]])),MAX($P$1:P155)+1,0) -> 155 | Q156: =INDEX(YL[Название полное],MATCH(YL[[#This Row],[Строка]],YL[ПоискГОЛ],)) -> АО "Красногорская теплосеть"
A157: 1 | B157: 976 | C157: 1596 | D157: 3301966 | E157: Екатеринбургское МУП водопроводно-канализационного хозяйства | F157: МУП "Водоканал" | G157: 79 | H157: 16 | I157: 1600 | K157: =IF(ISNUMBER(SEARCH(S!$C$4,YL[[#This Row],[Название полное]])),MAX($K$1:K156)+1,0) -> 156 | L157: 156 | M157: =INDEX(YL[Название полное],MATCH(YL[[#This Row],[Строка]],YL[Поиск1],)) -> Екатеринбургское МУП водопроводно-канализационного хозяйства | N157: =IFERROR(YL[[#This Row],[Строка]]*(YL[[#This Row],[Поиск3]]=S!$C$4),"") -> 0 | O157: =INDEX(YL[ОКПО],MATCH(YL[[#This Row],[Строка]],YL[Поиск1],)) -> 3301966 | P157: =IF(ISNUMBER(SEARCH(S!$C$3,YL[[#This Row],[Название полное]])),MAX($P$1:P156)+1,0) -> 156 | Q157: =INDEX(YL[Название полное],MATCH(YL[[#This Row],[Строка]],YL[ПоискГОЛ],)) -> Екатеринбургское МУП водопроводно-канализационного хозяйства
A158: 1 | B158: 546937 | C158: 400 | D158: 10447162 | E158: МУП "Торговые ряды" | F158: МУП "Торговые ряды" | G158: 43 | H158: 1 | I158: 107 | K158: =IF(ISNUMBER(SEARCH(S!$C$4,YL[[#This Row],[Название полное]])),MAX($K$1:K157)+1,0) -> 157 | L158: 157 | M158: =INDEX(YL[Название полное],MATCH(YL[[#This Row],[Строка]],YL[Поиск1],)) -> МУП "Торговые ряды" | N158: =IFERROR(YL[[#This Row],[Строка]]*(YL[[#This Row],[Поиск3]]=S!$C$4),"") -> 0 | O158: =INDEX(YL[ОКПО],MATCH(YL[[#This Row],[Строка]],YL[Поиск1],)) -> 10447162 | P158: =IF(ISNUMBER(SEARCH(S!$C$3,YL[[#This Row],[Название полное]])),MAX($P$1:P157)+1,0) -> 157 | Q158: =INDEX(YL[Название полное],MATCH(YL[[#This Row],[Строка]],YL[ПоискГОЛ],)) -> МУП "Торговые ряды"
A159: 1 | B159: 546938 | C159: 1375 | D159: - | E159: Широковская ГЭС (Филиал Пермский, ПАО Т-плюс) | G159: 72 | H159: 1 | I159: 102 | J159: Можно ли отнести к ФИЛИАЛ "ПЕРМСКИЙ" ПАО "Т ПЛЮС" 60721088 | K159: =IF(ISNUMBER(SEARCH(S!$C$4,YL[[#This Row],[Название полное]])),MAX($K$1:K158)+1,0) -> 158 | L159: 158 | M159: =INDEX(YL[Название полное],MATCH(YL[[#This Row],[Строка]],YL[Поиск1],)) -> Широковская ГЭС (Филиал Пермский, ПАО Т-плюс) | N159: =IFERROR(YL[[#This Row],[Строка]]*(YL[[#This Row],[Поиск3]]=S!$C$4),"") -> 0 | O159: =INDEX(YL[ОКПО],MATCH(YL[[#This Row],[Строка]],YL[Поиск1],)) -> - | P159: =IF(ISNUMBER(SEARCH(S!$C$3,YL[[#This Row],[Название полное]])),MAX($P$1:P158)+1,0) -> 158 | Q159: =INDEX(YL[Название полное],MATCH(YL[[#This Row],[Строка]],YL[ПоискГОЛ],)) -> Широковская ГЭС (Филиал Пермский, ПАО Т-плюс)
A160: 1 | B160: 546939 | C160: 1575 | D160: - | E160: Верхотурская ГЭС, Свердловский филиал ПАО "Т Плюс" | G160: 79 | H160: 1 | I160: 102 | K160: =IF(ISNUMBER(SEARCH(S!$C$4,YL[[#This Row],[Название полное]])),MAX($K$1:K159)+1,0) -> 159 | L160: 159 | M160: =INDEX(YL[Название полное],MATCH(YL[[#This Row],[Строка]],YL[Поиск1],)) -> Верхотурская ГЭС, Свердловский филиал ПАО "Т Плюс" | N160: =IFERROR(YL[[#This Row],[Строка]]*(YL[[#This Row],[Поиск3]]=S!$C$4),"") -> 0 | O160: =INDEX(YL[ОКПО],MATCH(YL[[#This Row],[Строка]],YL[Поиск1],)) -> - | P160: =IF(ISNUMBER(SEARCH(S!$C$3,YL[[#This Row],[Название полное]])),MAX($P$1:P159)+1,0) -> 159 | Q160: =INDEX(YL[Название полное],MATCH(YL[[#This Row],[Строка]],YL[ПоискГОЛ],)) -> Верхотурская ГЭС, Свердловский филиал ПАО "Т Плюс"
A161: 1 | B161: 1818 | C161: 1271 | D161: 14831805 | E161: ООО "Оренбург Водоканал" | F161: ООО "Оренбург Водоканал" | G161: 69 | H161: 16 | I161: 1600 | K161: =IF(ISNUMBER(SEARCH(S!$C$4,YL[[#This Row],[Название полное]])),MAX($K$1:K160)+1,0) -> 160 | L161: 160 | M161: =INDEX(YL[Название полное],MATCH(YL[[#This Row],[Строка]],YL[Поиск1],)) -> ООО "Оренбург Водоканал" | N161: =IFERROR(YL[[#This Row],[Строка]]*(YL[[#This Row],[Поиск3]]=S!$C$4),"") -> 0 | O161: =INDEX(YL[ОКПО],MATCH(YL[[#This Row],[Строка]],YL[Поиск1],)) -> 14831805 | P161: =IF(ISNUMBER(SEARCH(S!$C$3,YL[[#This Row],[Название полное]])),MAX($P$1:P160)+1,0) -> 160 | Q161: =INDEX(YL[Название полное],MATCH(YL[[#This Row],[Строка]],YL[ПоискГОЛ],)) -> ООО "Оренбург Водоканал"
A162: 1 | B162: 403 | C162: 1596 | D162: 210571 | E162: ПАО "Уральский завод тяжелого машиностроения" | F162: ПАО "Уралмашзавод" | G162: 79 | H162: 9 | I162: 906 | K162: =IF(ISNUMBER(SEARCH(S!$C$4,YL[[#This Row],[Название полное]])),MAX($K$1:K161)+1,0) -> 161 | L162: 161 | M162: =INDEX(YL[Название полное],MATCH(YL[[#This Row],[Строка]],YL[Поиск1],)) -> ПАО "Уральский завод тяжелого машиностроения" | N162: =IFERROR(YL[[#This Row],[Строка]]*(YL[[#This Row],[Поиск3]]=S!$C$4),"") -> 0 | O162: =INDEX(YL[ОКПО],MATCH(YL[[#This Row],[Строка]],YL[Поиск1],)) -> 210571 | P162: =IF(ISNUMBER(SEARCH(S!$C$3,YL[[#This Row],[Название полное]])),MAX($P$1:P161)+1,0) -> 161 | Q162: =INDEX(YL[Название полное],MATCH(YL[[#This Row],[Строка]],YL[ПоискГОЛ],)) -> ПАО "Уральский завод тяжелого машиностроения"
A163: 1 | B163: 546940 | C163: 263 | D163: 35279346 | E163: МУП "Вектор" Вяземского МР Хабаровского края | F163: МУП "Вектор" | G163: 38 | H163: 1 | I163: 106 | K163: =IF(ISNUMBER(SEARCH(S!$C$4,YL[[#This Row],[Название полное]])),MAX($K$1:K162)+1,0) -> 162 | L163: 162 | M163: =INDEX(YL[Название полное],MATCH(YL[[#This Row],[Строка]],YL[Поиск1],)) -> МУП "Вектор" Вяземского МР Хабаровского края | N163: =IFERROR(YL[[#This Row],[Строка]]*(YL[[#This Row],[Поиск3]]=S!$C$4),"") -> 0 | O163: =INDEX(YL[ОКПО],MATCH(YL[[#This Row],[Строка]],YL[Поиск1],)) -> 35279346 | P163: =IF(ISNUMBER(SEARCH(S!$C$3,YL[[#This Row],[Название полное]])),MAX($P$1:P162)+1,0) -> 162 | Q163: =INDEX(YL[Название полное],MATCH(YL[[#This Row],[Строка]],YL[ПоискГОЛ],)) -> МУП "Вектор" Вяземского МР Хабаровского края
A164: 1 | B164: 21420 | C164: 2297 | D164: 77128561 | E164: Филиал "Удмуртский" ПАО "Т Плюс" | F164: ФЛ "Удмуртский" ПАО "Т Плюс" | G164: 16 | H164: 1 | I164: 101 | K164: =IF(ISNUMBER(SEARCH(S!$C$4,YL[[#This Row],[Название полное]])),MAX($K$1:K163)+1,0) -> 163 | L164: 163 | M164: =INDEX(YL[Название полное],MATCH(YL[[#This Row],[Строка]],YL[Поиск1],)) -> Филиал "Удмуртский" ПАО "Т Плюс" | N164: =IFERROR(YL[[#This Row],[Строка]]*(YL[[#This Row],[Поиск3]]=S!$C$4),"") -> 0 | O164: =INDEX(YL[ОКПО],MATCH(YL[[#This Row],[Строка]],YL[Поиск1],)) -> 77128561 | P164: =IF(ISNUMBER(SEARCH(S!$C$3,YL[[#This Row],[Название полное]])),MAX($P$1:P163)+1,0) -> 163 | Q164: =INDEX(YL[Название полное],MATCH(YL[[#This Row],[Строка]],YL[ПоискГОЛ],)) -> Филиал "Удмуртский" ПАО "Т Плюс"
A165: 1 | B165: 3102 | C165: 1596 | D165: 62553442 | E165: Филиал "Свердловский" ПАО "Т Плюс" | F165: ФЛ "Свердловский" ПАО "Т Плюс" | G165: 79 | H165: 1 | I165: 101 | K165: =IF(ISNUMBER(SEARCH(S!$C$4,YL[[#This Row],[Название полное]])),MAX($K$1:K164)+1,0) -> 164 | L165: 164 | M165: =INDEX(YL[Название полное],MATCH(YL[[#This Row],[Строка]],YL[Поиск1],)) -> Филиал "Свердловский" ПАО "Т Плюс" | N165: =IFERROR(YL[[#This Row],[Строка]]*(YL[[#This Row],[Поиск3]]=S!$C$4),"") -> 0 | O165: =INDEX(YL[ОКПО],MATCH(YL[[#This Row],[Строка]],YL[Поиск1],)) -> 62553442 | P165: =IF(ISNUMBER(SEARCH(S!$C$3,YL[[#This Row],[Название полное]])),MAX($P$1:P164)+1,0) -> 164 | Q165: =INDEX(YL[Название полное],MATCH(YL[[#This Row],[Строка]],YL[ПоискГОЛ],)) -> Филиал "Свердловский" ПАО "Т Плюс"
A166: 1 | B166: 3238 | C166: 1371 | D166: 60721088 | E166: Филиал "Пермский" ПАО "Т Плюс" | F166: ФЛ "Пермский" ПАО "Т Плюс" | G166: 72 | H166: 1 | I166: 101 | K166: =IF(ISNUMBER(SEARCH(S!$C$4,YL[[#This Row],[Название полное]])),MAX($K$1:K165)+1,0) -> 165 | L166: 165 | M166: =INDEX(YL[Название полное],MATCH(YL[[#This Row],[Строка]],YL[Поиск1],)) -> Филиал "Пермский" ПАО "Т Плюс" | N166: =IFERROR(YL[[#This Row],[Строка]]*(YL[[#This Row],[Поиск3]]=S!$C$4),"") -> 0 | O166: =INDEX(YL[ОКПО],MATCH(YL[[#This Row],[Строка]],YL[Поиск1],)) -> 60721088 | P166: =IF(ISNUMBER(SEARCH(S!$C$3,YL[[#This Row],[Название полное]])),MAX($P$1:P165)+1,0) -> 165 | Q166: =INDEX(YL[Название полное],MATCH(YL[[#This Row],[Строка]],YL[ПоискГОЛ],)) -> Филиал "Пермский" ПАО "Т Плюс"
A167: 1 | B167: 21424 | C167: 0 | D167: 85860767 | E167: Филиал "Марий Эл и Чувашии" ПАО "Т Плюс" | F167: ФЛ "Марий Эл и Чувашии" ПАО "Т Плюс" | G167: 20,11 | H167: 1 | I167: 101 | K167: =IF(ISNUMBER(SEARCH(S!$C$4,YL[[#This Row],[Название полное]])),MAX($K$1:K166)+1,0) -> 166 | L167: 166 | M167: =INDEX(YL[Название полное],MATCH(YL[[#This Row],[Строка]],YL[Поиск1],)) -> Филиал "Марий Эл и Чувашии" ПАО "Т Плюс" | N167: =IFERROR(YL[[#This Row],[Строка]]*(YL[[#This Row],[Поиск3]]=S!$C$4),"") -> 0 | O167: =INDEX(YL[ОКПО],MATCH(YL[[#This Row],[Строка]],YL[Поиск1],)) -> 85860767 | P167: =IF(ISNUMBER(SEARCH(S!$C$3,YL[[#This Row],[Название полное]])),MAX($P$1:P166)+1,0) -> 166 | Q167: =INDEX(YL[Название полное],MATCH(YL[[#This Row],[Строка]],YL[ПоискГОЛ],)) -> Филиал "Марий Эл и Чувашии" ПАО "Т Плюс"
A168: 1 | B168: 3250 | C168: 2130 | D168: 77893505 | E168: Филиал "Коми" ПАО "Т Плюс" | F168: ФЛ "Коми" ПАО "Т Плюс" | G168: 10 | H168: 1 | I168: 101 | K168: =IF(ISNUMBER(SEARCH(S!$C$4,YL[[#This Row],[Название полное]])),MAX($K$1:K167)+1,0) -> 167 | L168: 167 | M168: =INDEX(YL[Название полное],MATCH(YL[[#This Row],[Строка]],YL[Поиск1],)) -> Филиал "Коми" ПАО "Т Плюс" | N168: =IFERROR(YL[[#This Row],[Строка]]*(YL[[#This Row],[Поиск3]]=S!$C$4),"") -> 0 | O168: =INDEX(YL[ОКПО],MATCH(YL[[#This Row],[Строка]],YL[Поиск1],)) -> 77893505 | P168: =IF(ISNUMBER(SEARCH(S!$C$3,YL[[#This Row],[Название полное]])),MAX($P$1:P167)+1,0) -> 167 | Q168: =INDEX(YL[Название полное],MATCH(YL[[#This Row],[Строка]],YL[ПоискГОЛ],)) -> Филиал "Коми" ПАО "Т Плюс"
A169: 1 | B169: 3215 | C169: 419 | D169: 75632539 | E169: Филиал "Владимирский" ПАО "Т Плюс" | F169: ФЛ "Владимирский" ПАО "Т Плюс" | G169: 44 | H169: 1 | I169: 101 | K169: =IF(ISNUMBER(SEARCH(S!$C$4,YL[[#This Row],[Название полное]])),MAX($K$1:K168)+1,0) -> 168 | L169: 168 | M169: =INDEX(YL[Название полное],MATCH(YL[[#This Row],[Строка]],YL[Поиск1],)) -> Филиал "Владимирский" ПАО "Т Плюс" | N169: =IFERROR(YL[[#This Row],[Строка]]*(YL[[#This Row],[Поиск3]]=S!$C$4),"") -> 0 | O169: =INDEX(YL[ОКПО],MATCH(YL[[#This Row],[Строка]],YL[Поиск1],)) -> 75632539 | P169: =IF(ISNUMBER(SEARCH(S!$C$3,YL[[#This Row],[Название полное]])),MAX($P$1:P168)+1,0) -> 168 | Q169: =INDEX(YL[Название полное],MATCH(YL[[#This Row],[Строка]],YL[ПоискГОЛ],)) -> Филиал "Владимирский" ПАО "Т Плюс"
A170: 1 | B170: 546941 | C170: 419 | D170: - | E170: Филиал "Владимирский" во Владимирской области | G170: 44 | H170: 1 | I170: 101 | K170: =IF(ISNUMBER(SEARCH(S!$C$4,YL[[#This Row],[Название полное]])),MAX($K$1:K169)+1,0) -> 169 | L170: 169 | M170: =INDEX(YL[Название полное],MATCH(YL[[#This Row],[Строка]],YL[Поиск1],)) -> Филиал "Владимирский" во Владимирской области | N170: =IFERROR(YL[[#This Row],[Строка]]*(YL[[#This Row],[Поиск3]]=S!$C$4),"") -> 0 | O170: =INDEX(YL[ОКПО],MATCH(YL[[#This Row],[Строка]],YL[Поиск1],)) -> - | P170: =IF(ISNUMBER(SEARCH(S!$C$3,YL[[#This Row],[Название полное]])),MAX($P$1:P169)+1,0) -> 169 | Q170: =INDEX(YL[Название полное],MATCH(YL[[#This Row],[Строка]],YL[ПоискГОЛ],)) -> Филиал "Владимирский" во Владимирской области
A171: 1 | B171: 3254 | C171: -1 | D171: 78257026 | E171: ПАО "Т Плюс" | F171: ПАО "Т Плюс" | G171: 69,76,72,12,54,71,79,44,48,10,16,20,11,65,86,77 | H171: 1 | I171: 104 | K171: =IF(ISNUMBER(SEARCH(S!$C$4,YL[[#This Row],[Название полное]])),MAX($K$1:K170)+1,0) -> 170 | L171: 170 | M171: =INDEX(YL[Название полное],MATCH(YL[[#This Row],[Строка]],YL[Поиск1],)) -> ПАО "Т Плюс" | N171: =IFERROR(YL[[#This Row],[Строка]]*(YL[[#This Row],[Поиск3]]=S!$C$4),"") -> 0 | O171: =INDEX(YL[ОКПО],MATCH(YL[[#This Row],[Строка]],YL[Поиск1],)) -> 78257026 | P171: =IF(ISNUMBER(SEARCH(S!$C$3,YL[[#This Row],[Название полное]])),MAX($P$1:P170)+1,0) -> 170 | Q171: =INDEX(YL[Название полное],MATCH(YL[[#This Row],[Строка]],YL[ПоискГОЛ],)) -> ПАО "Т Плюс"
A172: 1 | B172: 1489 | C172: 1603 | D172: 7507110 | E172: ОАО "Каменск-Уральский металлургический завод" | F172: ОАО "КУМЗ" | G172: 79 | H172: 7 | I172: 705 | K172: =IF(ISNUMBER(SEARCH(S!$C$4,YL[[#This Row],[Название полное]])),MAX($K$1:K171)+1,0) -> 171 | L172: 171 | M172: =INDEX(YL[Название полное],MATCH(YL[[#This Row],[Строка]],YL[Поиск1],)) -> ОАО "Каменск-Уральский металлургический завод" | N172: =IFERROR(YL[[#This Row],[Строка]]*(YL[[#This Row],[Поиск3]]=S!$C$4),"") -> 0 | O172: =INDEX(YL[ОКПО],MATCH(YL[[#This Row],[Строка]],YL[Поиск1],)) -> 7507110 | P172: =IF(ISNUMBER(SEARCH(S!$C$3,YL[[#This Row],[Название полное]])),MAX($P$1:P171)+1,0) -> 171 | Q172: =INDEX(YL[Название полное],MATCH(YL[[#This Row],[Строка]],YL[ПоискГОЛ],)) -> ОАО "Каменск-Уральский металлургический завод"
A173: 1 | B173: 546942 | C173: 265 | D173: 32184160 | E173: МУП "Коммунальщик муниципального района имени Лазо" | F173: МУП "Коммунальщик" | G173: 38 | H173: 1 | I173: 106 | K173: =IF(ISNUMBER(SEARCH(S!$C$4,YL[[#This Row],[Название полное]])),MAX($K$1:K172)+1,0) -> 172 | L173: 172 | M173: =INDEX(YL[Название полное],MATCH(YL[[#This Row],[Строка]],YL[Поиск1],)) -> МУП "Коммунальщик муниципального района имени Лазо" | N173: =IFERROR(YL[[#This Row],[Строка]]*(YL[[#This Row],[Поиск3]]=S!$C$4),"") -> 0 | O173: =INDEX(YL[ОКПО],MATCH(YL[[#This Row],[Строка]],YL[Поиск1],)) -> 32184160 | P173: =IF(ISNUMBER(SEARCH(S!$C$3,YL[[#This Row],[Название полное]])),MAX($P$1:P172)+1,0) -> 172 | Q173: =INDEX(YL[Название полное],MATCH(YL[[#This Row],[Строка]],YL[ПоискГОЛ],)) -> МУП "Коммунальщик муниципального района имени Лазо"
A174: 1 | B174: 546943 | C174: 265 | D174: 77273234 | E174: МУ Топливно-снабженческое предприятие муниципального района имени Лазо | F174: МУ ТСП | G174: 38 | H174: 1 | I174: 106 | K174: =IF(ISNUMBER(SEARCH(S!$C$4,YL[[#This Row],[Название полное]])),MAX($K$1:K173)+1,0) -> 173 | L174: 173 | M174: =INDEX(YL[Название полное],MATCH(YL[[#This Row],[Строка]],YL[Поиск1],)) -> МУ Топливно-снабженческое предприятие муниципального района имени Лазо | N174: =IFERROR(YL[[#This Row],[Строка]]*(YL[[#This Row],[Поиск3]]=S!$C$4),"") -> 0 | O174: =INDEX(YL[ОКПО],MATCH(YL[[#This Row],[Строка]],YL[Поиск1],)) -> 77273234 | P174: =IF(ISNUMBER(SEARCH(S!$C$3,YL[[#This Row],[Название полное]])),MAX($P$1:P173)+1,0) -> 173 | Q174: =INDEX(YL[Название полное],MATCH(YL[[#This Row],[Строка]],YL[ПоискГОЛ],)) -> МУ Топливно-снабженческое предприятие муниципального района имени Лазо
A175: 1 | B175: 1986 | C175: 2385 | D175: 23297409 | E175: ООО Старательская Артель "Золото Ыныкчана" | F175: ООО СА "Золото Ыныкчана" | G175: 21 | H175: 7 | I175: 701 | K175: =IF(ISNUMBER(SEARCH(S!$C$4,YL[[#This Row],[Название полное]])),MAX($K$1:K174)+1,0) -> 174 | L175: 174 | M175: =INDEX(YL[Название полное],MATCH(YL[[#This Row],[Строка]],YL[Поиск1],)) -> ООО Старательская Артель "Золото Ыныкчана" | N175: =IFERROR(YL[[#This Row],[Строка]]*(YL[[#This Row],[Поиск3]]=S!$C$4),"") -> 0 | O175: =INDEX(YL[ОКПО],MATCH(YL[[#This Row],[Строка]],YL[Поиск1],)) -> 23297409 | P175: =IF(ISNUMBER(SEARCH(S!$C$3,YL[[#This Row],[Название полное]])),MAX($P$1:P174)+1,0) -> 174 | Q175: =INDEX(YL[Название полное],MATCH(YL[[#This Row],[Строка]],YL[ПоискГОЛ],)) -> ООО Старательская Артель "Золото Ыныкчана"
A176: 1 | B176: 1885 | C176: 2390 | D176: 23308410 | E176: АК "АЛРОСА" (ПАО) | F176: АК "АЛРОСА" (ПАО) | G176: 21 | H176: 7 | I176: 700 | K176: =IF(ISNUMBER(SEARCH(S!$C$4,YL[[#This Row],[Название полное]])),MAX($K$1:K175)+1,0) -> 175 | L176: 175 | M176: =INDEX(YL[Название полное],MATCH(YL[[#This Row],[Строка]],YL[Поиск1],)) -> АК "АЛРОСА" (ПАО) | N176: =IFERROR(YL[[#This Row],[Строка]]*(YL[[#This Row],[Поиск3]]=S!$C$4),"") -> 0 | O176: =INDEX(YL[ОКПО],MATCH(YL[[#This Row],[Строка]],YL[Поиск1],)) -> 23308410 | P176: =IF(ISNUMBER(SEARCH(S!$C$3,YL[[#This Row],[Название полное]])),MAX($P$1:P175)+1,0) -> 175 | Q176: =INDEX(YL[Название полное],MATCH(YL[[#This Row],[Строка]],YL[ПоискГОЛ],)) -> АК "АЛРОСА" (ПАО)
A177: 1 | B177: 257284 | C177: 1596 | D177: 288030 | E177: ПАО "Завод керамических изделий" | F177: ПАО "ЗКИ" | G177: 79 | H177: 12 | I177: 1201 | K177: =IF(ISNUMBER(SEARCH(S!$C$4,YL[[#This Row],[Название полное]])),MAX($K$1:K176)+1,0) -> 176 | L177: 176 | M177: =INDEX(YL[Название полное],MATCH(YL[[#This Row],[Строка]],YL[Поиск1],)) -> ПАО "Завод керамических изделий" | N177: =IFERROR(YL[[#This Row],[Строка]]*(YL[[#This Row],[Поиск3]]=S!$C$4),"") -> 0 | O177: =INDEX(YL[ОКПО],MATCH(YL[[#This Row],[Строка]],YL[Поиск1],)) -> 288030 | P177: =IF(ISNUMBER(SEARCH(S!$C$3,YL[[#This Row],[Название полное]])),MAX($P$1:P176)+1,0) -> 176 | Q177: =INDEX(YL[Название полное],MATCH(YL[[#This Row],[Строка]],YL[ПоискГОЛ],)) -> ПАО "Завод керамических изделий"
A178: 1 | B178: 546945 | C178: 1045 | D178: 13329606 | E178: МУП "Единая служба коммунального хозяйства Зарайского района" | F178: МУП "ЕСКХ Зарайского района" | G178: 62 | H178: 1 | I178: 106 | K178: =IF(ISNUMBER(SEARCH(S!$C$4,YL[[#This Row],[Название полное]])),MAX($K$1:K177)+1,0) -> 177 | L178: 177 | M178: =INDEX(YL[Название полное],MATCH(YL[[#This Row],[Строка]],YL[Поиск1],)) -> МУП "Единая служба коммунального хозяйства Зарайского района" | N178: =IFERROR(YL[[#This Row],[Строка]]*(YL[[#This Row],[Поиск3]]=S!$C$4),"") -> 0 | O178: =INDEX(YL[ОКПО],MATCH(YL[[#This Row],[Строка]],YL[Поиск1],)) -> 13329606 | P178: =IF(ISNUMBER(SEARCH(S!$C$3,YL[[#This Row],[Название полное]])),MAX($P$1:P177)+1,0) -> 177 | Q178: =INDEX(YL[Название полное],MATCH(YL[[#This Row],[Строка]],YL[ПоискГОЛ],)) -> МУП "Единая служба коммунального хозяйства Зарайского района"
A179: 1 | B179: 257380 | C179: 1134 | D179: 7701125 | E179: АО " 10 Ордена трудового красного знамени судоремонтный завод" | F179: АО "10 СРЗ" | G179: 64 | H179: 9 | I179: 904 | K179: =IF(ISNUMBER(SEARCH(S!$C$4,YL[[#This Row],[Название полное]])),MAX($K$1:K178)+1,0) -> 178 | L179: 178 | M179: =INDEX(YL[Название полное],MATCH(YL[[#This Row],[Строка]],YL[Поиск1],)) -> АО " 10 Ордена трудового красного знамени судоремонтный завод" | N179: =IFERROR(YL[[#This Row],[Строка]]*(YL[[#This Row],[Поиск3]]=S!$C$4),"") -> 0 | O179: =INDEX(YL[ОКПО],MATCH(YL[[#This Row],[Строка]],YL[Поиск1],)) -> 7701125 | P179: =IF(ISNUMBER(SEARCH(S!$C$3,YL[[#This Row],[Название полное]])),MAX($P$1:P178)+1,0) -> 178 | Q179: =INDEX(YL[Название полное],MATCH(YL[[#This Row],[Строка]],YL[ПоискГОЛ],)) -> АО " 10 Ордена трудового красного знамени судоремонтный завод"
A180: 1 | B180: 1499 | C180: 1599 | D180: 7510017 | E180: ПАО "Корпорация "ВСМПО-АВИСМА" | F180: ПАО "Корпорация "ВСМПО-АВИСМА" | G180: 79 | H180: 7 | I180: 702 | K180: =IF(ISNUMBER(SEARCH(S!$C$4,YL[[#This Row],[Название полное]])),MAX($K$1:K179)+1,0) -> 179 | L180: 179 | M180: =INDEX(YL[Название полное],MATCH(YL[[#This Row],[Строка]],YL[Поиск1],)) -> ПАО "Корпорация "ВСМПО-АВИСМА" | N180: =IFERROR(YL[[#This Row],[Строка]]*(YL[[#This Row],[Поиск3]]=S!$C$4),"") -> 0 | O180: =INDEX(YL[ОКПО],MATCH(YL[[#This Row],[Строка]],YL[Поиск1],)) -> 7510017 | P180: =IF(ISNUMBER(SEARCH(S!$C$3,YL[[#This Row],[Название полное]])),MAX($P$1:P179)+1,0) -> 179 | Q180: =INDEX(YL[Название полное],MATCH(YL[[#This Row],[Строка]],YL[ПоискГОЛ],)) -> ПАО "Корпорация "ВСМПО-АВИСМА"
A181: 1 | B181: 1123 | C181: 0 | D181: 4801174 | E181: ООО "Газпром трансгаз Чайковский" | F181: ООО "Газпром трансгаз Чайковский" | G181: 72,16 | H181: 15 | I181: 1503 | K181: =IF(ISNUMBER(SEARCH(S!$C$4,YL[[#This Row],[Название полное]])),MAX($K$1:K180)+1,0) -> 180 | L181: 180 | M181: =INDEX(YL[Название полное],MATCH(YL[[#This Row],[Строка]],YL[Поиск1],)) -> ООО "Газпром трансгаз Чайковский" | N181: =IFERROR(YL[[#This Row],[Строка]]*(YL[[#This Row],[Поиск3]]=S!$C$4),"") -> 0 | O181: =INDEX(YL[ОКПО],MATCH(YL[[#This Row],[Строка]],YL[Поиск1],)) -> 4801174 | P181: =IF(ISNUMBER(SEARCH(S!$C$3,YL[[#This Row],[Название полное]])),MAX($P$1:P180)+1,0) -> 180 | Q181: =INDEX(YL[Название полное],MATCH(YL[[#This Row],[Строка]],YL[ПоискГОЛ],)) -> ООО "Газпром трансгаз Чайковский"
A182: 1 | B182: 483 | C182: 330 | D182: 279195 | E182: АО "Архангельский целлюлозно-бумажный комбинат" | F182: АО "Архангельский ЦБК" | G182: 40 | H182: 10 | I182: 1002 | K182: =IF(ISNUMBER(SEARCH(S!$C$4,YL[[#This Row],[Название полное]])),MAX($K$1:K181)+1,0) -> 181 | L182: 181 | M182: =INDEX(YL[Название полное],MATCH(YL[[#This Row],[Строка]],YL[Поиск1],)) -> АО "Архангельский целлюлозно-бумажный комбинат" | N182: =IFERROR(YL[[#This Row],[Строка]]*(YL[[#This Row],[Поиск3]]=S!$C$4),"") -> 0 | O182: =INDEX(YL[ОКПО],MATCH(YL[[#This Row],[Строка]],YL[Поиск1],)) -> 279195 | P182: =IF(ISNUMBER(SEARCH(S!$C$3,YL[[#This Row],[Название полное]])),MAX($P$1:P181)+1,0) -> 181 | Q182: =INDEX(YL[Название полное],MATCH(YL[[#This Row],[Строка]],YL[ПоискГОЛ],)) -> АО "Архангельский целлюлозно-бумажный комбинат"
A183: 1 | B183: 2367 | C183: 1192 | D183: 44049852 | E183: МУП г. Новосибирска "Горводоканал" | F183: МУП г. Новосибирска "Горводоканал" | G183: 67 | H183: 16 | I183: 1600 | K183: =IF(ISNUMBER(SEARCH(S!$C$4,YL[[#This Row],[Название полное]])),MAX($K$1:K182)+1,0) -> 182 | L183: 182 | M183: =INDEX(YL[Название полное],MATCH(YL[[#This Row],[Строка]],YL[Поиск1],)) -> МУП г. Новосибирска "Горводоканал" | N183: =IFERROR(YL[[#This Row],[Строка]]*(YL[[#This Row],[Поиск3]]=S!$C$4),"") -> 0 | O183: =INDEX(YL[ОКПО],MATCH(YL[[#This Row],[Строка]],YL[Поиск1],)) -> 44049852 | P183: =IF(ISNUMBER(SEARCH(S!$C$3,YL[[#This Row],[Название полное]])),MAX($P$1:P182)+1,0) -> 182 | Q183: =INDEX(YL[Название полное],MATCH(YL[[#This Row],[Строка]],YL[ПоискГОЛ],)) -> МУП г. Новосибирска "Горводоканал"
A184: 1 | B184: 2195 | C184: 1879 | D184: 34758731 | E184: АО "Чукотэнерго" | F184: АО "Чукотэнерго" | G184: 30 | H184: 1 | I184: 101 | K184: =IF(ISNUMBER(SEARCH(S!$C$4,YL[[#This Row],[Название полное]])),MAX($K$1:K183)+1,0) -> 183 | L184: 183 | M184: =INDEX(YL[Название полное],MATCH(YL[[#This Row],[Строка]],YL[Поиск1],)) -> АО "Чукотэнерго" | N184: =IFERROR(YL[[#This Row],[Строка]]*(YL[[#This Row],[Поиск3]]=S!$C$4),"") -> 0 | O184: =INDEX(YL[ОКПО],MATCH(YL[[#This Row],[Строка]],YL[Поиск1],)) -> 34758731 | P184: =IF(ISNUMBER(SEARCH(S!$C$3,YL[[#This Row],[Название полное]])),MAX($P$1:P183)+1,0) -> 183 | Q184: =INDEX(YL[Название полное],MATCH(YL[[#This Row],[Строка]],YL[ПоискГОЛ],)) -> АО "Чукотэнерго"
A185: 1 | B185: 546946 | C185: 990 | D185: 80675373 | E185: АО "Тихвинский вагоностроительный завод" | F185: АО "ТВСЗ" | G185: 58 | H185: 9 | I185: 907 | K185: =IF(ISNUMBER(SEARCH(S!$C$4,YL[[#This Row],[Название полное]])),MAX($K$1:K184)+1,0) -> 184 | L185: 184 | M185: =INDEX(YL[Название полное],MATCH(YL[[#This Row],[Строка]],YL[Поиск1],)) -> АО "Тихвинский вагоностроительный завод" | N185: =IFERROR(YL[[#This Row],[Строка]]*(YL[[#This Row],[Поиск3]]=S!$C$4),"") -> 0 | O185: =INDEX(YL[ОКПО],MATCH(YL[[#This Row],[Строка]],YL[Поиск1],)) -> 80675373 | P185: =IF(ISNUMBER(SEARCH(S!$C$3,YL[[#This Row],[Название полное]])),MAX($P$1:P184)+1,0) -> 184 | Q185: =INDEX(YL[Название полное],MATCH(YL[[#This Row],[Строка]],YL[ПоискГОЛ],)) -> АО "Тихвинский вагоностроительный завод"
A186: 1 | B186: 546690 | C186: 2351 | D186: 65651547 | E186: ООО "Вторчермет НЛМК Республика" | F186: ООО "Вторчермет НЛМК Республика" | G186: 20 | H186: 6 | I186: 605 | K186: =IF(ISNUMBER(SEARCH(S!$C$4,YL[[#This Row],[Название полное]])),MAX($K$1:K185)+1,0) -> 185 | L186: 185 | M186: =INDEX(YL[Название полное],MATCH(YL[[#This Row],[Строка]],YL[Поиск1],)) -> ООО "Вторчермет НЛМК Республика" | N186: =IFERROR(YL[[#This Row],[Строка]]*(YL[[#This Row],[Поиск3]]=S!$C$4),"") -> 0 | O186: =INDEX(YL[ОКПО],MATCH(YL[[#This Row],[Строка]],YL[Поиск1],)) -> 65651547 | P186: =IF(ISNUMBER(SEARCH(S!$C$3,YL[[#This Row],[Название полное]])),MAX($P$1:P185)+1,0) -> 185 | Q186: =INDEX(YL[Название полное],MATCH(YL[[#This Row],[Строка]],YL[ПоискГОЛ],)) -> ООО "Вторчермет НЛМК Республика"
A187: 1 | B187: 546688 | C187: 1769 | D187: 63395985 | E187: ООО "Вторчермет НЛМК Западная Сибирь" | F187: ООО "Вторчермет НЛМК Западная Сибирь" | G187: 85 | H187: 6 | I187: 605 | K187: =IF(ISNUMBER(SEARCH(S!$C$4,YL[[#This Row],[Название полное]])),MAX($K$1:K186)+1,0) -> 186 | L187: 186 | M187: =INDEX(YL[Название полное],MATCH(YL[[#This Row],[Строка]],YL[Поиск1],)) -> ООО "Вторчермет НЛМК Западная Сибирь" | N187: =IFERROR(YL[[#This Row],[Строка]]*(YL[[#This Row],[Поиск3]]=S!$C$4),"") -> 0 | O187: =INDEX(YL[ОКПО],MATCH(YL[[#This Row],[Строка]],YL[Поиск1],)) -> 63395985 | P187: =IF(ISNUMBER(SEARCH(S!$C$3,YL[[#This Row],[Название полное]])),MAX($P$1:P186)+1,0) -> 186 | Q187: =INDEX(YL[Название полное],MATCH(YL[[#This Row],[Строка]],YL[ПоискГОЛ],)) -> ООО "Вторчермет НЛМК Западная Сибирь"
A188: 1 | B188: 546685 | C188: 583 | D188: 61353043 | E188: ООО "Вторчермет НЛМК Волга" | F188: ООО "Вторчермет НЛМК Волга" | G188: 65 | H188: 6 | I188: 605 | K188: =IF(ISNUMBER(SEARCH(S!$C$4,YL[[#This Row],[Название полное]])),MAX($K$1:K187)+1,0) -> 187 | L188: 187 | M188: =INDEX(YL[Название полное],MATCH(YL[[#This Row],[Строка]],YL[Поиск1],)) -> ООО "Вторчермет НЛМК Волга" | N188: =IFERROR(YL[[#This Row],[Строка]]*(YL[[#This Row],[Поиск3]]=S!$C$4),"") -> 0 | O188: =INDEX(YL[ОКПО],MATCH(YL[[#This Row],[Строка]],YL[Поиск1],)) -> 61353043 | P188: =IF(ISNUMBER(SEARCH(S!$C$3,YL[[#This Row],[Название полное]])),MAX($P$1:P187)+1,0) -> 187 | Q188: =INDEX(YL[Название полное],MATCH(YL[[#This Row],[Строка]],YL[ПоискГОЛ],)) -> ООО "Вторчермет НЛМК Волга"
A189: 1 | B189: 546697 | C189: 2251 | D189: 50626710 | E189: ООО "Производственное объединение Татвторчермет" | F189: ООО "ПО Татвторчермет" | G189: 14 | H189: 6 | I189: 605 | K189: =IF(ISNUMBER(SEARCH(S!$C$4,YL[[#This Row],[Название полное]])),MAX($K$1:K188)+1,0) -> 188 | L189: 188 | M189: =INDEX(YL[Название полное],MATCH(YL[[#This Row],[Строка]],YL[Поиск1],)) -> ООО "Производственное объединение Татвторчермет" | N189: =IFERROR(YL[[#This Row],[Строка]]*(YL[[#This Row],[Поиск3]]=S!$C$4),"") -> 0 | O189: =INDEX(YL[ОКПО],MATCH(YL[[#This Row],[Строка]],YL[Поиск1],)) -> 50626710 | P189: =IF(ISNUMBER(SEARCH(S!$C$3,YL[[#This Row],[Название полное]])),MAX($P$1:P188)+1,0) -> 188 | Q189: =INDEX(YL[Название полное],MATCH(YL[[#This Row],[Строка]],YL[ПоискГОЛ],)) -> ООО "Производственное объединение Татвторчермет"
A190: 1 | B190: 62687 | C190: 1333 | D190: 62542390 | E190: ООО "Вторчермет НЛМК Юг" | F190: ООО "Вторчермет НЛМК Юг" | G190: 71 | H190: 6 | I190: 605 | K190: =IF(ISNUMBER(SEARCH(S!$C$4,YL[[#This Row],[Название полное]])),MAX($K$1:K189)+1,0) -> 189 | L190: 189 | M190: =INDEX(YL[Название полное],MATCH(YL[[#This Row],[Строка]],YL[Поиск1],)) -> ООО "Вторчермет НЛМК Юг" | N190: =IFERROR(YL[[#This Row],[Строка]]*(YL[[#This Row],[Поиск3]]=S!$C$4),"") -> 0 | O190: =INDEX(YL[ОКПО],MATCH(YL[[#This Row],[Строка]],YL[Поиск1],)) -> 62542390 | P190: =IF(ISNUMBER(SEARCH(S!$C$3,YL[[#This Row],[Название полное]])),MAX($P$1:P189)+1,0) -> 189 | Q190: =INDEX(YL[Название полное],MATCH(YL[[#This Row],[Строка]],YL[ПоискГОЛ],)) -> ООО "Вторчермет НЛМК Юг"
A191: 1 | B191: 546696 | C191: 905 | D191: 85890225 | E191: ООО "Вторчермет НЛМК Поволжье" | F191: ООО "Вторчермет НЛМК Поволжье" | G191: 76 | H191: 6 | I191: 605 | K191: =IF(ISNUMBER(SEARCH(S!$C$4,YL[[#This Row],[Название полное]])),MAX($K$1:K190)+1,0) -> 190 | L191: 190 | M191: =INDEX(YL[Название полное],MATCH(YL[[#This Row],[Строка]],YL[Поиск1],)) -> ООО "Вторчермет НЛМК Поволжье" | N191: =IFERROR(YL[[#This Row],[Строка]]*(YL[[#This Row],[Поиск3]]=S!$C$4),"") -> 0 | O191: =INDEX(YL[ОКПО],MATCH(YL[[#This Row],[Строка]],YL[Поиск1],)) -> 85890225 | P191: =IF(ISNUMBER(SEARCH(S!$C$3,YL[[#This Row],[Название полное]])),MAX($P$1:P190)+1,0) -> 190 | Q191: =INDEX(YL[Название полное],MATCH(YL[[#This Row],[Строка]],YL[ПоискГОЛ],)) -> ООО "Вторчермет НЛМК Поволжье"
A192: 1 | B192: 546695 | C192: 1299 | D192: 89742645 | E192: ООО "Вторчермет НЛМК Черноземье" | F192: ООО "Вторчермет НЛМК Черноземье" | G192: 70 | H192: 6 | I192: 605 | K192: =IF(ISNUMBER(SEARCH(S!$C$4,YL[[#This Row],[Название полное]])),MAX($K$1:K191)+1,0) -> 191 | L192: 191 | M192: =INDEX(YL[Название полное],MATCH(YL[[#This Row],[Строка]],YL[Поиск1],)) -> ООО "Вторчермет НЛМК Черноземье" | N192: =IFERROR(YL[[#This Row],[Строка]]*(YL[[#This Row],[Поиск3]]=S!$C$4),"") -> 0 | O192: =INDEX(YL[ОКПО],MATCH(YL[[#This Row],[Строка]],YL[Поиск1],)) -> 89742645 | P192: =IF(ISNUMBER(SEARCH(S!$C$3,YL[[#This Row],[Название полное]])),MAX($P$1:P191)+1,0) -> 191 | Q192: =INDEX(YL[Название полное],MATCH(YL[[#This Row],[Строка]],YL[ПоискГОЛ],)) -> ООО "Вторчермет НЛМК Черноземье"
A193: 1 | B193: 546687 | C193: 1722 | D193: 64687833 | E193: ООО "Вторчермет НЛМК Запад" | F193: ООО "Вторчермет НЛМК Запад" | G193: 84 | H193: 6 | I193: 605 | K193: =IF(ISNUMBER(SEARCH(S!$C$4,YL[[#This Row],[Название полное]])),MAX($K$1:K192)+1,0) -> 192 | L193: 192 | M193: =INDEX(YL[Название полное],MATCH(YL[[#This Row],[Строка]],YL[Поиск1],)) -> ООО "Вторчермет НЛМК Запад" | N193: =IFERROR(YL[[#This Row],[Строка]]*(YL[[#This Row],[Поиск3]]=S!$C$4),"") -> 0 | O193: =INDEX(YL[ОКПО],MATCH(YL[[#This Row],[Строка]],YL[Поиск1],)) -> 64687833 | P193: =IF(ISNUMBER(SEARCH(S!$C$3,YL[[#This Row],[Название полное]])),MAX($P$1:P192)+1,0) -> 192 | Q193: =INDEX(YL[Название полное],MATCH(YL[[#This Row],[Строка]],YL[ПоискГОЛ],)) -> ООО "Вторчермет НЛМК Запад"
A194: 1 | B194: 1090 | C194: 1017 | D194: 4637421 | E194: АО "Вторчермет" | F194: АО "Вторчермет" | G194: 60 | H194: 6 | I194: 605 | K194: =IF(ISNUMBER(SEARCH(S!$C$4,YL[[#This Row],[Название полное]])),MAX($K$1:K193)+1,0) -> 193 | L194: 193 | M194: =INDEX(YL[Название полное],MATCH(YL[[#This Row],[Строка]],YL[Поиск1],)) -> АО "Вторчермет" | N194: =IFERROR(YL[[#This Row],[Строка]]*(YL[[#This Row],[Поиск3]]=S!$C$4),"") -> 0 | O194: =INDEX(YL[ОКПО],MATCH(YL[[#This Row],[Строка]],YL[Поиск1],)) -> 4637421 | P194: =IF(ISNUMBER(SEARCH(S!$C$3,YL[[#This Row],[Название полное]])),MAX($P$1:P193)+1,0) -> 193 | Q194: =INDEX(YL[Название полное],MATCH(YL[[#This Row],[Строка]],YL[ПоискГОЛ],)) -> АО "Вторчермет"
A195: 1 | B195: 546694 | C195: 1064 | D195: 63491418 | E195: ООО "Вторчермет НЛМК Центр" | F195: ООО "Вторчермет НЛМК Центр" | G195: 62 | H195: 6 | I195: 605 | K195: =IF(ISNUMBER(SEARCH(S!$C$4,YL[[#This Row],[Название полное]])),MAX($K$1:K194)+1,0) -> 194 | L195: 194 | M195: =INDEX(YL[Название полное],MATCH(YL[[#This Row],[Строка]],YL[Поиск1],)) -> ООО "Вторчермет НЛМК Центр" | N195: =IFERROR(YL[[#This Row],[Строка]]*(YL[[#This Row],[Поиск3]]=S!$C$4),"") -> 0 | O195: =INDEX(YL[ОКПО],MATCH(YL[[#This Row],[Строка]],YL[Поиск1],)) -> 63491418 | P195: =IF(ISNUMBER(SEARCH(S!$C$3,YL[[#This Row],[Название полное]])),MAX($P$1:P194)+1,0) -> 194 | Q195: =INDEX(YL[Название полное],MATCH(YL[[#This Row],[Строка]],YL[ПоискГОЛ],)) -> ООО "Вторчермет НЛМК Центр"
A196: 1 | B196: 546691 | C196: 607 | D196: 73218675 | E196: ООО "Вторчермет НЛМК Север" | F196: ООО "Вторчермет НЛМК Север" | G196: 48 | H196: 6 | I196: 605 | K196: =IF(ISNUMBER(SEARCH(S!$C$4,YL[[#This Row],[Название полное]])),MAX($K$1:K195)+1,0) -> 195 | L196: 195 | M196: =INDEX(YL[Название полное],MATCH(YL[[#This Row],[Строка]],YL[Поиск1],)) -> ООО "Вторчермет НЛМК Север" | N196: =IFERROR(YL[[#This Row],[Строка]]*(YL[[#This Row],[Поиск3]]=S!$C$4),"") -> 0 | O196: =INDEX(YL[ОКПО],MATCH(YL[[#This Row],[Строка]],YL[Поиск1],)) -> 73218675 | P196: =IF(ISNUMBER(SEARCH(S!$C$3,YL[[#This Row],[Название полное]])),MAX($P$1:P195)+1,0) -> 195 | Q196: =INDEX(YL[Название полное],MATCH(YL[[#This Row],[Строка]],YL[ПоискГОЛ],)) -> ООО "Вторчермет НЛМК Север"
A197: 1 | B197: 1322 | C197: 2351 | D197: 5762128 | E197: АО "Чувашвтормет" | F197: АО "Чувашвтормет" | G197: 20 | H197: 6 | I197: 605 | K197: =IF(ISNUMBER(SEARCH(S!$C$4,YL[[#This Row],[Название полное]])),MAX($K$1:K196)+1,0) -> 196 | L197: 196 | M197: =INDEX(YL[Название полное],MATCH(YL[[#This Row],[Строка]],YL[Поиск1],)) -> АО "Чувашвтормет" | N197: =IFERROR(YL[[#This Row],[Строка]]*(YL[[#This Row],[Поиск3]]=S!$C$4),"") -> 0 | O197: =INDEX(YL[ОКПО],MATCH(YL[[#This Row],[Строка]],YL[Поиск1],)) -> 5762128 | P197: =IF(ISNUMBER(SEARCH(S!$C$3,YL[[#This Row],[Название полное]])),MAX($P$1:P196)+1,0) -> 196 | Q197: =INDEX(YL[Название полное],MATCH(YL[[#This Row],[Строка]],YL[ПоискГОЛ],)) -> АО "Чувашвтормет"
A198: 1 | B198: 546689 | C198: 1371 | D198: 65102438 | E198: ООО "Вторчермет НЛМК Пермь" | F198: ООО "Вторчермет НЛМК Пермь" | G198: 72 | H198: 6 | I198: 605 | K198: =IF(ISNUMBER(SEARCH(S!$C$4,YL[[#This Row],[Название полное]])),MAX($K$1:K197)+1,0) -> 197 | L198: 197 | M198: =INDEX(YL[Название полное],MATCH(YL[[#This Row],[Строка]],YL[Поиск1],)) -> ООО "Вторчермет НЛМК Пермь" | N198: =IFERROR(YL[[#This Row],[Строка]]*(YL[[#This Row],[Поиск3]]=S!$C$4),"") -> 0 | O198: =INDEX(YL[ОКПО],MATCH(YL[[#This Row],[Строка]],YL[Поиск1],)) -> 65102438 | P198: =IF(ISNUMBER(SEARCH(S!$C$3,YL[[#This Row],[Название полное]])),MAX($P$1:P197)+1,0) -> 197 | Q198: =INDEX(YL[Название полное],MATCH(YL[[#This Row],[Строка]],YL[ПоискГОЛ],)) -> ООО "Вторчермет НЛМК Пермь"
A199: 1 | B199: 546686 | C199: 2287 | D199: 14732534 | E199: ООО "Вторчермет НЛМК Восток" | F199: ООО "Вторчермет НЛМК Восток" | G199: 16 | H199: 6 | I199: 605 | K199: =IF(ISNUMBER(SEARCH(S!$C$4,YL[[#This Row],[Название полное]])),MAX($K$1:K198)+1,0) -> 198 | L199: 198 | M199: =INDEX(YL[Название полное],MATCH(YL[[#This Row],[Строка]],YL[Поиск1],)) -> ООО "Вторчермет НЛМК Восток" | N199: =IFERROR(YL[[#This Row],[Строка]]*(YL[[#This Row],[Поиск3]]=S!$C$4),"") -> 0 | O199: =INDEX(YL[ОКПО],MATCH(YL[[#This Row],[Строка]],YL[Поиск1],)) -> 14732534 | P199: =IF(ISNUMBER(SEARCH(S!$C$3,YL[[#This Row],[Название полное]])),MAX($P$1:P198)+1,0) -> 198 | Q199: =INDEX(YL[Название полное],MATCH(YL[[#This Row],[Строка]],YL[ПоискГОЛ],)) -> ООО "Вторчермет НЛМК Восток"
A200: 1 | B200: 546684 | C200: 1967 | D200: 67180193 | E200: ООО "Вторчермет НЛМК Башкортостан" | F200: ООО "Вторчермет НЛМК Башкортостан" | G200: 2 | H200: 6 | I200: 605 | K200: =IF(ISNUMBER(SEARCH(S!$C$4,YL[[#This Row],[Название полное]])),MAX($K$1:K199)+1,0) -> 199 | L200: 199 | M200: =INDEX(YL[Название полное],MATCH(YL[[#This Row],[Строка]],YL[Поиск1],)) -> ООО "Вторчермет НЛМК Башкортостан" | N200: =IFERROR(YL[[#This Row],[Строка]]*(YL[[#This Row],[Поиск3]]=S!$C$4),"") -> 0 | O200: =INDEX(YL[ОКПО],MATCH(YL[[#This Row],[Строка]],YL[Поиск1],)) -> 67180193 | P200: =IF(ISNUMBER(SEARCH(S!$C$3,YL[[#This Row],[Название полное]])),MAX($P$1:P199)+1,0) -> 199 | Q200: =INDEX(YL[Название полное],MATCH(YL[[#This Row],[Строка]],YL[ПоискГОЛ],)) -> ООО "Вторчермет НЛМК Башкортостан"
... 4300 more rows
